﻿Body Name,Service Area,Expense Type,Payment Date,Amount ,Supplier Name
Bolton MBC,Adult Services,Residential Provision,07-Jan-20,"344,222.28",Mill View Care Home
Bolton MBC,Adult Services,Contracted Services,30-Jan-20,"291,816.00",Ashness Place
Bolton MBC,Adult Services,Nursing Provision,07-Jan-20,"218,053.83",Four Seasons Nursing Home
Bolton MBC,Adult Services,Residential Provision,07-Jan-20,"157,587.43",Lever Edge Care Home
Bolton MBC,Adult Services,Contracted Services,13-Jan-20,"146,259.60",Keymen Associates Ltd#Mayday Homecare
Bolton MBC,Adult Services,Partnership Staff,16-Jan-20,"125,000.00",Bolton NHS Foundation Trust#1
Bolton MBC,Adult Services,Nursing Provision,07-Jan-20,"123,615.55",St Catherines Care Home
Bolton MBC,Adult Services,Contracted Services,02-Jan-20,"121,825.98",Jewel Home Support Ltd
Bolton MBC,Adult Services,Contracted Services,20-Jan-20,"108,957.51",SureCare Bolton#Sakinas Healthcare Limited
Bolton MBC,Adult Services,Residential Provision,09-Jan-20,"98,834.28",Withins Residential Home
Bolton MBC,Adult Services,Nursing Provision,07-Jan-20,"94,848.67",Shannon Court Care Home Limited
Bolton MBC,Adult Services,Contracted Services,02-Jan-20,"89,559.05",Human Support Group#Homecare Support
Bolton MBC,Adult Services,Contracted Services,16-Jan-20,"85,986.13",Premier Care Limited
Bolton MBC,Adult Services,Nursing Provision,07-Jan-20,"76,398.12",Meadowbank House
Bolton MBC,Adult Services,Partnerships - Other,16-Jan-20,"75,000.00",Bolton NHS Foundation Trust#1
Bolton MBC,Adult Services,Nursing Provision,07-Jan-20,"74,108.80",Vale House
Bolton MBC,Adult Services,Residential Provision,07-Jan-20,"73,567.75",Abafields Residential Home
Bolton MBC,Adult Services,Residential Provision,07-Jan-20,"69,090.57",Parkview Nursing & Residential Home
Bolton MBC,Adult Services,Contracted Services,16-Jan-20,"66,776.81",Homecare For You Ltd#BLACKBURN
Bolton MBC,Adult Services,Residential Provision,07-Jan-20,"62,771.97",Morden Grange
Bolton MBC,Adult Services,Residential Provision,07-Jan-20,"59,605.00",Westmead
Bolton MBC,Adult Services,Residential Provision,07-Jan-20,"55,561.79",Blackrod House Limited
Bolton MBC,Adult Services,Residential Provision,07-Jan-20,"53,800.00",Sunnyside Residential Home
Bolton MBC,Adult Services,Residential Provision,07-Jan-20,"51,192.00",Hollands Nursing Home
Bolton MBC,Adult Services,Residential Provision,07-Jan-20,"50,992.20",Astley Grange Homes Limited
Bolton MBC,Adult Services,Residential Provision,07-Jan-20,"47,514.00",Lyngate Residential Home#Lyngate Healthcare Ltd
Bolton MBC,Adult Services,Residential Provision,07-Jan-20,"46,820.00",Wingates Residential Home
Bolton MBC,Adult Services,Residential Provision,09-Jan-20,"46,750.00",Woodlands Westhoughton
Bolton MBC,Adult Services,Contracted Services,16-Jan-20,"46,351.38",CRG Limited#Homecare
Bolton MBC,Adult Services,Residential Provision,07-Jan-20,"44,734.29",Greenlands Residential Home Limited
Bolton MBC,Adult Services,Residential Provision,07-Jan-20,"43,670.71",The Clough Residential Home
Bolton MBC,Adult Services,Contracted Services,09-Jan-20,"43,077.28",Rosewood Court
Bolton MBC,Adult Services,Contracted Services,20-Jan-20,"43,064.28",Bolton Advocacy
Bolton MBC,Adult Services,Residential Provision,07-Jan-20,"39,398.21",Gorsey Clough Nursing Home Ltd
Bolton MBC,Adult Services,Residential Provision,20-Jan-20,"38,547.71",Redford Court
Bolton MBC,Adult Services,Residential Provision,07-Jan-20,"38,160.33",Hazelbrook Christian Nursing Home
Bolton MBC,Adult Services,Contracted Services,09-Jan-20,"36,614.11",The Local Care Company (Bolton) Limited
Bolton MBC,Adult Services,Miscellaneous Grants,16-Jan-20,"36,345.00",Octagon Theatre Trust Limited
Bolton MBC,Adult Services,Residential Provision,07-Jan-20,"35,550.00",Grange Lea Residential Care Home Limited
Bolton MBC,Adult Services,Contracted Services,16-Jan-20,"34,719.90",The Together Trust
Bolton MBC,Adult Services,Residential Provision,07-Jan-20,"33,692.47",Rose Court Nursing Home
Bolton MBC,Adult Services,Residential Provision,07-Jan-20,"33,500.00",Cornerstone Trust
Bolton MBC,Adult Services,Residential Provision,07-Jan-20,"32,351.57",Woodlands House Residential Home Ltd
Bolton MBC,Adult Services,Residential Provision,07-Jan-20,"32,185.88",Rivington View Nursing Home
Bolton MBC,Adult Services,Residential Provision,07-Jan-20,"31,728.34",Strathmore Nursing And Residential Home
Bolton MBC,Adult Services,Residential Provision,07-Jan-20,"31,500.00",Chorley House
Bolton MBC,Adult Services,Residential Provision,07-Jan-20,"31,222.80",Southlands Residential Home#Southlands
Bolton MBC,Adult Services,Residential Provision,07-Jan-20,"31,087.75",Bannister Farm Cottage
Bolton MBC,Adult Services,Residential Provision,07-Jan-20,"29,800.88",The Bungalow Residential Home
Bolton MBC,Adult Services,Residential Provision,07-Jan-20,"29,431.50",The Old Vicarage
Bolton MBC,Adult Services,Residential Provision,07-Jan-20,"29,140.72",Glenbank Care Home Ltd
Bolton MBC,Adult Services,Contracted Services,16-Jan-20,"28,628.42",Creative Support Limited#3
Bolton MBC,Adult Services,Residential Provision,07-Jan-20,"27,127.50",Denstone Crescent
Bolton MBC,Adult Services,Contracted Services,02-Jan-20,"26,896.12",RNHS Ltd
Bolton MBC,Adult Services,Nursing Provision,07-Jan-20,"26,674.28",Burrswood House
Bolton MBC,Adult Services,Contracted Services,27-Jan-20,"26,647.00",Shenton House
Bolton MBC,Adult Services,Contracted Services,30-Jan-20,"26,120.64",RNHS Ltd
Bolton MBC,Adult Services,Nursing Provision,09-Jan-20,"25,878.52",Shannon Court Care Home Limited
Bolton MBC,Adult Services,Residential Provision,07-Jan-20,"25,778.75",Heaton Vale
Bolton MBC,Adult Services,Residential Provision,07-Jan-20,"25,303.25",Mencap
Bolton MBC,Adult Services,Residential Provision,07-Jan-20,"25,255.00",Hyde  Lea
Bolton MBC,Adult Services,Contracted Services,16-Jan-20,"25,179.06",Lifeways Community Care
Bolton MBC,Adult Services,Contracted Services,16-Jan-20,"25,123.68",Lifeways Community Care
Bolton MBC,Adult Services,Residential Provision,09-Jan-20,"24,255.60",The Meadows
Bolton MBC,Adult Services,Contracted Services,02-Jan-20,"24,154.35",Synergy Homecare
Bolton MBC,Adult Services,Contracted Services,16-Jan-20,"24,013.99",Premier Care Limited
Bolton MBC,Adult Services,Residential Provision,07-Jan-20,"23,525.70",Beechville Care Home
Bolton MBC,Adult Services,Residential Provision,13-Jan-20,"23,162.86",Hollands Nursing Home
Bolton MBC,Adult Services,Contracted Services,16-Jan-20,"21,686.88",Lifeways Community Care
Bolton MBC,Adult Services,Contracted Services,30-Jan-20,"21,540.01",Synergy Homecare
Bolton MBC,Adult Services,Residential Provision,09-Jan-20,"21,486.40",Hartington House
Bolton MBC,Adult Services,Residential Provision,07-Jan-20,"21,465.00",Morgan Care Ltd
Bolton MBC,Adult Services,Contracted Services,27-Jan-20,"21,276.99",Lifeways Community Care
Bolton MBC,Adult Services,Contracted Services,27-Jan-20,"21,102.93",Lifeways Community Care
Bolton MBC,Adult Services,Residential Provision,07-Jan-20,"20,914.50",Craegmoor Arden College Priory
Bolton MBC,Adult Services,Nursing Provision,07-Jan-20,"20,122.20",Berkeley House
Bolton MBC,Adult Services,Residential Provision,07-Jan-20,"19,916.43",Glenhomes Care Home
Bolton MBC,Adult Services,Contracted Services,16-Jan-20,"19,815.98",Lifeways Community Care
Bolton MBC,Adult Services,Residential Provision,07-Jan-20,"19,748.30",Segal Gardens
Bolton MBC,Adult Services,Contracted Services,16-Jan-20,"19,724.73",Lifeways Community Care
Bolton MBC,Adult Services,Residential Provision,07-Jan-20,"19,550.00",Max Potential UK Limited
Bolton MBC,Adult Services,Contracted Services,16-Jan-20,"19,500.42",Lifeways Community Care
Bolton MBC,Adult Services,Contracted Services,16-Jan-20,"19,328.26",Lifeways Community Care
Bolton MBC,Adult Services,Contracted Services,27-Jan-20,"19,205.20",Greenacres
Bolton MBC,Adult Services,Contracted Services,27-Jan-20,"19,096.00",Companion Support Services Limited
Bolton MBC,Adult Services,Contracted Services,16-Jan-20,"18,618.18",Lifeways Community Care
Bolton MBC,Adult Services,Contracted Services,16-Jan-20,"18,181.06",Lifeways Community Care
Bolton MBC,Adult Services,Residential Provision,07-Jan-20,"17,850.00",Max Potential UK Limited
Bolton MBC,Adult Services,Residential Provision,07-Jan-20,"17,387.80",Brookvale
Bolton MBC,Adult Services,Residential Provision,09-Jan-20,"17,374.50",Parkview Nursing & Residential Home
Bolton MBC,Adult Services,Contracted Services - Bolton Care and Support Ltd,20-Jan-20,"17,362.42",Bolton Cares Limited#Internal Invoices
Bolton MBC,Adult Services,Residential Provision,07-Jan-20,"17,283.30",Millbrook Way - Heathwaite
Bolton MBC,Adult Services,Contracted Services,16-Jan-20,"17,040.78",Lifeways Community Care
Bolton MBC,Adult Services,Contracted Services,27-Jan-20,"16,871.08",Lifeways Community Care
Bolton MBC,Adult Services,Contracted Services,27-Jan-20,"16,829.68",Lifeways Community Care
Bolton MBC,Adult Services,Contracted Services,27-Jan-20,"16,714.80",Lifeways Community Care
Bolton MBC,Adult Services,Residential Provision,07-Jan-20,"16,609.28",Spennymoor Care Home Ltd
Bolton MBC,Adult Services,Contracted Services,16-Jan-20,"16,164.83",Lifeways Community Care
Bolton MBC,Adult Services,Contracted Services,27-Jan-20,"16,134.11",Lifeways Community Care
Bolton MBC,Adult Services,Contracted Services,16-Jan-20,"16,116.18",Lifeways Community Care
Bolton MBC,Adult Services,Contracted Services,27-Jan-20,"16,101.53",Lifeways Community Care
Bolton MBC,Adult Services,Contracted Services,16-Jan-20,"16,087.42",Lifeways Community Care
Bolton MBC,Adult Services,Contracted Services,09-Jan-20,"15,944.32",REDACTED - Personal Data
Bolton MBC,Adult Services,Residential Provision,07-Jan-20,"15,773.45",Kingarth
Bolton MBC,Adult Services,Contracted Services,16-Jan-20,"15,614.20",Lifeways Community Care
Bolton MBC,Adult Services,Contracted Services,27-Jan-20,"15,581.94",Lifeways Community Care
Bolton MBC,Adult Services,Residential Provision,07-Jan-20,"15,471.10",Queens Park View#Intelligent Care
Bolton MBC,Adult Services,Residential Provision,07-Jan-20,"15,064.25",Somerset House
Bolton MBC,Adult Services,Contracted Services,16-Jan-20,"14,936.55",Lifeways Community Care
Bolton MBC,Adult Services,Contracted Services,06-Jan-20,"14,849.88",Seva Line
Bolton MBC,Adult Services,Residential Provision,07-Jan-20,"14,767.18",Knightswood Residential Home
Bolton MBC,Adult Services,Contracted Services,27-Jan-20,"14,663.65",Seva Line
Bolton MBC,Adult Services,Residential Provision,07-Jan-20,"14,641.50",Abbeycliffe Residential Care Home
Bolton MBC,Adult Services,Contracted Services,27-Jan-20,"14,626.87",Lifeways Community Care
Bolton MBC,Adult Services,Residential Provision,07-Jan-20,"14,514.75",The David Lewis Centre
Bolton MBC,Adult Services,Contracted Services,16-Jan-20,"14,488.09",Creative Support Limited#3
Bolton MBC,Adult Services,Contracted Services,27-Jan-20,"14,305.77",Lifeways Community Care
Bolton MBC,Adult Services,Contracted Services,27-Jan-20,"14,284.17",Lifeways Community Care
Bolton MBC,Adult Services,Contracted Services,20-Jan-20,"14,238.00",SEA Recruitment Services Limited
Bolton MBC,Adult Services,Contracted Services,16-Jan-20,"14,136.89",Lifeways Community Care
Bolton MBC,Adult Services,Contracted Services,16-Jan-20,"14,094.36",Lifeways Community Care
Bolton MBC,Adult Services,Contracted Services,27-Jan-20,"14,008.32",Lifeways Community Care
Bolton MBC,Adult Services,Contracted Services,27-Jan-20,"13,929.25",Lifeways Community Care
Bolton MBC,Adult Services,Nursing Provision,07-Jan-20,"13,903.10",Radcliffe Meadows Nursing Home
Bolton MBC,Adult Services,Contracted Services,27-Jan-20,"13,724.62",Lifeways Community Care
Bolton MBC,Adult Services,Contracted Services,06-Jan-20,"13,662.79",Caring Alternatives Limited
Bolton MBC,Adult Services,Contracted Services,16-Jan-20,"13,527.79",Lifeways Community Care
Bolton MBC,Adult Services,Residential Provision,07-Jan-20,"13,474.15",Randomlight Ltd
Bolton MBC,Adult Services,Contracted Services,16-Jan-20,"13,190.74",Lifeways Community Care
Bolton MBC,Adult Services,Contracted Services,27-Jan-20,"13,050.64",Lifeways Community Care
Bolton MBC,Adult Services,Contracted Services,27-Jan-20,"12,903.69",Lifeways Community Care
Bolton MBC,Adult Services,Contracted Services,06-Jan-20,"12,671.41",Salvere Social Enterprise CIC
Bolton MBC,Adult Services,Contracted Services,30-Jan-20,"12,498.75",Building A New Direction#BAND#Family Action
Bolton MBC,Adult Services,Nursing Provision,07-Jan-20,"12,475.00",Rosebridge Court
Bolton MBC,Adult Services,Contracted Services,27-Jan-20,"12,341.16",Lifeways Community Care
Bolton MBC,Adult Services,Contracted Services,16-Jan-20,"12,071.93",Lifeways Community Care
Bolton MBC,Adult Services,Contracted Services,13-Jan-20,"12,035.61",Putting You First Ltd#Your Life Your Way
Bolton MBC,Adult Services,Contracted Services,27-Jan-20,"12,032.79",Lifeways Community Care
Bolton MBC,Adult Services,Contracted Services,13-Jan-20,"12,000.00",Paws For Kids#Endeavour Project
Bolton MBC,Adult Services,Residential Provision,07-Jan-20,"11,797.15",Ellershaw House Ltd
Bolton MBC,Adult Services,Residential Provision,07-Jan-20,"11,651.30",Calvert House
Bolton MBC,Adult Services,Partnership Staff,23-Jan-20,"11,300.00",Bolton NHS Foundation Trust#1
Bolton MBC,Adult Services,Contracted Services,30-Jan-20,"11,256.16",The Oaks#1
Bolton MBC,Adult Services,Contracted Services,30-Jan-20,"11,256.16",The Oaks#1
Bolton MBC,Adult Services,Contracted Services,30-Jan-20,"11,256.16",The Oaks#1
Bolton MBC,Adult Services,Residential Provision,07-Jan-20,"11,147.14",Abbey Healthcare (Farnworth) Limited
Bolton MBC,Adult Services,Residential Provision,07-Jan-20,"11,112.45",REDACTED - Personal Data
Bolton MBC,Adult Services,Contracted Services,16-Jan-20,"10,853.40",Lifeways Community Care
Bolton MBC,Adult Services,Residential Provision,07-Jan-20,"10,637.15",Hazelbrook Christian Nursing Home
Bolton MBC,Adult Services,Nursing Provision,07-Jan-20,"10,559.43",Lakeland View Care Centre
Bolton MBC,Adult Services,Contracted Services,27-Jan-20,"10,483.62",Premier Care Limited
Bolton MBC,Adult Services,Contracted Services,27-Jan-20,"10,361.86",Lifeways Community Care
Bolton MBC,Adult Services,Nursing Provision,07-Jan-20,"10,056.95",Belong Atherton#EPH
Bolton MBC,Adult Services,Contracted Services,16-Jan-20,"10,021.68",Lifeways Community Care
Bolton MBC,Adult Services,Contracted Services,27-Jan-20,"9,989.42",Lifeways Community Care
Bolton MBC,Adult Services,Residential Provision,07-Jan-20,"9,914.85",Starmount Villa Residential Care Home
Bolton MBC,Adult Services,Residential Provision,07-Jan-20,"9,761.00",Abbeydale Residential Care Home
Bolton MBC,Adult Services,Contracted Services,16-Jan-20,"9,759.98",Lifeways Community Care
Bolton MBC,Adult Services,Contracted Services,27-Jan-20,"9,734.88",Lifeways Community Care
Bolton MBC,Adult Services,Contracted Services,27-Jan-20,"9,656.01",Lifeways Community Care
Bolton MBC,Adult Services,Residential Provision,07-Jan-20,"9,653.95",Next Steps The Elms
Bolton MBC,Adult Services,Contracted Services,27-Jan-20,"9,461.92",Lifeways Community Care
Bolton MBC,Adult Services,Residential Provision,07-Jan-20,"9,392.50",HF Trust Limited Honeysuckle House
Bolton MBC,Adult Services,Residential Provision,07-Jan-20,"9,384.80",Hollybank Care Home
Bolton MBC,Adult Services,Contracted Services,20-Jan-20,"9,188.26",Mary Seacole House
Bolton MBC,Adult Services,Contracted Services,16-Jan-20,"9,103.92",Lifeways Community Care
Bolton MBC,Adult Services,Residential Provision,07-Jan-20,"9,064.08",The Chanters Care Home
Bolton MBC,Adult Services,Contracted Services,27-Jan-20,"9,046.56",Lifeways Community Care
Bolton MBC,Adult Services,Residential Provision,07-Jan-20,"9,025.00",Agricola House
Bolton MBC,Adult Services,Residential Provision,07-Jan-20,"8,888.57",Lyngate Residential Home#Lyngate Healthcare Ltd
Bolton MBC,Adult Services,Residential Provision,07-Jan-20,"8,838.00",Hollands Nursing Home
Bolton MBC,Adult Services,Contracted Services,30-Jan-20,"8,819.98",Human Support Group#Homecare Support
Bolton MBC,Adult Services,Residential Provision,07-Jan-20,"8,755.00",Ash Tree House
Bolton MBC,Adult Services,Residential Provision,07-Jan-20,"8,590.00",Bascombe Court
Bolton MBC,Adult Services,Residential Provision,07-Jan-20,"8,160.00",Blackrod House Limited
Bolton MBC,Adult Services,Residential Provision,07-Jan-20,"8,160.00",Mill View Care Home
Bolton MBC,Adult Services,Residential Provision,07-Jan-20,"8,143.65",Meadow Bank Nursing Home
Bolton MBC,Adult Services,Residential Provision,07-Jan-20,"7,915.25",Walshaw Hall & The Beeches R C H
Bolton MBC,Adult Services,Residential Provision,07-Jan-20,"7,860.00",Woodlands Court Residential Home
Bolton MBC,Adult Services,Contracted Services,13-Jan-20,"7,679.84",Your Life Your Support Limited
Bolton MBC,Adult Services,Contracted Services,27-Jan-20,"7,647.18",Lifeways Community Care
Bolton MBC,Adult Services,Residential Provision,07-Jan-20,"7,590.00",Riverside House
Bolton MBC,Adult Services,Contracted Services,27-Jan-20,"7,500.00",Asian Carers Forum
Bolton MBC,Adult Services,Residential Provision,07-Jan-20,"7,320.75",Cameron House Care Home
Bolton MBC,Adult Services,Residential Provision,07-Jan-20,"7,320.75",Half Acre Care Home
Bolton MBC,Adult Services,Contracted Services,02-Jan-20,"7,220.48",REDACTED - Personal Data
Bolton MBC,Adult Services,Contracted Services,16-Jan-20,"7,220.48",REDACTED - Personal Data
Bolton MBC,Adult Services,Residential Provision,07-Jan-20,"7,155.00",Bedford Residential Nursing Care Home
Bolton MBC,Adult Services,Residential Provision,07-Jan-20,"7,073.70",Bluebell Cottage Veedale
Bolton MBC,Adult Services,Residential Provision,07-Jan-20,"7,056.43",Abbey Healthcare (Farnworth) Limited
Bolton MBC,Adult Services,Residential Provision,07-Jan-20,"7,000.00",Take a Break with Choices
Bolton MBC,Adult Services,Contracted Services,27-Jan-20,"6,954.00",Oswald House
Bolton MBC,Adult Services,Residential Provision,07-Jan-20,"6,912.15",Church View
Bolton MBC,Adult Services,Residential Provision,07-Jan-20,"6,869.80",Options Vernon
Bolton MBC,Adult Services,Residential Provision,07-Jan-20,"6,681.80",Mary & Joseph House
Bolton MBC,Adult Services,Nursing Provision,07-Jan-20,"6,525.08",Meadowbank House
Bolton MBC,Adult Services,Residential Provision,07-Jan-20,"6,475.00",The Lodge Buckshaw Retirement Village#The Lodge
Bolton MBC,Adult Services,Nursing Provision,07-Jan-20,"6,436.50",Gillibrand Hall Nursing Home
Bolton MBC,Adult Services,Residential Provision,07-Jan-20,"6,301.40",Redbank Care Home#Payee Voyage North
Bolton MBC,Adult Services,Contracted Services,16-Jan-20,"6,113.04",Lifeways Community Care
Bolton MBC,Adult Services,Residential Provision,27-Jan-20,"5,997.49",Aarondale Care Home
Bolton MBC,Adult Services,Contracted Services,16-Jan-20,"5,955.04",Homecare For You Ltd#BLACKBURN
Bolton MBC,Adult Services,Contracted Services,06-Jan-20,"5,955.04",Keymen Associates Ltd#Mayday Homecare
Bolton MBC,Adult Services,Contracted Services,20-Jan-20,"5,955.04",Keymen Associates Ltd#Mayday Homecare
Bolton MBC,Adult Services,Nursing Provision,07-Jan-20,"5,945.50",Marley Court  Nursing & Residentail Home
Bolton MBC,Adult Services,Residential Provision,07-Jan-20,"5,824.40",Fosse Bank House
Bolton MBC,Adult Services,Other Agency/Contracted Services,30-Jan-20,"5,709.80",Shannon Court Care Centre
Bolton MBC,Adult Services,Residential Provision,07-Jan-20,"5,670.00",Ansar Projects
Bolton MBC,Adult Services,Residential Provision,07-Jan-20,"5,561.70",Lauren Court Residential Care Home
Bolton MBC,Adult Services,Residential Provision,07-Jan-20,"5,537.15",Mill View Care Home
Bolton MBC,Adult Services,Contracted Services,16-Jan-20,"5,377.18",Linden Walk
Bolton MBC,Adult Services,Clients Aids & Adaptations,13-Jan-20,"5,291.00",Tunstall Healthcare (UK) Limited
Bolton MBC,Adult Services,Contracted Services,02-Jan-20,"5,289.28",Linden Walk
Bolton MBC,Adult Services,Contracted Services,16-Jan-20,"5,177.20",Royal House
Bolton MBC,Adult Services,Contracted Services,13-Jan-20,"5,177.20",Royal House
Bolton MBC,Adult Services,Residential Provision,07-Jan-20,"5,140.00",Jah Jireh Nursing Home
Bolton MBC,Adult Services,Clients Aids & Adaptations,13-Jan-20,"5,089.00",Neater Solutions Ltd
Bolton MBC,Adult Services,Residential Provision,07-Jan-20,"5,081.30",Stanley Grange#1
Bolton MBC,Adult Services,Residential Provision,07-Jan-20,"4,969.35",The Orchard
Bolton MBC,Adult Services,Nursing Provision,07-Jan-20,"4,960.00",Carders Court Care Home
Bolton MBC,Adult Services,Residential Provision,07-Jan-20,"4,955.50",The Brandles
Bolton MBC,Adult Services,Residential Provision,07-Jan-20,"4,943.88",The Grange Residential Care Home
Bolton MBC,Adult Services,Residential Provision,07-Jan-20,"4,829.95",Browfield Residential Care Home
Bolton MBC,Adult Services,Contracted Services,13-Jan-20,"4,754.99",Keymen Associates Ltd#Mayday Homecare
Bolton MBC,Adult Services,Residential Provision,07-Jan-20,"4,750.00",Eden Mansions
Bolton MBC,Adult Services,Residential Provision,07-Jan-20,"4,750.00",Next Steps Kingscliffe
Bolton MBC,Adult Services,Residential Provision,07-Jan-20,"4,710.00",Mayflower Court Residential Home
Bolton MBC,Adult Services,Residential Provision,07-Jan-20,"4,667.40",Ecclesholme
Bolton MBC,Adult Services,Nursing Provision,07-Jan-20,"4,625.00",Moston Grange Nursing Home
Bolton MBC,Adult Services,Residential Provision,07-Jan-20,"4,495.00",Orchard House
Bolton MBC,Adult Services,Contracted Services,20-Jan-20,"4,466.28",SureCare Bolton#Sakinas Healthcare Limited
Bolton MBC,Adult Services,Residential Provision,07-Jan-20,"4,462.50",Max Potential UK Limited
Bolton MBC,Adult Services,Clients Aids & Adaptations,23-Jan-20,"4,350.00",The Key Safe Company#Supra UK Ltd
Bolton MBC,Adult Services,Residential Provision,07-Jan-20,"4,250.00",The Spires
Bolton MBC,Adult Services,Nursing Provision,07-Jan-20,"4,250.00",St Georges Care Home (Wigan) Ltd
Bolton MBC,Adult Services,Contracted Services - Rental Voids,06-Jan-20,"4,243.20",Inclusion Housing CIC Limited
Bolton MBC,Adult Services,Contracted Services - Rental Voids,30-Jan-20,"4,243.20",Inclusion Housing CIC Limited
Bolton MBC,Adult Services,Nursing Provision,07-Jan-20,"4,207.50",Crystal Hall Care Home
Bolton MBC,Adult Services,Contracted Services,13-Jan-20,"4,141.76",Royal House
Bolton MBC,Adult Services,Residential Provision,07-Jan-20,"4,134.20",Henshaws Society For The Blind
Bolton MBC,Adult Services,Residential Provision,09-Jan-20,"4,101.10",Park Lane Healthcare (Croston Park) Limited
Bolton MBC,Adult Services,Clients Aids & Adaptations,30-Jan-20,"4,080.00",Sumed International (UK) Limited
Bolton MBC,Adult Services,Contracted Services,30-Jan-20,"4,061.51",Human Support Group#Homecare Support
Bolton MBC,Adult Services,Nursing Provision,07-Jan-20,"4,034.40",Stocks Hall Care Homes Ltd#St Helens
Bolton MBC,Adult Services,Contracted Services,13-Jan-20,"4,005.00",Bridgewater Home Care
Bolton MBC,Adult Services,Residential Provision,07-Jan-20,"4,000.00",Pemberley House
Bolton MBC,Adult Services,Residential Provision,07-Jan-20,"3,915.03",Moorfields Care Home
Bolton MBC,Adult Services,Contracted Services,20-Jan-20,"3,870.73",Jewel Home Support Ltd
Bolton MBC,Adult Services,Clients Aids & Adaptations,16-Jan-20,"3,853.20",Prism Medical UK
Bolton MBC,Adult Services,Nursing Provision,07-Jan-20,"3,765.65",Larkhall Springs
Bolton MBC,Adult Services,Clients Aids & Adaptations,30-Jan-20,"3,765.00",Frontier Therapeutics
Bolton MBC,Adult Services,Residential Provision,06-Jan-20,"3,710.00",Birtenshaw
Bolton MBC,Adult Services,Contracted Services,09-Jan-20,"3,700.00",Equilibrium Healthcare Limited
Bolton MBC,Adult Services,Clients Aids & Adaptations,16-Jan-20,"3,680.25",Harvest Healthcare Limited
Bolton MBC,Adult Services,Contracted Services,06-Jan-20,"3,661.81",Premier Care Limited
Bolton MBC,Adult Services,Other Agency/Contracted Services,06-Jan-20,"3,651.90",Parkview Residential Home
Bolton MBC,Adult Services,Residential Provision,07-Jan-20,"3,640.00",McAuley Mount Care Home
Bolton MBC,Adult Services,Clients Aids & Adaptations,16-Jan-20,"3,612.03",Handicare Accessibility Ltd
Bolton MBC,Adult Services,Residential Provision,07-Jan-20,"3,586.65",Chorley Lodge Residential Care Home
Bolton MBC,Adult Services,Residential Provision,07-Jan-20,"3,570.00",Greenlands Residential Home Limited
Bolton MBC,Adult Services,Contracted Services,13-Jan-20,"3,552.64",Orchid Home Care Support
Bolton MBC,Adult Services,Contracted Services,27-Jan-20,"3,552.64",Orchid Home Care Support
Bolton MBC,Adult Services,Nursing Provision,07-Jan-20,"3,525.80",Deanwood Manor
Bolton MBC,Adult Services,Contracted Services,16-Jan-20,"3,494.06",Human Support Group#Homecare Support
Bolton MBC,Adult Services,Clients Aids & Adaptations,30-Jan-20,"3,475.00",GN Healthcare
Bolton MBC,Adult Services,Residential Provision,07-Jan-20,"3,468.50",Grove House#Grove House Home for Older People
Bolton MBC,Adult Services,Contracted Services,13-Jan-20,"3,395.84",Orchid Home Care Support
Bolton MBC,Adult Services,Contracted Services,27-Jan-20,"3,395.84",Orchid Home Care Support
Bolton MBC,Adult Services,Contracted Services,20-Jan-20,"3,394.31",SureCare Bolton#Sakinas Healthcare Limited
Bolton MBC,Adult Services,Residential Provision,07-Jan-20,"3,392.57",Lever Edge Care Home
Bolton MBC,Adult Services,Information and Communication Technology,16-Jan-20,"3,390.84",CM2000 Care Management#HAS Technology Limited
Bolton MBC,Adult Services,Contracted Services,16-Jan-20,"3,356.92",Human Support Group#Homecare Support
Bolton MBC,Adult Services,Clients Aids & Adaptations,23-Jan-20,"3,356.00",R82 UK Ltd
Bolton MBC,Adult Services,Residential Provision,07-Jan-20,"3,331.14",Kirby House
Bolton MBC,Adult Services,Clients Aids & Adaptations,30-Jan-20,"3,321.50",Bolton at Home Limited#HB Refunds & Invoices
Bolton MBC,Adult Services,Nursing Provision,07-Jan-20,"3,263.70",Kenyon Lodge
Bolton MBC,Adult Services,Information and Communication Technology,27-Jan-20,"3,250.08",CM2000 Care Management#HAS Technology Limited
Bolton MBC,Adult Services,Residential Provision,07-Jan-20,"3,250.00",Hillcrest Care Home
Bolton MBC,Adult Services,Contracted Services,20-Jan-20,"3,248.94",SureCare Bolton#Sakinas Healthcare Limited
Bolton MBC,Adult Services,Contracted Services,09-Jan-20,"3,201.76",Equilibrium Healthcare Limited
Bolton MBC,Adult Services,Nursing Provision,07-Jan-20,"3,161.50",Laburnum Court Care Home
Bolton MBC,Adult Services,Nursing Provision,07-Jan-20,"3,153.75",The Conifers Nursing Home
Bolton MBC,Adult Services,Residential Provision,07-Jan-20,"3,130.45",GHS Brookdale
Bolton MBC,Adult Services,Residential Provision,07-Jan-20,"3,090.36",West House Residential Home
Bolton MBC,Adult Services,Residential Provision,07-Jan-20,"3,078.80",Walshaw Hall Residential Home
Bolton MBC,Adult Services,Residential Provision,07-Jan-20,"3,075.65",Wentworth House Care Services Ltd
Bolton MBC,Adult Services,Nursing Provision,07-Jan-20,"3,072.50",Broadoak Manor Care Home
Bolton MBC,Adult Services,Residential Provision,07-Jan-20,"3,034.80",Whitefield House
Bolton MBC,Adult Services,Nursing Provision,07-Jan-20,"3,033.90",Mapleford Nursing Home
Bolton MBC,Adult Services,Residential Provision,07-Jan-20,"2,991.80",Jasmine Court
Bolton MBC,Adult Services,Residential Provision,07-Jan-20,"2,987.14",Parkview Nursing & Residential Home
Bolton MBC,Adult Services,Residential Provision,07-Jan-20,"2,985.90",Alma Green Residential Care Home
Bolton MBC,Adult Services,Nursing Provision,07-Jan-20,"2,972.75",Walton House Nursing Home
Bolton MBC,Adult Services,Residential Provision,07-Jan-20,"2,945.90",Hatfield Residential And Nursing Home
Bolton MBC,Adult Services,Nursing Provision,07-Jan-20,"2,943.15",Mewsbrook House
Bolton MBC,Adult Services,Residential Provision,07-Jan-20,"2,941.65",Highfield Hall
Bolton MBC,Adult Services,Contracted Services,13-Jan-20,"2,914.28",ICRIT Healthcare Limited
Bolton MBC,Adult Services,Contracted Services,16-Jan-20,"2,900.00",Bateman Street
Bolton MBC,Adult Services,Residential Provision,07-Jan-20,"2,899.05",Hazelwell Lodge
Bolton MBC,Adult Services,Contracted Services,16-Jan-20,"2,896.99",Dignity in Life Ltd#DIL Foundation
Bolton MBC,Adult Services,Nursing Provision,07-Jan-20,"2,895.00",Dundoran Nursing Home
Bolton MBC,Adult Services,Residential Provision,27-Jan-20,"2,894.75",REDACTED - Personal Data
Bolton MBC,Adult Services,Residential Provision,09-Jan-20,"2,865.71",Withins Residential Home
Bolton MBC,Adult Services,Residential Provision,07-Jan-20,"2,861.10",The Spinal Unit Action Group
Bolton MBC,Adult Services,Residential Provision,07-Jan-20,"2,860.25",Bank House Care Home#1
Bolton MBC,Adult Services,Residential Provision,07-Jan-20,"2,860.00",Ridgeway Lodge
Bolton MBC,Adult Services,Nursing Provision,07-Jan-20,"2,855.00",Westleigh Lodge#Westleigh Lodge Care Home
Bolton MBC,Adult Services,Residential Provision,07-Jan-20,"2,836.65",The Beeches Nursing Home
Bolton MBC,Adult Services,Residential Provision,07-Jan-20,"2,833.10",Gedling Village Care Home
Bolton MBC,Adult Services,Residential Provision,07-Jan-20,"2,832.90",Eachstep Blackley
Bolton MBC,Adult Services,Residential Provision,07-Jan-20,"2,766.80",The Grove Care Home
Bolton MBC,Adult Services,Partnership Staff,23-Jan-20,"2,765.08",Bolton NHS Foundation Trust#1
Bolton MBC,Adult Services,Partnership Staff,13-Jan-20,"2,765.08",Bolton NHS Foundation Trust#1
Bolton MBC,Adult Services,Residential Provision,07-Jan-20,"2,750.00",Brookfield Residential Care Home Ltd
Bolton MBC,Adult Services,Residential Provision,07-Jan-20,"2,739.30",Rivington Park Care Home
Bolton MBC,Adult Services,Residential Provision,07-Jan-20,"2,730.70",Orchard Court
Bolton MBC,Adult Services,Contracted Services,13-Jan-20,"2,664.48",Dignity in Life Ltd#DIL Foundation
Bolton MBC,Adult Services,Other Fees,06-Jan-20,"2,664.00",Interpreting & Translating Services
Bolton MBC,Adult Services,Residential Provision,07-Jan-20,"2,641.80",Coniston House Care Home
Bolton MBC,Adult Services,Residential Provision,07-Jan-20,"2,641.80",Dove Court Care Home
Bolton MBC,Adult Services,Residential Provision,07-Jan-20,"2,641.80",Highcliffe Residential Home#Teamcare Ltd
Bolton MBC,Adult Services,Residential Provision,07-Jan-20,"2,641.80",Westwood Residential Care Home
Bolton MBC,Adult Services,Residential Provision,07-Jan-20,"2,640.25",Bridge House Residential Care Home
Bolton MBC,Adult Services,Nursing Provision,07-Jan-20,"2,625.00",High Peak Lodge Residential and Nursing Home
Bolton MBC,Adult Services,Clients Aids & Adaptations,06-Jan-20,"2,592.00",R82 UK Ltd
Bolton MBC,Adult Services,Contracted Services,16-Jan-20,"2,588.60",Royal House
Bolton MBC,Adult Services,Contracted Services,13-Jan-20,"2,588.60",Royal House
Bolton MBC,Adult Services,Contracted Services,13-Jan-20,"2,588.60",Royal House
Bolton MBC,Adult Services,Residential Provision,07-Jan-20,"2,583.70",Beechfield Lodge#Anchor Trust
Bolton MBC,Adult Services,Residential Provision,07-Jan-20,"2,570.00",Ashton View Nursing Home
Bolton MBC,Adult Services,Contracted Services,27-Jan-20,"2,563.36",Limes Place
Bolton MBC,Adult Services,Residential Provision,07-Jan-20,"2,524.70",Richmond Care Home
Bolton MBC,Adult Services,Clients Aids & Adaptations,20-Jan-20,"2,520.00",Handicare Accessibility Ltd
Bolton MBC,Adult Services,Contracted Services - Bolton Care and Support Ltd,20-Jan-20,"2,518.80",Bolton Cares Limited#Internal Invoices
Bolton MBC,Adult Services,Residential Provision,07-Jan-20,"2,500.00",Cleggsworth Care Home Limited
Bolton MBC,Adult Services,Residential Provision,07-Jan-20,"2,500.00",Cressingham House
Bolton MBC,Adult Services,Other Fees,23-Jan-20,"2,470.00",HMCTS#Her Majestys Courts And Tribunals Service
Bolton MBC,Adult Services,Residential Provision,07-Jan-20,"2,440.25",Walshaw Hall Residential Home
Bolton MBC,Adult Services,Contracted Services,09-Jan-20,"2,382.78",Jewel Home Support Ltd
Bolton MBC,Adult Services,Other Fees,23-Jan-20,"2,376.00",Interpreting & Translating Services
Bolton MBC,Adult Services,Clients Aids & Adaptations,02-Jan-20,"2,353.61",Prism Medical UK
Bolton MBC,Adult Services,Residential Provision,07-Jan-20,"2,333.70",Broughton House#EPH
Bolton MBC,Adult Services,Residential Provision,09-Jan-20,"2,333.70",Worsley Lodge Nursing Home
Bolton MBC,Adult Services,Residential Provision,07-Jan-20,"2,332.75",Highgrove House#1
Bolton MBC,Adult Services,Residential Provision,07-Jan-20,"2,332.75",Nazareth Care Charitable Trust
Bolton MBC,Adult Services,Residential Provision,07-Jan-20,"2,332.75",Southview Lodge Residential Care Home
Bolton MBC,Adult Services,Clients Aids & Adaptations,09-Jan-20,"2,312.60",Smitcare Limited
Bolton MBC,Adult Services,Partnership Staff,16-Jan-20,"2,286.00",Greater Manchester Mental Health NHS Foundation Trust
Bolton MBC,Adult Services,Residential Provision,07-Jan-20,"2,274.25",Carr Bank House
Bolton MBC,Adult Services,Residential Provision,07-Jan-20,"2,267.60",Abbeydale Nursing Home
Bolton MBC,Adult Services,Clients Aids & Adaptations,30-Jan-20,"2,250.00",Mangar International Ltd
Bolton MBC,Adult Services,Clients Aids & Adaptations,09-Jan-20,"2,245.00",NRS Healthcare
Bolton MBC,Adult Services,Contracted Services,13-Jan-20,"2,220.40",Orchid Home Care Support
Bolton MBC,Adult Services,Contracted Services,27-Jan-20,"2,220.40",Orchid Home Care Support
Bolton MBC,Adult Services,Residential Provision,07-Jan-20,"2,205.00",The Hamiltons Care Home
Bolton MBC,Adult Services,Clients Aids & Adaptations,16-Jan-20,"2,148.00",Harvest Healthcare Limited
Bolton MBC,Adult Services,Other Agency/Contracted Services,16-Jan-20,"2,131.92",Blackrod House Limited
Bolton MBC,Adult Services,Partnership Staff,13-Jan-20,"2,122.00",Bolton NHS Foundation Trust#1
Bolton MBC,Adult Services,Partnership Staff,16-Jan-20,"2,100.00",Greater Manchester Mental Health NHS Foundation Trust
Bolton MBC,Adult Services,Residential Provision,07-Jan-20,"2,100.00",Take a Break with Choices
Bolton MBC,Adult Services,Residential Provision,07-Jan-20,"2,097.00",Thorncliffe Care Home
Bolton MBC,Adult Services,Clients Aids & Adaptations,16-Jan-20,"2,094.00",SimplyMed Limited
Bolton MBC,Adult Services,Contracted Services,27-Jan-20,"2,090.00",Bolton New Care Limited T/A Home Instead Senior Care
Bolton MBC,Adult Services,Residential Provision,07-Jan-20,"2,040.00",Four Seasons Nursing Home
Bolton MBC,Adult Services,Contracted Services,09-Jan-20,"2,025.20",Bolton New Care Limited T/A Home Instead Senior Care
Bolton MBC,Adult Services,Clients Aids & Adaptations,30-Jan-20,"2,019.64",Social Care Network Solutions Limited
Bolton MBC,Adult Services,Contracted Services,13-Jan-20,"2,004.00",Midshires Care Limited#t/a Helping Hands Home Care
Bolton MBC,Adult Services,Contracted Services,16-Jan-20,"1,998.36",Dignity in Life Ltd#DIL Foundation
Bolton MBC,Adult Services,Contracted Services,13-Jan-20,"1,998.36",Orchid Home Care Support
Bolton MBC,Adult Services,Contracted Services,13-Jan-20,"1,998.36",Orchid Home Care Support
Bolton MBC,Adult Services,Contracted Services,27-Jan-20,"1,998.36",Orchid Home Care Support
Bolton MBC,Adult Services,Contracted Services,30-Jan-20,"1,998.36",Orchid Home Care Support
Bolton MBC,Adult Services,Clients Aids & Adaptations,06-Jan-20,"1,950.00",Buddi Ltd
Bolton MBC,Adult Services,Clients Aids & Adaptations,09-Jan-20,"1,950.00",Medstrom Limited
Bolton MBC,Adult Services,Contracted Services,13-Jan-20,"1,939.42",SignHealth#The Deaf Health Charity
Bolton MBC,Adult Services,Clients Aids & Adaptations,16-Jan-20,"1,916.50",Aidapt Bathrooms Ltd
Bolton MBC,Adult Services,Contracted Services,27-Jan-20,"1,904.60",Bolton New Care Limited T/A Home Instead Senior Care
Bolton MBC,Adult Services,Contracted Services,13-Jan-20,"1,881.63",Dignity in Life Ltd#DIL Foundation
Bolton MBC,Adult Services,Partnership Staff,16-Jan-20,"1,846.04",Bolton NHS Foundation Trust#1
Bolton MBC,Adult Services,Contracted Services,13-Jan-20,"1,839.28",Diamond Care Services Ltd
Bolton MBC,Adult Services,Contracted Services,16-Jan-20,"1,776.32",Rings Homecare Service
Bolton MBC,Adult Services,Legal Fees,16-Jan-20,"1,725.00",St Johns Buildings Barristers Chamber
Bolton MBC,Adult Services,Contracted Services,13-Jan-20,"1,718.06",Midshires Care Limited#t/a Helping Hands Home Care
Bolton MBC,Adult Services,Contracted Services,09-Jan-20,"1,717.60",Bolton New Care Limited T/A Home Instead Senior Care
Bolton MBC,Adult Services,Clients Aids & Adaptations,30-Jan-20,"1,715.00",Prism Medical UK
Bolton MBC,Adult Services,Client Support Costs,09-Jan-20,"1,650.00",Relphs Funeral Service#Funeralcare
Bolton MBC,Adult Services,Client Support Costs,09-Jan-20,"1,650.00",Relphs Funeral Service#Funeralcare
Bolton MBC,Adult Services,Client Support Costs,09-Jan-20,"1,650.00",Relphs Funeral Service#Funeralcare
Bolton MBC,Adult Services,Client Support Costs,09-Jan-20,"1,650.00",Relphs Funeral Service#Funeralcare
Bolton MBC,Adult Services,Client Support Costs,23-Jan-20,"1,650.00",Relphs Funeral Service#Funeralcare
Bolton MBC,Adult Services,Contracted Services,27-Jan-20,"1,624.55",SignHealth#The Deaf Health Charity
Bolton MBC,Adult Services,Contracted Services,13-Jan-20,"1,617.72",Orchid Home Care Support
Bolton MBC,Adult Services,Contracted Services,30-Jan-20,"1,617.72",Orchid Home Care Support
Bolton MBC,Adult Services,Clients Aids & Adaptations,09-Jan-20,"1,599.90",SimplyMed Limited
Bolton MBC,Adult Services,Contracted Services,27-Jan-20,"1,594.42",SignHealth#The Deaf Health Charity
Bolton MBC,Adult Services,Nursing Provision,07-Jan-20,"1,566.43",Newlands Care Home
Bolton MBC,Adult Services,Contracted Services,13-Jan-20,"1,554.28",Orchid Home Care Support
Bolton MBC,Adult Services,Contracted Services,30-Jan-20,"1,554.28",Orchid Home Care Support
Bolton MBC,Adult Services,Contracted Services - Rental Voids,06-Jan-20,"1,503.58",Inclusion Housing CIC Limited
Bolton MBC,Adult Services,Clients Aids & Adaptations,02-Jan-20,"1,462.00",Aidapt Bathrooms Ltd
Bolton MBC,Adult Services,Clients Aids & Adaptations,30-Jan-20,"1,450.71",Prism Medical UK
Bolton MBC,Adult Services,Contracted Services,09-Jan-20,"1,448.18",Yasnad Ltd t/a Bluebird Care Bury
Bolton MBC,Adult Services,Contracted Services - Rental Voids,06-Jan-20,"1,414.40",Inclusion Housing CIC Limited
Bolton MBC,Adult Services,Contracted Services - Rental Voids,30-Jan-20,"1,414.40",Inclusion Housing CIC Limited
Bolton MBC,Adult Services,Contracted Services - Rental Voids,06-Jan-20,"1,400.33",Inclusion Housing CIC Limited
Bolton MBC,Adult Services,Contracted Services,16-Jan-20,"1,392.88",Yasnad Ltd t/a Bluebird Care Bury
Bolton MBC,Adult Services,Contracted Services,06-Jan-20,"1,354.91",Premier Care Limited
Bolton MBC,Adult Services,Clients Aids & Adaptations,30-Jan-20,"1,350.00",Sumed International (UK) Limited
Bolton MBC,Adult Services,Information and Communication Technology,16-Jan-20,"1,333.00",CM2000 Care Management#HAS Technology Limited
Bolton MBC,Adult Services,Information and Communication Technology,27-Jan-20,"1,333.00",CM2000 Care Management#HAS Technology Limited
Bolton MBC,Adult Services,Contracted Services,13-Jan-20,"1,332.24",Dignity in Life Ltd#DIL Foundation
Bolton MBC,Adult Services,Contracted Services,13-Jan-20,"1,320.00",LifeBridge ASEND
Bolton MBC,Adult Services,Contracted Services,06-Jan-20,"1,311.84",FCNA Homecare (First Call Nursing Agency)
Bolton MBC,Adult Services,Contracted Services,20-Jan-20,"1,304.54",SureCare Bolton#Sakinas Healthcare Limited
Bolton MBC,Adult Services,Clients Aids & Adaptations,09-Jan-20,"1,275.00",Sumed International (UK) Limited
Bolton MBC,Adult Services,Contracted Services,30-Jan-20,"1,274.35",RNHS Ltd
Bolton MBC,Adult Services,Contracted Services,16-Jan-20,"1,268.80",Dignity in Life Ltd#DIL Foundation
Bolton MBC,Adult Services,Contracted Services,13-Jan-20,"1,268.80",Orchid Home Care Support
Bolton MBC,Adult Services,Contracted Services,27-Jan-20,"1,268.80",Orchid Home Care Support
Bolton MBC,Adult Services,Contracted Services,20-Jan-20,"1,253.16",FCNA Homecare (First Call Nursing Agency)
Bolton MBC,Adult Services,Contracted Services,13-Jan-20,"1,221.08",Orchid Home Care Support
Bolton MBC,Adult Services,Contracted Services,27-Jan-20,"1,221.08",Orchid Home Care Support
Bolton MBC,Adult Services,Contracted Services,13-Jan-20,"1,213.29",Dignity in Life Ltd#DIL Foundation
Bolton MBC,Adult Services,Clients Aids & Adaptations,30-Jan-20,"1,209.10",Drive Devilbiss Healthcare Limited
Bolton MBC,Adult Services,Contracted Services,13-Jan-20,"1,205.36",Dignity in Life Ltd#DIL Foundation
Bolton MBC,Adult Services,Residential Provision,07-Jan-20,"1,186.11",Sandybrook House
Bolton MBC,Adult Services,Contracted Services,13-Jan-20,"1,174.10",Orchid Home Care Support
Bolton MBC,Adult Services,Sales -  Services,30-Jan-20,"1,170.10",REDACTED - Personal Data
Bolton MBC,Adult Services,Contracted Services,13-Jan-20,"1,164.80",Orchid Home Care Support
Bolton MBC,Adult Services,Contracted Services,27-Jan-20,"1,164.80",Orchid Home Care Support
Bolton MBC,Adult Services,Contracted Services,13-Jan-20,"1,163.84",Orchid Home Care Support
Bolton MBC,Adult Services,Contracted Services,27-Jan-20,"1,163.84",Orchid Home Care Support
Bolton MBC,Adult Services,Clients Aids & Adaptations,16-Jan-20,"1,159.99",Prism Medical UK
Bolton MBC,Adult Services,Contracted Services,13-Jan-20,"1,133.99",Orchid Home Care Support
Bolton MBC,Adult Services,Contracted Services,02-Jan-20,"1,123.80",Your Choice Homecare
Bolton MBC,Adult Services,Contracted Services,02-Jan-20,"1,120.77",Eden Care Support Services Ltd
Bolton MBC,Adult Services,Contracted Services,20-Jan-20,"1,110.20",Eden Care Support Services Ltd
Bolton MBC,Adult Services,Contracted Services,09-Jan-20,"1,110.20",ICRIT Healthcare Limited
Bolton MBC,Adult Services,Contracted Services,13-Jan-20,"1,110.20",Orchid Home Care Support
Bolton MBC,Adult Services,Contracted Services,13-Jan-20,"1,110.20",Orchid Home Care Support
Bolton MBC,Adult Services,Contracted Services,27-Jan-20,"1,110.20",Orchid Home Care Support
Bolton MBC,Adult Services,Contracted Services,27-Jan-20,"1,110.20",Orchid Home Care Support
Bolton MBC,Adult Services,Client Support Costs,23-Jan-20,"1,110.20",Astley Farm
Bolton MBC,Adult Services,Contracted Services,16-Jan-20,"1,074.52",Dignity in Life Ltd#DIL Foundation
Bolton MBC,Adult Services,Contracted Services,02-Jan-20,"1,062.62",Eden Care Support Services Ltd
Bolton MBC,Adult Services,Contracted Services,20-Jan-20,"1,062.62",Eden Care Support Services Ltd
Bolton MBC,Adult Services,Contracted Services,16-Jan-20,"1,050.73",Dignity in Life Ltd#DIL Foundation
Bolton MBC,Adult Services,Contracted Services,09-Jan-20,"1,046.76",ICRIT Healthcare Limited
Bolton MBC,Adult Services,Contracted Services,02-Jan-20,"1,041.53",RNHS Ltd
Bolton MBC,Adult Services,Contracted Services,16-Jan-20,"1,032.30",Your Choice Homecare
Bolton MBC,Adult Services,Contracted Services,06-Jan-20,"1,023.05",Your Care (UK) Limited
Bolton MBC,Adult Services,Nursing Provision,07-Jan-20,"1,018.66",Rivington View Nursing Home
Bolton MBC,Adult Services,Catering Provisions-Food,16-Jan-20,"1,015.64",Apetito Limited
Bolton MBC,Adult Services,Contracted Services,13-Jan-20,"1,015.04",Dignity in Life Ltd#DIL Foundation
Bolton MBC,Adult Services,Contracted Services,30-Jan-20,"1,015.00",Premier Care Limited
Bolton MBC,Adult Services,Residential Provision,07-Jan-20,"1,008.33",Southlands Residential Home#Southlands
Bolton MBC,Adult Services,Contracted Services,16-Jan-20,"1,001.74",Yasnad Ltd t/a Bluebird Care Bury
Bolton MBC,Adult Services,Clients Aids & Adaptations,30-Jan-20,"1,000.00",Select Medical Limited
Bolton MBC,Adult Services,Contracted Services,13-Jan-20,999.18,Dignity in Life Ltd#DIL Foundation
Bolton MBC,Adult Services,Contracted Services,02-Jan-20,999.18,Eden Care Support Services Ltd
Bolton MBC,Adult Services,Contracted Services,06-Jan-20,999.18,ICRIT Healthcare Limited
Bolton MBC,Adult Services,Clients Aids & Adaptations,06-Jan-20,993.51,Tom Gallagher Limited
Bolton MBC,Adult Services,Catering Provisions-Food,20-Jan-20,984.24,Apetito Limited
Bolton MBC,Adult Services,Client Support Costs,09-Jan-20,980,Diamond Home Support Bolton
Bolton MBC,Adult Services,Catering Provisions-Food,02-Jan-20,970.24,Apetito Limited
Bolton MBC,Adult Services,Clients Aids & Adaptations,20-Jan-20,962.8,Aidapt Bathrooms Ltd
Bolton MBC,Adult Services,Contracted Services,13-Jan-20,962.36,Orchid Home Care Support
Bolton MBC,Adult Services,Contracted Services,30-Jan-20,962.36,Orchid Home Care Support
Bolton MBC,Adult Services,Catering Provisions-Food,20-Jan-20,957.52,Apetito Limited
Bolton MBC,Adult Services,Contracted Services,16-Jan-20,955.57,Dignity in Life Ltd#DIL Foundation
Bolton MBC,Adult Services,Contracted Services,09-Jan-20,951.6,ICRIT Healthcare Limited
Bolton MBC,Adult Services,Contracted Services,30-Jan-20,951.6,ICRIT Healthcare Limited
Bolton MBC,Adult Services,Contracted Services,09-Jan-20,943.67,ICRIT Healthcare Limited
Bolton MBC,Adult Services,Contracted Services,27-Jan-20,941.4,Orchid Home Care Support
Bolton MBC,Adult Services,Clients Aids & Adaptations,09-Jan-20,930,Medstrom Limited
Bolton MBC,Adult Services,Client Support Costs,09-Jan-20,920,Diamond Home Support Bolton
Bolton MBC,Adult Services,Contracted Services,09-Jan-20,919.88,Dignity in Life Ltd#DIL Foundation
Bolton MBC,Adult Services,Contracted Services,13-Jan-20,914.17,Dignity in Life Ltd#DIL Foundation
Bolton MBC,Adult Services,Clients Aids & Adaptations,02-Jan-20,904,Enable Access Limited
Bolton MBC,Adult Services,Clients Aids & Adaptations,23-Jan-20,890.9,SimplyMed Limited
Bolton MBC,Adult Services,Clients Aids & Adaptations,30-Jan-20,890.1,Smitcare Limited
Bolton MBC,Adult Services,Contracted Services,13-Jan-20,888.16,Dignity in Life Ltd#DIL Foundation
Bolton MBC,Adult Services,Contracted Services,13-Jan-20,888.16,Dignity in Life Ltd#DIL Foundation
Bolton MBC,Adult Services,Contracted Services,13-Jan-20,888.16,Orchid Home Care Support
Bolton MBC,Adult Services,Contracted Services,30-Jan-20,888.16,Orchid Home Care Support
Bolton MBC,Adult Services,Contracted Services,13-Jan-20,888.16,Orchid Home Care Support
Bolton MBC,Adult Services,Contracted Services,30-Jan-20,888.16,Orchid Home Care Support
Bolton MBC,Adult Services,Contracted Services,13-Jan-20,880.23,Dignity in Life Ltd#DIL Foundation
Bolton MBC,Adult Services,Contracted Services,13-Jan-20,880,LifeBridge ASEND
Bolton MBC,Adult Services,Contracted Services,13-Jan-20,880,LifeBridge ASEND
Bolton MBC,Adult Services,Contracted Services,13-Jan-20,880,LifeBridge ASEND
Bolton MBC,Adult Services,Contracted Services,02-Jan-20,872.3,ICRIT Healthcare Limited
Bolton MBC,Adult Services,Contracted Services,27-Jan-20,872.16,Orchid Home Care Support
Bolton MBC,Adult Services,Clients Aids & Adaptations,16-Jan-20,868,Jenx Limited#Jiraffe
Bolton MBC,Adult Services,Clients Aids & Adaptations,02-Jan-20,848.77,Anthony Axford Ltd
Bolton MBC,Adult Services,Clients Aids & Adaptations,30-Jan-20,847.5,Ambre-Stone Limited
Bolton MBC,Adult Services,Catering Provisions-Food,13-Jan-20,844.13,Apetito Limited
Bolton MBC,Adult Services,Contracted Services,13-Jan-20,826.45,Homecare For You Ltd#BLACKBURN
Bolton MBC,Adult Services,Contracted Services,13-Jan-20,825,LifeBridge ASEND
Bolton MBC,Adult Services,Contracted Services,27-Jan-20,821.5,Bridgewater Home Care
Bolton MBC,Adult Services,Room Hire,09-Jan-20,812.5,Bolton Quaker Meeting#Society of Friends (Quakers)
Bolton MBC,Adult Services,Contracted Services,13-Jan-20,800.8,Orchid Home Care Support
Bolton MBC,Adult Services,Clients Aids & Adaptations,06-Jan-20,799.57,Tom Gallagher Limited
Bolton MBC,Adult Services,Clients Aids & Adaptations,16-Jan-20,799,Langham
Bolton MBC,Adult Services,Contracted Services,13-Jan-20,793,Dignity in Life Ltd#DIL Foundation
Bolton MBC,Adult Services,Catering Provisions-Food,30-Jan-20,789.66,Apetito Limited
Bolton MBC,Adult Services,Clients Aids & Adaptations,30-Jan-20,784.35,Westminster Scientific Limited T/A Labworld
Bolton MBC,Adult Services,Clients Aids & Adaptations,16-Jan-20,780,Roma Medical Aids Ltd
Bolton MBC,Adult Services,Catering Provisions-Food,09-Jan-20,776.82,Apetito Limited
Bolton MBC,Adult Services,Catering Provisions-Food,09-Jan-20,775.17,Apetito Limited
Bolton MBC,Adult Services,Client Support Costs,23-Jan-20,774.4,Astley Farm
Bolton MBC,Adult Services,Clients Aids & Adaptations,30-Jan-20,772.9,SimplyMed Limited
Bolton MBC,Adult Services,Contracted Services,13-Jan-20,770.8,Dignity in Life Ltd#DIL Foundation
Bolton MBC,Adult Services,Contracted Services,02-Jan-20,761.28,Eden Care Support Services Ltd
Bolton MBC,Adult Services,Contracted Services,02-Jan-20,758.06,Yasnad Ltd t/a Bluebird Care Bury
Bolton MBC,Adult Services,Catering Provisions-Food,02-Jan-20,738.8,Apetito Limited
Bolton MBC,Adult Services,Clients Aids & Adaptations,02-Jan-20,738,Quest 88 Limited
Bolton MBC,Adult Services,Clients Aids & Adaptations,02-Jan-20,738,Quest 88 Limited
Bolton MBC,Adult Services,Clients Aids & Adaptations,16-Jan-20,732,Rehabilitation Manufacturing Svs Ltd
Bolton MBC,Adult Services,Contracted Services,13-Jan-20,729.56,Dignity in Life Ltd#DIL Foundation
Bolton MBC,Adult Services,Catering Provisions-Food,09-Jan-20,723.89,Apetito Limited
Bolton MBC,Adult Services,Contracted Services,20-Jan-20,722.44,FCNA Homecare (First Call Nursing Agency)
Bolton MBC,Adult Services,Catering Provisions-Food,20-Jan-20,720.19,Apetito Limited
Bolton MBC,Adult Services,Clients Aids & Adaptations,23-Jan-20,712,Aidapt Bathrooms Ltd
Bolton MBC,Adult Services,Catering Provisions-Food,30-Jan-20,711.42,Apetito Limited
Bolton MBC,Adult Services,Contracted Services,16-Jan-20,710.85,Dignity in Life Ltd#DIL Foundation
Bolton MBC,Adult Services,Catering Provisions-Food,09-Jan-20,705.25,Apetito Limited
Bolton MBC,Adult Services,Clients Aids & Adaptations,20-Jan-20,703,Newlyn Healthcare Specialist Equipment Ltd
Bolton MBC,Adult Services,Clients Aids & Adaptations,30-Jan-20,701,Quest 88 Limited
Bolton MBC,Adult Services,Clients Aids & Adaptations,16-Jan-20,700,Kingkraft Ltd
Bolton MBC,Adult Services,Contracted Services,13-Jan-20,697.84,Dignity in Life Ltd#DIL Foundation
Bolton MBC,Adult Services,Contracted Services,02-Jan-20,697.84,Eden Care Support Services Ltd
Bolton MBC,Adult Services,Contracted Services,06-Jan-20,697.84,ICRIT Healthcare Limited
Bolton MBC,Adult Services,Conference Expenses,13-Jan-20,687.5,Pathways Associates CIC
Bolton MBC,Adult Services,Contracted Services,13-Jan-20,681.98,Orchid Home Care Support
Bolton MBC,Adult Services,Contracted Services,16-Jan-20,681.98,The Local Care Company (Bolton) Limited
Bolton MBC,Adult Services,Contracted Services,13-Jan-20,681.96,Orchid Home Care Support
Bolton MBC,Adult Services,Catering Provisions-Food,20-Jan-20,681.07,Apetito Limited
Bolton MBC,Adult Services,Contracted Services,06-Jan-20,678.56,FCNA Homecare (First Call Nursing Agency)
Bolton MBC,Adult Services,Clients Aids & Adaptations,30-Jan-20,676,Harvest Healthcare Limited
Bolton MBC,Adult Services,Clients Aids & Adaptations,02-Jan-20,676,Quest 88 Limited
Bolton MBC,Adult Services,Clients Aids & Adaptations,30-Jan-20,672,Prism Medical UK
Bolton MBC,Adult Services,Contracted Services,13-Jan-20,666.12,Dignity in Life Ltd#DIL Foundation
Bolton MBC,Adult Services,Contracted Services,27-Jan-20,666.12,Eden Care Support Services Ltd
Bolton MBC,Adult Services,Contracted Services,02-Jan-20,666.12,Eden Care Support Services Ltd
Bolton MBC,Adult Services,Contracted Services,27-Jan-20,666.12,Eden Care Support Services Ltd
Bolton MBC,Adult Services,Client Support Costs,09-Jan-20,665.86,Copperbeech Dog Kennels and Cattery
Bolton MBC,Adult Services,Clients Aids & Adaptations,30-Jan-20,663,Quest 88 Limited
Bolton MBC,Adult Services,Client Support Costs,20-Jan-20,661.26,Copperbeech Dog Kennels and Cattery
Bolton MBC,Adult Services,Clients Aids & Adaptations,16-Jan-20,661,Quest 88 Limited
Bolton MBC,Adult Services,Clients Aids & Adaptations,09-Jan-20,655.5,SimplyMed Limited
Bolton MBC,Adult Services,Contracted Services,13-Jan-20,655.34,Dignity in Life Ltd#DIL Foundation
Bolton MBC,Adult Services,Contracted Services,09-Jan-20,654.23,ICRIT Healthcare Limited
Bolton MBC,Adult Services,Clients Aids & Adaptations,30-Jan-20,652.5,Smitcare Limited
Bolton MBC,Adult Services,Contracted Services,13-Jan-20,651.88,Dignity in Life Ltd#DIL Foundation
Bolton MBC,Adult Services,Contracted Services,02-Jan-20,642.33,Eden Care Support Services Ltd
Bolton MBC,Adult Services,Contracted Services,13-Jan-20,634.4,Orchid Home Care Support
Bolton MBC,Adult Services,Contracted Services,27-Jan-20,634.4,Orchid Home Care Support
Bolton MBC,Adult Services,Contracted Services,13-Jan-20,628.88,Orchid Home Care Support
Bolton MBC,Adult Services,Contracted Services,30-Jan-20,628.88,Orchid Home Care Support
Bolton MBC,Adult Services,Catering Provisions-Food,30-Jan-20,624.81,Apetito Limited
Bolton MBC,Adult Services,Clients Aids & Adaptations,02-Jan-20,623.85,Prism Medical UK
Bolton MBC,Adult Services,Clients Aids & Adaptations,30-Jan-20,623,Quest 88 Limited
Bolton MBC,Adult Services,Contracted Services,16-Jan-20,622.51,Dignity in Life Ltd#DIL Foundation
Bolton MBC,Adult Services,Clients Aids & Adaptations,30-Jan-20,620,Medstrom Limited
Bolton MBC,Adult Services,Contracted Services,30-Jan-20,617.2,Making Space#4
Bolton MBC,Adult Services,Contracted Services,09-Jan-20,617.2,Making Space
Bolton MBC,Adult Services,Clients Aids & Adaptations,16-Jan-20,614.66,Prism Medical UK
Bolton MBC,Adult Services,Contracted Services,02-Jan-20,614.58,Eden Care Support Services Ltd
Bolton MBC,Adult Services,Catering Provisions-Food,06-Jan-20,612,Apetito Limited
Bolton MBC,Adult Services,Contracted Services,30-Jan-20,610.61,ICRIT Healthcare Limited
Bolton MBC,Adult Services,Contracted Services,13-Jan-20,610.61,Orchid Home Care Support
Bolton MBC,Adult Services,Catering Provisions-Food,23-Jan-20,610.55,Apetito Limited
Bolton MBC,Adult Services,Contracted Services,27-Jan-20,608.52,Sanctuary Support Living
Bolton MBC,Adult Services,Contracted Services,27-Jan-20,608.52,Sanctuary Support Living
Bolton MBC,Adult Services,Contracted Services,27-Jan-20,608.52,Sanctuary Support Living
Bolton MBC,Adult Services,Contracted Services,27-Jan-20,608.52,Sanctuary Support Living
Bolton MBC,Adult Services,Contracted Services,02-Jan-20,602.68,Eden Care Support Services Ltd
Bolton MBC,Adult Services,Contracted Services,20-Jan-20,602.68,Eden Care Support Services Ltd
Bolton MBC,Adult Services,Contracted Services,06-Jan-20,602.68,Recovery Support Ltd
Bolton MBC,Adult Services,Contracted Services,16-Jan-20,599.83,Dignity in Life Ltd#DIL Foundation
Bolton MBC,Adult Services,Catering Provisions-Food,20-Jan-20,597.39,Apetito Limited
Bolton MBC,Adult Services,Contracted Services,02-Jan-20,588,Grace Health and Social Care Limited
Bolton MBC,Adult Services,Contracted Services,06-Jan-20,588,Grace Health and Social Care Limited
Bolton MBC,Adult Services,Contracted Services,09-Jan-20,588,Grace Health and Social Care Limited
Bolton MBC,Adult Services,Contracted Services,16-Jan-20,588,Grace Health and Social Care Limited
Bolton MBC,Adult Services,Contracted Services,02-Jan-20,586.82,Eden Care Support Services Ltd
Bolton MBC,Adult Services,Contracted Services,27-Jan-20,586.82,Eden Care Support Services Ltd
Bolton MBC,Adult Services,Contracted Services,30-Jan-20,586.82,Orchid Home Care Support
Bolton MBC,Adult Services,Contracted Services,09-Jan-20,579.18,Trafalgar Court
Bolton MBC,Adult Services,Clients Aids & Adaptations,16-Jan-20,575.4,Bolton at Home Limited#HB Refunds & Invoices
Bolton MBC,Adult Services,Contracted Services,27-Jan-20,570.96,Eden Care Support Services Ltd
Bolton MBC,Adult Services,Contracted Services,27-Jan-20,570.96,Orchid Home Care Support
Bolton MBC,Adult Services,Contracted Services,02-Jan-20,570.68,Yasnad Ltd t/a Bluebird Care Bury
Bolton MBC,Adult Services,Clients Aids & Adaptations,02-Jan-20,568,Quest 88 Limited
Bolton MBC,Adult Services,Clients Aids & Adaptations,02-Jan-20,568,Quest 88 Limited
Bolton MBC,Adult Services,Clients Aids & Adaptations,30-Jan-20,568,Quest 88 Limited
Bolton MBC,Adult Services,Cleaning Materials,06-Jan-20,566.63,Care Corner Limited
Bolton MBC,Adult Services,Clients Aids & Adaptations,23-Jan-20,566,Drive Devilbiss Healthcare Limited
Bolton MBC,Adult Services,Clients Aids & Adaptations,09-Jan-20,554.8,Peter James Packaging Co
Bolton MBC,Adult Services,Clients Aids & Adaptations,02-Jan-20,554,NYMAS
Bolton MBC,Adult Services,Contracted Services,27-Jan-20,553.2,Sanctuary Support Living
Bolton MBC,Adult Services,Contracted Services,27-Jan-20,553.2,Sanctuary Support Living
Bolton MBC,Adult Services,Contracted Services,27-Jan-20,553.2,Sanctuary Support Living
Bolton MBC,Adult Services,Clients Aids & Adaptations,30-Jan-20,551,R82 UK Ltd
Bolton MBC,Adult Services,Clients Aids & Adaptations,09-Jan-20,539,Prism Medical UK
Bolton MBC,Adult Services,Contracted Services,13-Jan-20,537.51,SignHealth#The Deaf Health Charity
Bolton MBC,Adult Services,Contracted Services,02-Jan-20,536.59,Eden Care Support Services Ltd
Bolton MBC,Adult Services,Contracted Services,27-Jan-20,536.59,Eden Care Support Services Ltd
Bolton MBC,Adult Services,Contracted Services,02-Jan-20,536.1,Yasnad Ltd t/a Bluebird Care Bury
Bolton MBC,Adult Services,Contracted Services,27-Jan-20,517.84,SignHealth#The Deaf Health Charity
Bolton MBC,Adult Services,Contracted Services,30-Jan-20,516.63,Orchid Home Care Support
Bolton MBC,Adult Services,Clients Aids & Adaptations,09-Jan-20,514.12,NYMAS
Bolton MBC,Adult Services,Contracted Services,06-Jan-20,507.52,ICRIT Healthcare Limited
Bolton MBC,Adult Services,Contracted Services,13-Jan-20,507.52,Orchid Home Care Support
Bolton MBC,Adult Services,Contracted Services,27-Jan-20,507.52,Orchid Home Care Support
Bolton MBC,Adult Services,Contracted Services,09-Jan-20,506.25,Autistic Society Greater Manchester Area
Bolton MBC,Adult Services,Contracted Services,06-Jan-20,505.6,Your Care (UK) Limited
Bolton MBC,Adult Services,Clients Aids & Adaptations,20-Jan-20,505.02,Tom Gallagher Limited
Bolton MBC,Adult Services,Clients Aids & Adaptations,16-Jan-20,500.5,Aidapt Bathrooms Ltd
Bolton MBC,Bolton MBC Balance Sheet,CIS Deductions,16-Jan-20,851,H & C (Plant Hire) Limited
Bolton MBC,Bolton MBC Balance Sheet,CIS Deductions,16-Jan-20,851,H & C (Plant Hire) Limited
Bolton MBC,Bolton MBC Balance Sheet,CIS Deductions,21-Jan-20,829.06,HMRC#CIS
Bolton MBC,Bolton MBC Balance Sheet,CIS Deductions,16-Jan-20,610.7,Electricity North West Limited#United Utilities Electricity Services Ltd
Bolton MBC,Bolton MBC Balance Sheet,CIS Deductions,23-Jan-20,610.7,Electricity North West Limited#United Utilities Electricity Services Ltd
Bolton MBC,Bolton MBC Balance Sheet,CIS Deductions,23-Jan-20,604.32,J Dickinson & Sons (Horwich) Limited#2
Bolton MBC,Chief Executives,Contracted Services,27-Jan-20,"633,925.64",Robertson Facilities Management Limited
Bolton MBC,Chief Executives,Agilisys - Managed Service,13-Jan-20,"276,560.82",Agilisys Limited
Bolton MBC,Chief Executives,Work in Progress Additions,23-Jan-20,"197,191.04",Walter Carefoot & Sons Construction Limited
Bolton MBC,Chief Executives,Management Fee,16-Jan-20,"157,678.15",CH Bolton Limited
Bolton MBC,Chief Executives,Computer Software,30-Jan-20,"90,377.00",Agilisys Limited
Bolton MBC,Chief Executives,Agency Staff - Other,23-Jan-20,"67,283.54",Reed Specialist Recruitment Limited
Bolton MBC,Chief Executives,Computer Software,30-Jan-20,"65,865.36",Agilisys Limited
Bolton MBC,Chief Executives,Election Expenses,16-Jan-20,"58,764.78",Electoral Reform Services
Bolton MBC,Chief Executives,Other Fees,20-Jan-20,"57,015.00",Agilisys Limited
Bolton MBC,Chief Executives,Mobile Telephone Rental,30-Jan-20,"50,591.14",Vodafone Limited#1
Bolton MBC,Chief Executives,Vol Sect Grants - Misc,16-Jan-20,"50,000.00",Bolton CVS#Bolton Community & Voluntary Services
Bolton MBC,Chief Executives,Vehicle Purchase,16-Jan-20,"28,226.66",Tusker
Bolton MBC,Chief Executives,Marketing,16-Jan-20,"27,150.00",Panacea Software Ltd#Panacea Applications Ltd
Bolton MBC,Chief Executives,External Audit Fees,09-Jan-20,"23,312.00",Mazars LLP
Bolton MBC,Chief Executives,Postages Direct Costs,09-Jan-20,"22,209.13",Royal Mail Group Limited
Bolton MBC,Chief Executives,Computer Software,16-Jan-20,"22,200.00",Spacecraft Creative Limited
Bolton MBC,Chief Executives,Training Exps Tuition Fees,16-Jan-20,"19,150.00",North West Employers
Bolton MBC,Chief Executives,Other Fees,30-Jan-20,"19,137.90",Agilisys Limited
Bolton MBC,Chief Executives,Medical Referees Fees,20-Jan-20,"16,762.26",Health Management Limited
Bolton MBC,Chief Executives,Recruitment Advertising,20-Jan-20,"16,378.33",Wigan Council
Bolton MBC,Chief Executives,Disclosure Monitoring,16-Jan-20,"14,547.00",Disclosure and Barring Service
Bolton MBC,Chief Executives,Agilisys - Minor Project Works,27-Jan-20,"13,011.65",Agilisys Limited
Bolton MBC,Chief Executives,Office Equipment Maintenance,27-Jan-20,"12,014.24",Ricoh UK Limited
Bolton MBC,Chief Executives,Agilisys - Transformation,20-Jan-20,"11,847.94",Agilisys Limited
Bolton MBC,Chief Executives,General Subscriptions,16-Jan-20,"10,700.00",Local Government Information Unit
Bolton MBC,Chief Executives,Other Fees,30-Jan-20,"10,493.03",Agilisys Limited
Bolton MBC,Chief Executives,Election Expenses,16-Jan-20,"10,405.10",Royal Mail Group Limited
Bolton MBC,Chief Executives,Management Fees,20-Jan-20,"9,842.33",CH Bolton Limited
Bolton MBC,Chief Executives,General Subscriptions,30-Jan-20,"9,450.00",IEG4 Ltd
Bolton MBC,Chief Executives,Blue Badge Stationery,13-Jan-20,"9,000.00",Northgate Public Services (UK) Limited
Bolton MBC,Chief Executives,Work in Progress Additions,06-Jan-20,"8,795.27",Currie & Brown UK Limited
Bolton MBC,Chief Executives,Work in Progress Additions,30-Jan-20,"7,542.43",R Developments Limited
Bolton MBC,Chief Executives,Other Fees,02-Jan-20,"6,792.88",Allpay.net Limited
Bolton MBC,Chief Executives,Work in Progress Additions,06-Jan-20,"6,335.07",Currie & Brown UK Limited
Bolton MBC,Chief Executives,Other Fees,13-Jan-20,"6,331.96",Allpay.net Limited
Bolton MBC,Chief Executives,Computer Software Licences,20-Jan-20,"6,073.10",Thomson Reuters (Professional) UK Limited#Practical Law Company Limited
Bolton MBC,Chief Executives,Miscellaneous Grants,16-Jan-20,"5,394.50",Bolton Shopmobility#Community Care Options
Bolton MBC,Chief Executives,ICT Security,27-Jan-20,"5,330.00",Agilisys Limited
Bolton MBC,Chief Executives,ICT Security,27-Jan-20,"5,275.60",Agilisys Limited
Bolton MBC,Chief Executives,Legal Fees,23-Jan-20,"5,000.00",Colliers International Retail UK LLP
Bolton MBC,Chief Executives,Election Expenses,09-Jan-20,"4,789.00",Portakabin
Bolton MBC,Chief Executives,Photocopying Lease/Maintenance,13-Jan-20,"4,741.06",Agilisys Limited
Bolton MBC,Chief Executives,Miscellaneous Grants,16-Jan-20,"4,656.25",Bolton Community Transport & Furniture Services#bct & fs#BCTFS
Bolton MBC,Chief Executives,Election Expenses,20-Jan-20,"4,603.17",Electoral Reform Services
Bolton MBC,Chief Executives,Office Equipment Maintenance,23-Jan-20,"4,152.79",Ricoh UK Limited
Bolton MBC,Chief Executives,Work in Progress Additions,16-Jan-20,"4,074.20",Currie & Brown UK Limited
Bolton MBC,Chief Executives,Photocopying Lease/Maintenance,23-Jan-20,"3,941.37",Ricoh UK Limited
Bolton MBC,Chief Executives,Other Fees,30-Jan-20,"3,780.00",REDACTED - Personal Data
Bolton MBC,Chief Executives,Computer Software Licences,06-Jan-20,"3,679.32",Data Interchange PLC
Bolton MBC,Chief Executives,Election Expenses,20-Jan-20,"3,460.00",Event Solutions#Event Solutions Holdings Limited
Bolton MBC,Chief Executives,Election Expenses,20-Jan-20,"3,316.87",Royal Mail Group Limited
Bolton MBC,Chief Executives,Other Publications,16-Jan-20,"3,200.00",ParliamentToday
Bolton MBC,Chief Executives,Postages Direct Costs,16-Jan-20,"3,110.03",Royal Mail Group Limited
Bolton MBC,Chief Executives,Postages Direct Costs,30-Jan-20,"2,999.05",Royal Mail Group Limited
Bolton MBC,Chief Executives,Office Stationery,23-Jan-20,"2,998.00",House of Print (UK) Ltd
Bolton MBC,Chief Executives,Office Stationery,23-Jan-20,"2,998.00",House of Print (UK) Ltd
Bolton MBC,Chief Executives,Mobile Telephone Rental,16-Jan-20,"2,988.17",EE#Everything Everywhere
Bolton MBC,Chief Executives,Rent Of Buildings,30-Jan-20,"2,957.51",Bolton at Home Limited#HB Refunds & Invoices
Bolton MBC,Chief Executives,Election Expenses,09-Jan-20,"2,809.45",Royal Mail Group Limited
Bolton MBC,Chief Executives,Gas - General,30-Jan-20,"2,793.04",Scottish & Southern Energy plc#SSE
Bolton MBC,Chief Executives,Postages Direct Costs,16-Jan-20,"2,756.01",Royal Mail Group Limited
Bolton MBC,Chief Executives,Cycle Purchase,06-Jan-20,"2,747.23",Cyclescheme.co.uk
Bolton MBC,Chief Executives,Electricity - General,23-Jan-20,"2,700.00",Scottish & Southern Energy plc#SSE
Bolton MBC,Chief Executives,Postages Direct Costs,09-Jan-20,"2,289.40",Royal Mail Group Limited
Bolton MBC,Chief Executives,Computer Software,16-Jan-20,"2,130.00",Snap Surveys Ltd
Bolton MBC,Chief Executives,Computer Maintenance,20-Jan-20,"2,054.00",GovDelivery#Granicus
Bolton MBC,Chief Executives,Election Expenses,06-Jan-20,"1,875.00",Bolton Whites Hotel
Bolton MBC,Chief Executives,Training Exps Tuition Fees,27-Jan-20,"1,800.00",Bolton NHS Foundation Trust#1
Bolton MBC,Chief Executives,Other Fees,02-Jan-20,"1,793.31",Allpay.net Limited
Bolton MBC,Chief Executives,Legal Fees,13-Jan-20,"1,737.54",CH Bolton Limited
Bolton MBC,Chief Executives,Other Fees,13-Jan-20,"1,698.02",Allpay.net Limited
Bolton MBC,Chief Executives,Election Expenses,06-Jan-20,"1,645.32",Royal Mail Group Limited
Bolton MBC,Chief Executives,Blue Badge Stationery,09-Jan-20,"1,643.04",Allied Publicity Services (Manchester) Limited t/a APS Group
Bolton MBC,Chief Executives,Election Expenses,06-Jan-20,"1,641.60",Banner Group Limited
Bolton MBC,Chief Executives,Blue Badge Stationery,09-Jan-20,"1,441.44",Allied Publicity Services (Manchester) Limited t/a APS Group
Bolton MBC,Chief Executives,Other Fees,23-Jan-20,"1,426.00",Weightmans LLP
Bolton MBC,Chief Executives,Miscellaneous Grants,06-Jan-20,"1,414.33",Bolton Unemployed Workers Advice Centre
Bolton MBC,Chief Executives,Office Stationery,02-Jan-20,"1,362.00",Banner Group Limited
Bolton MBC,Chief Executives,Training Exps Tuition Fees,23-Jan-20,"1,337.51",BPP Professional Education Limited
Bolton MBC,Chief Executives,Marketing,06-Jan-20,"1,250.00",Impression (Bolton) Limited#1
Bolton MBC,Chief Executives,Consultancy Fees,02-Jan-20,"1,225.00",GDBR Consultancy Limited
Bolton MBC,Chief Executives,Marketing,30-Jan-20,"1,213.50",Impression (Bolton) Limited#1
Bolton MBC,Chief Executives,Other Fees,23-Jan-20,"1,207.00",Weightmans LLP
Bolton MBC,Chief Executives,Consultancy Fees,23-Jan-20,"1,200.00",GDBR Consultancy Limited
Bolton MBC,Chief Executives,Agency Staff - Other,20-Jan-20,"1,160.67",Venn Group Limited
Bolton MBC,Chief Executives,Office Stationery,20-Jan-20,"1,149.12",Premier Paper Group Limited
Bolton MBC,Chief Executives,Blue Badge Stationery,30-Jan-20,"1,141.92",Valtech Limited
Bolton MBC,Chief Executives,Mobile Telephone Purchase,30-Jan-20,"1,100.00",Vodafone Limited#1
Bolton MBC,Chief Executives,Election Expenses,09-Jan-20,"1,079.50",Shaw & Sons Limited
Bolton MBC,Chief Executives,Other Fees,23-Jan-20,"1,069.00",Weightmans LLP
Bolton MBC,Chief Executives,Election Expenses,20-Jan-20,"1,054.12",Royal Mail Group Limited
Bolton MBC,Chief Executives,Room Hire,09-Jan-20,"1,050.00",Farnworth Social Circle Cricket Club
Bolton MBC,Chief Executives,Consultancy Fees,02-Jan-20,"1,050.00",GDBR Consultancy Limited
Bolton MBC,Chief Executives,Consultancy Fees,16-Jan-20,"1,050.00",GDBR Consultancy Limited
Bolton MBC,Chief Executives,Marketing,30-Jan-20,"1,040.50",Impression (Bolton) Limited#1
Bolton MBC,Chief Executives,Training Exps Tuition Fees,30-Jan-20,"1,029.60",Informed Assessment Limited
Bolton MBC,Chief Executives,Training Exp - Ext Seminars,02-Jan-20,"1,000.00",Improvement & Development Agency for Local Government
Bolton MBC,Chief Executives,Consultancy Fees,09-Jan-20,"1,000.00",GDBR Consultancy Limited
Bolton MBC,Chief Executives,Election Expenses,09-Jan-20,"1,000.00",Bolton Community Leisure Limited
Bolton MBC,Chief Executives,Training Exp - In House,09-Jan-20,950,CLEAPSS
Bolton MBC,Chief Executives,Printing General,23-Jan-20,899,BHW Print Group Limited T/A Wallace Printers
Bolton MBC,Chief Executives,Computer Maintenance,16-Jan-20,828.26,Northgate Public Services (UK) Limited
Bolton MBC,Chief Executives,Training Exps Tuition Fees,30-Jan-20,825,The Training Co
Bolton MBC,Chief Executives,Other Fees,20-Jan-20,806,Weightmans LLP
Bolton MBC,Chief Executives,Other Fees,02-Jan-20,798.86,Allpay.net Limited
Bolton MBC,Chief Executives,Information and Communication Technology,30-Jan-20,790,Inform CPI Limited
Bolton MBC,Chief Executives,Training Exps Tuition Fees,13-Jan-20,765,Chartered Institute of Legal Executives
Bolton MBC,Chief Executives,Medical Examination Fees,13-Jan-20,750,Peritus Health Management Limited
Bolton MBC,Chief Executives,Training Exp - Ext Seminars,23-Jan-20,750,North West Employers
Bolton MBC,Chief Executives,Computer Software Licences,20-Jan-20,750,Iken Business Ltd
Bolton MBC,Chief Executives,Records Storage,30-Jan-20,746.58,Dataspace
Bolton MBC,Chief Executives,Office Stationery,16-Jan-20,743.5,Banner Group Limited
Bolton MBC,Chief Executives,Election Expenses,13-Jan-20,740,Holy Trinity Parish Church
Bolton MBC,Chief Executives,Other Fees,13-Jan-20,700.26,Allpay.net Limited
Bolton MBC,Chief Executives,Consultancy Fees,30-Jan-20,675,GDBR Consultancy Limited
Bolton MBC,Chief Executives,Electricity - General,23-Jan-20,666.27,British Gas Business
Bolton MBC,Chief Executives,Training Exps Tuition Fees,13-Jan-20,650,Bolton Under Fives Forum
Bolton MBC,Chief Executives,Training Exps Tuition Fees,13-Jan-20,650,Bolton Under Fives Forum
Bolton MBC,Chief Executives,Training Exps Tuition Fees,13-Jan-20,650,Bolton Under Fives Forum
Bolton MBC,Chief Executives,Information and Communication Technology,06-Jan-20,650,Inform CPI Limited
Bolton MBC,Chief Executives,Election Expenses,09-Jan-20,650,REDACTED - Personal Data
Bolton MBC,Chief Executives,Disclosure Monitoring,20-Jan-20,646.5,Complete Background Screening Limited#CBS
Bolton MBC,Chief Executives,Election Expenses,13-Jan-20,600,The Mandhata Hitvardhak Mandal#Krishna Temple
Bolton MBC,Chief Executives,Election Expenses,13-Jan-20,600,The Mandhata Hitvardhak Mandal#Krishna Temple
Bolton MBC,Chief Executives,Election Expenses,13-Jan-20,600,The Mandhata Hitvardhak Mandal#Krishna Temple
Bolton MBC,Chief Executives,Water Charges - Unmetered,23-Jan-20,579.32,Water Plus
Bolton MBC,Chief Executives,Agency Staff - Other,20-Jan-20,572,CD Chauffeur Hire
Bolton MBC,Chief Executives,Other Fees,13-Jan-20,540,The Learn Centre Ltd#Payroll Alliance
Bolton MBC,Chief Executives,Other Fees,30-Jan-20,532.79,Tusker
Bolton MBC,Chief Executives,Electricity - General,23-Jan-20,529.29,E.ON Energy#2
Bolton MBC,Chief Executives,Contracted Services,27-Jan-20,525.72,Hoot Credit Union Limited
Bolton MBC,Chief Executives,Election Expenses,09-Jan-20,525,Lostock Parish Centre#Lostock PCC Expense Account
Bolton MBC,Chief Executives,Refunds,20-Jan-20,500,The Mayors Charity Appeal#Mayors Charity Commitee
Bolton MBC,Childrens Services,Agency Staff - Other,16-Jan-20,"74,139.36",Reed Specialist Recruitment Limited
Bolton MBC,Childrens Services,Vol Assoc Grants - General,13-Jan-20,"35,561.43",Young Foundations Limited
Bolton MBC,Childrens Services,Vol Assoc Grants - General,13-Jan-20,"29,981.43",Young Foundations Limited
Bolton MBC,Childrens Services,Inter Agency Fees,02-Jan-20,"27,000.00",City Of Stoke On Trent#Stoke On Trent City Council
Bolton MBC,Childrens Services,Vol Assoc Grants - General,16-Jan-20,"26,571.43",Outbound Care Limited
Bolton MBC,Childrens Services,Vol Assoc Grants - General,09-Jan-20,"25,805.29",Bryn Melyn Care Ltd
Bolton MBC,Childrens Services,Vol Assoc Grants - General,09-Jan-20,"25,805.29",Bryn Melyn Care Ltd
Bolton MBC,Childrens Services,Vol Assoc Grants - General,09-Jan-20,"24,578.57",Proactive Care (Manchester) Ltd
Bolton MBC,Childrens Services,Vol Assoc Grants - General,23-Jan-20,"23,792.50",Next Stage 4 Life Limited
Bolton MBC,Childrens Services,Vol Assoc Grants - General,23-Jan-20,"23,471.43",Transitional Plus Care CIC Limited
Bolton MBC,Childrens Services,Vol Assoc Grants - General,16-Jan-20,"23,250.00",Cambian Childcare Limited
Bolton MBC,Childrens Services,Vol Assoc Grants - General,16-Jan-20,"23,250.00",Cambian Childcare Limited
Bolton MBC,Childrens Services,Vol Assoc Grants - General,16-Jan-20,"23,250.00",Cambian Childcare Limited
Bolton MBC,Childrens Services,Vol Assoc Grants - General,16-Jan-20,"23,250.00",Cambian Childcare Limited
Bolton MBC,Childrens Services,Vol Assoc Grants - General,27-Jan-20,"20,805.00",Peterborough City Council
Bolton MBC,Childrens Services,Operational Equipment Maint,30-Jan-20,"20,648.82",JISC Service Limited
Bolton MBC,Childrens Services,Vol Assoc Grants - General,23-Jan-20,"20,371.34",Next Stage 4 Life Limited
Bolton MBC,Childrens Services,Vol Assoc Grants - General,23-Jan-20,"20,371.34",Next Stage 4 Life Limited
Bolton MBC,Childrens Services,Vol Assoc Grants - General,27-Jan-20,"19,990.66",Companion Support Services Limited
Bolton MBC,Childrens Services,Vol Assoc Grants - General,16-Jan-20,"19,928.66",Cambian Childcare Limited
Bolton MBC,Childrens Services,Vol Assoc Grants - General,16-Jan-20,"19,928.66",Cambian Childcare Limited
Bolton MBC,Childrens Services,Vol Assoc Grants - General,20-Jan-20,"19,928.66",Social Care Services Group
Bolton MBC,Childrens Services,Vol Assoc Grants - General,30-Jan-20,"18,821.43",Sandcastle Care Limited
Bolton MBC,Childrens Services,Vol Assoc Grants - General,09-Jan-20,"17,714.29",4 Pure Heart Limited
Bolton MBC,Childrens Services,Vol Assoc Grants - General,09-Jan-20,"17,714.29",4 Pure Heart Limited
Bolton MBC,Childrens Services,Vol Assoc Grants - General,09-Jan-20,"17,670.00",The Together Trust
Bolton MBC,Childrens Services,Operational Equipment Purchase,16-Jan-20,"17,202.39",Agilisys Limited
Bolton MBC,Childrens Services,Vol Assoc Grants - General,30-Jan-20,"16,583.33",Bolton NHS Foundation Trust#1
Bolton MBC,Childrens Services,Budget Redirection,13-Jan-20,"16,240.00",Liquidlogic Limited
Bolton MBC,Childrens Services,Vol Assoc Grants - General,30-Jan-20,"16,164.28",Area Camden Limited
Bolton MBC,Childrens Services,Private Contracted Services,23-Jan-20,"15,600.00",ECM Education Consultants Ltd
Bolton MBC,Childrens Services,Other Fees,10-Jan-20,"15,065.00",HMCTS#Her Majestys Courts And Tribunals Service
Bolton MBC,Childrens Services,Contracted Services,16-Jan-20,"15,000.00",Bolton Childrens Opportunity Group#COG
Bolton MBC,Childrens Services,Vol Assoc Grants - General,16-Jan-20,"14,950.65",Cora Foundation
Bolton MBC,Childrens Services,Agency Staff - Other,16-Jan-20,"14,850.00",IRG Advisors LLP T/A Odgers Interim#Odgers Connect
Bolton MBC,Childrens Services,Vol Assoc Grants - General,13-Jan-20,"14,725.00",ROC Northwest Limited
Bolton MBC,Childrens Services,Private Contracted Services,09-Jan-20,"14,505.00",WCL UK Limited (Think IT)
Bolton MBC,Childrens Services,Agency Staff - Other,27-Jan-20,"12,747.80",Paradigm Professional Consultancy Limited
Bolton MBC,Childrens Services,Vol Assoc Grants - General,09-Jan-20,"12,710.00",Holistic Approach Limited
Bolton MBC,Childrens Services,Vol Assoc Grants - General,23-Jan-20,"12,710.00",Holistic Approach Limited
Bolton MBC,Childrens Services,Vol Assoc Grants - General,23-Jan-20,"12,710.00",Holistic Approach Limited
Bolton MBC,Childrens Services,Vol Assoc Grants - General,23-Jan-20,"12,710.00",Holistic Approach Limited
Bolton MBC,Childrens Services,Vol Assoc Grants - General,23-Jan-20,"12,710.00",Holistic Approach Limited
Bolton MBC,Childrens Services,Vol Assoc Grants - General,23-Jan-20,"12,710.00",Holistic Approach Limited
Bolton MBC,Childrens Services,Vol Assoc Grants - General,23-Jan-20,"12,710.00",Holistic Approach Limited
Bolton MBC,Childrens Services,Vol Assoc Grants - General,23-Jan-20,"12,710.00",Holistic Approach Limited
Bolton MBC,Childrens Services,Contracted Services,30-Jan-20,"12,500.00",Urban Outreach (Bolton)
Bolton MBC,Childrens Services,Agency Staff - Other,09-Jan-20,"12,423.00",Reed Specialist Recruitment Limited
Bolton MBC,Childrens Services,Other Fees,10-Jan-20,"12,200.00",HMCTS#Her Majestys Courts And Tribunals Service
Bolton MBC,Childrens Services,Vol Assoc Grants - General,23-Jan-20,"11,935.00",Holistic Approach Limited
Bolton MBC,Childrens Services,Agency Staff - Other,20-Jan-20,"11,736.20",Reed Specialist Recruitment Limited
Bolton MBC,Childrens Services,Client Support Costs,16-Jan-20,"11,637.00",Bolton NHS Foundation Trust#1
Bolton MBC,Childrens Services,Client Support Costs,30-Jan-20,"11,637.00",Bolton NHS Foundation Trust#1
Bolton MBC,Childrens Services,Vol Assoc Grants - General,20-Jan-20,"11,571.43",Pebbles Care Limited
Bolton MBC,Childrens Services,Computer Purchase,23-Jan-20,"10,975.95",Dell Corporation Ltd
Bolton MBC,Childrens Services,Vol Assoc Grants - General,13-Jan-20,"10,827.99",Care Today Childrens Services
Bolton MBC,Childrens Services,Agency Staff - Other,09-Jan-20,"10,706.00",Reed Specialist Recruitment Limited
Bolton MBC,Childrens Services,Agency Staff - Other,30-Jan-20,"10,706.00",Reed Specialist Recruitment Limited
Bolton MBC,Childrens Services,Other Fees,02-Jan-20,"10,000.00",Buttress Systems Limited#Policy Intelligence
Bolton MBC,Childrens Services,Contracted Services,20-Jan-20,"10,000.00",Bolton Lads & Girls Club
Bolton MBC,Childrens Services,Contracted Services,20-Jan-20,"9,200.00",Key PE Sports
Bolton MBC,Childrens Services,Vol Assoc Grants - General,09-Jan-20,"9,003.58",Vcare-24 Limited
Bolton MBC,Childrens Services,Vol Assoc Grants - General,09-Jan-20,"9,000.00",Vcare-24 Limited
Bolton MBC,Childrens Services,Agency Staff - Other,20-Jan-20,"8,900.00",Reed Specialist Recruitment Limited
Bolton MBC,Childrens Services,Agency Staff - Other,23-Jan-20,"8,564.80",Reed Specialist Recruitment Limited
Bolton MBC,Childrens Services,Agency Staff - Other,09-Jan-20,"8,560.00",Reed Specialist Recruitment Limited
Bolton MBC,Childrens Services,Vol Assoc Grants - General,09-Jan-20,"8,532.89",Vcare-24 Limited
Bolton MBC,Childrens Services,Agency Staff - Other,30-Jan-20,"8,480.00",Reed Specialist Recruitment Limited
Bolton MBC,Childrens Services,Other Fees,30-Jan-20,"7,883.00",HMCTS#Her Majestys Courts And Tribunals Service
Bolton MBC,Childrens Services,Vol Assoc Grants - General,09-Jan-20,"7,779.01",Vcare-24 Limited
Bolton MBC,Childrens Services,Vol Assoc Grants - General,23-Jan-20,"7,307.01",Perpetual Fostering Limited
Bolton MBC,Childrens Services,Agency Staff - Other,20-Jan-20,"7,246.30",Zen Talent Limited
Bolton MBC,Childrens Services,Contracted Services,30-Jan-20,"7,201.25",Fortalice Limited#Bolton Womens Aid
Bolton MBC,Childrens Services,Vol Assoc Grants - General,20-Jan-20,"7,063.57",Foster Careline Limited
Bolton MBC,Childrens Services,Agency Staff - Other,09-Jan-20,"6,770.00",IRG Advisors LLP T/A Odgers Interim#Odgers Connect
Bolton MBC,Childrens Services,Agency Staff - Other,30-Jan-20,"6,770.00",IRG Advisors LLP T/A Odgers Interim#Odgers Connect
Bolton MBC,Childrens Services,Vol Assoc Grants - General,16-Jan-20,"6,723.58",Vcare-24 Limited
Bolton MBC,Childrens Services,Vol Assoc Grants - General,16-Jan-20,"6,720.00",Vcare-24 Limited
Bolton MBC,Childrens Services,Private Contracted Services,09-Jan-20,"6,365.67",Liam Trippier School Improvement Ltd
Bolton MBC,Childrens Services,Vol Assoc Grants - General,16-Jan-20,"6,252.89",Vcare-24 Limited
Bolton MBC,Childrens Services,Contracted Services,30-Jan-20,"6,250.00",The Sycamore Project#Zacs Bar
Bolton MBC,Childrens Services,Vol Assoc Grants - General,16-Jan-20,"6,219.01",Vcare-24 Limited
Bolton MBC,Childrens Services,Agency Staff - Other,09-Jan-20,"5,850.00",Permanent Futures Limited
Bolton MBC,Childrens Services,Vol Assoc Grants - General,23-Jan-20,"5,646.43",Transitional Plus Care CIC Limited
Bolton MBC,Childrens Services,Vol Assoc Grants - General,20-Jan-20,"5,593.33",Fostering Solutions Ltd#2
Bolton MBC,Childrens Services,Agency Staff - Other,16-Jan-20,"5,550.00",Quickline Recruitment Limited
Bolton MBC,Childrens Services,Training Exps Tuition Fees,09-Jan-20,"5,447.30",Mark Finnis Training & Consultancy Limited
Bolton MBC,Childrens Services,Agency Staff - Other,23-Jan-20,"5,440.00",Reed Specialist Recruitment Limited
Bolton MBC,Childrens Services,Vol Assoc Grants - General,23-Jan-20,"5,412.90",Fostering Solutions Ltd#2
Bolton MBC,Childrens Services,Vol Assoc Grants - General,13-Jan-20,"5,403.30",Parallel Parents
Bolton MBC,Childrens Services,Vol Assoc Grants - General,16-Jan-20,"5,401.34",Birtenshaw
Bolton MBC,Childrens Services,Vol Assoc Grants - General,13-Jan-20,"5,393.69",Parallel Parents
Bolton MBC,Childrens Services,Agency Staff - Other,30-Jan-20,"5,350.00",Quickline Recruitment Limited
Bolton MBC,Childrens Services,Agency Staff - Other,20-Jan-20,"5,340.00",Reed Specialist Recruitment Limited
Bolton MBC,Childrens Services,Vol Assoc Grants - General,30-Jan-20,"5,314.33",Care4Children Residential Services Limited
Bolton MBC,Childrens Services,Vol Assoc Grants - General,30-Jan-20,"5,314.33",Care4Children Residential Services Limited
Bolton MBC,Childrens Services,Vol Assoc Grants - General,30-Jan-20,"5,314.33",Care4Children Residential Services Limited
Bolton MBC,Childrens Services,Water Charges - Metered,30-Jan-20,"5,283.74",Water Plus
Bolton MBC,Childrens Services,Client Support Costs,30-Jan-20,"5,250.00",Nisai Virtual Academy Limited
Bolton MBC,Childrens Services,Vol Assoc Grants - General,30-Jan-20,"5,142.90",Care4Children Residential Services Limited
Bolton MBC,Childrens Services,Vol Assoc Grants - General,30-Jan-20,"5,142.90",Care4Children Residential Services Limited
Bolton MBC,Childrens Services,ICT Service Requests,09-Jan-20,"5,094.00",Agilisys Limited
Bolton MBC,Childrens Services,Agency Staff - Other,20-Jan-20,"5,050.00",Reed Specialist Recruitment Limited
Bolton MBC,Childrens Services,Contracted Services,27-Jan-20,"5,000.00",Fortalice Limited#Bolton Womens Aid
Bolton MBC,Childrens Services,Training Exps Tuition Fees,09-Jan-20,"4,887.35",Mark Finnis Training & Consultancy Limited
Bolton MBC,Childrens Services,Operational Equipment Purchase,09-Jan-20,"4,857.33",Virgin Media Payments Limited#Virgin Media Business
Bolton MBC,Childrens Services,Vol Assoc Grants - General,23-Jan-20,"4,645.66",Perpetual Fostering Limited
Bolton MBC,Childrens Services,Client Support Costs,06-Jan-20,"4,645.64",The Leaving Care Team
Bolton MBC,Childrens Services,Other Fees,13-Jan-20,"4,600.00",Nurture-Psychology Service Ltd
Bolton MBC,Childrens Services,Inter Agency Fees,06-Jan-20,"4,500.01",Caritas Care Ltd
Bolton MBC,Childrens Services,Vol Assoc Grants - General,16-Jan-20,"4,500.00",Dynamic Childcare Limited
Bolton MBC,Childrens Services,Vol Assoc Grants - General,09-Jan-20,"4,477.50",By The Bridge North West
Bolton MBC,Childrens Services,Vol Assoc Grants - General,23-Jan-20,"4,428.66",UK Fostering Limited
Bolton MBC,Childrens Services,Vol Assoc Grants - General,27-Jan-20,"4,411.30",Foster Care Associates Limited
Bolton MBC,Childrens Services,Buildings Service Charge,09-Jan-20,"4,407.22",Smithills School
Bolton MBC,Childrens Services,Other Fees,23-Jan-20,"4,265.00",HMCTS#Her Majestys Courts And Tribunals Service
Bolton MBC,Childrens Services,Vol Assoc Grants - General,09-Jan-20,"4,225.00",Leaving Care Services Limited T/A Pathway
Bolton MBC,Childrens Services,Vol Assoc Grants - General,09-Jan-20,"4,157.72",Inspire Community Services Limited
Bolton MBC,Childrens Services,Vol Assoc Grants - General,09-Jan-20,"4,154.00",Inspire Community Services Limited
Bolton MBC,Childrens Services,Vol Assoc Grants - General,09-Jan-20,"4,142.36",Inspire Community Services Limited
Bolton MBC,Childrens Services,Other Fees,09-Jan-20,"4,140.00",Lesley Carr Associates
Bolton MBC,Childrens Services,Vol Assoc Grants - General,13-Jan-20,"4,101.30",By The Bridge North West
Bolton MBC,Childrens Services,Other Recruitment Expenditure,30-Jan-20,"4,100.00",Hamptons Resourcing
Bolton MBC,Childrens Services,Contracted Services,16-Jan-20,"4,000.00",JBL Education Limited
Bolton MBC,Childrens Services,Vol Assoc Grants - General,09-Jan-20,"3,969.00",By The Bridge North West
Bolton MBC,Childrens Services,Vol Assoc Grants - General,13-Jan-20,"3,945.99",Orange Grove Foster Care Limited
Bolton MBC,Childrens Services,Vol Assoc Grants - General,16-Jan-20,"3,945.99",Orange Grove Foster Care Limited
Bolton MBC,Childrens Services,Vol Assoc Grants - General,06-Jan-20,"3,941.65",Therapeutic Fostering Limited
Bolton MBC,Childrens Services,Other Fees,09-Jan-20,"3,900.00",Adoptionplus Limited
Bolton MBC,Childrens Services,Contracted Services,13-Jan-20,"3,900.00",ECM Education Consultants Ltd
Bolton MBC,Childrens Services,Vol Assoc Grants - General,13-Jan-20,"3,892.05",By The Bridge North West
Bolton MBC,Childrens Services,Vol Assoc Grants - General,13-Jan-20,"3,892.05",By The Bridge North West
Bolton MBC,Childrens Services,Vol Assoc Grants - General,13-Jan-20,"3,813.00",Parallel Parents
Bolton MBC,Childrens Services,Vol Assoc Grants - General,09-Jan-20,"3,813.00",Parallel Parents
Bolton MBC,Childrens Services,Vol Assoc Grants - General,09-Jan-20,"3,766.50",By The Bridge North West
Bolton MBC,Childrens Services,Vol Assoc Grants - General,09-Jan-20,"3,766.50",By The Bridge North West
Bolton MBC,Childrens Services,Vol Assoc Grants - General,06-Jan-20,"3,757.82",Therapeutic Fostering Limited
Bolton MBC,Childrens Services,Vol Assoc Grants - General,13-Jan-20,"3,748.52",Orange Grove Foster Care Limited
Bolton MBC,Childrens Services,Vol Assoc Grants - General,09-Jan-20,"3,742.29",Fusion Fostering Limited
Bolton MBC,Childrens Services,Other Fees,20-Jan-20,"3,734.00",Care Quality Commission#CQC
Bolton MBC,Childrens Services,Vol Assoc Grants - General,13-Jan-20,"3,724.65",Parallel Parents
Bolton MBC,Childrens Services,Vol Assoc Grants - General,16-Jan-20,"3,675.67",Fostering Solutions Ltd#2
Bolton MBC,Childrens Services,Vol Assoc Grants - General,16-Jan-20,"3,675.67",Fostering Solutions Ltd#2
Bolton MBC,Childrens Services,Vol Assoc Grants - General,27-Jan-20,"3,665.00",Fostering People Limited
Bolton MBC,Childrens Services,Vol Assoc Grants - General,23-Jan-20,"3,665.00",Fostering People Limited
Bolton MBC,Childrens Services,Legal Fees,23-Jan-20,"3,650.00",18 St John Street Chambers
Bolton MBC,Childrens Services,Contracted Services,23-Jan-20,"3,625.00",Remedi-Restorative Service
Bolton MBC,Childrens Services,Vol Assoc Grants - General,13-Jan-20,"3,622.35",Parallel Parents
Bolton MBC,Childrens Services,Vol Assoc Grants - General,16-Jan-20,"3,609.33",Fostering Solutions Ltd#2
Bolton MBC,Childrens Services,Vol Assoc Grants - General,23-Jan-20,"3,593.49",Foster Care Associates Limited
Bolton MBC,Childrens Services,Vol Assoc Grants - General,23-Jan-20,"3,587.01",UK Fostering Limited
Bolton MBC,Childrens Services,Vol Assoc Grants - General,13-Jan-20,"3,582.67",Family Care Fostering Limited
Bolton MBC,Childrens Services,Vol Assoc Grants - General,23-Jan-20,"3,565.93",Foster Care Associates Limited
Bolton MBC,Childrens Services,Vol Assoc Grants - General,23-Jan-20,"3,565.93",Foster Care Associates Limited
Bolton MBC,Childrens Services,Vol Assoc Grants - General,16-Jan-20,"3,565.31",Fostering Solutions Ltd#2
Bolton MBC,Childrens Services,Security Cash Collection,09-Jan-20,"3,565.00",Security Plus Limited
Bolton MBC,Childrens Services,Vol Assoc Grants - General,23-Jan-20,"3,557.10",Fostering Solutions Ltd#2
Bolton MBC,Childrens Services,Vol Assoc Grants - General,23-Jan-20,"3,557.10",Fostering Solutions Ltd#2
Bolton MBC,Childrens Services,Vol Assoc Grants - General,16-Jan-20,"3,534.00",Three Circles Fostering Ltd
Bolton MBC,Childrens Services,Vol Assoc Grants - General,16-Jan-20,"3,534.00",Three Circles Fostering Ltd
Bolton MBC,Childrens Services,Vol Assoc Grants - General,16-Jan-20,"3,528.73",Fostering Solutions Ltd#2
Bolton MBC,Childrens Services,Other Fees,23-Jan-20,"3,528.00",Stockport Psychology Services
Bolton MBC,Childrens Services,Vol Assoc Grants - General,06-Jan-20,"3,514.16",Therapeutic Fostering Limited
Bolton MBC,Childrens Services,Vol Assoc Grants - General,06-Jan-20,"3,505.17",Therapeutic Fostering Limited
Bolton MBC,Childrens Services,Vol Assoc Grants - General,27-Jan-20,"3,483.31",Fostering People Limited
Bolton MBC,Childrens Services,Vol Assoc Grants - General,23-Jan-20,"3,483.31",Fostering People Limited
Bolton MBC,Childrens Services,Vol Assoc Grants - General,16-Jan-20,"3,464.87",Fostering Solutions Ltd#2
Bolton MBC,Childrens Services,Vol Assoc Grants - General,23-Jan-20,"3,454.11",Compass Fostering North Limited
Bolton MBC,Childrens Services,Vol Assoc Grants - General,23-Jan-20,"3,414.90",Fostering Solutions Ltd#2
Bolton MBC,Childrens Services,Vol Assoc Grants - General,16-Jan-20,"3,410.00",Barnardo's
Bolton MBC,Childrens Services,Vol Assoc Grants - General,20-Jan-20,"3,387.63",Foster Care Associates Limited
Bolton MBC,Childrens Services,Vol Assoc Grants - General,23-Jan-20,"3,387.63",Foster Care Associates Limited
Bolton MBC,Childrens Services,Vol Assoc Grants - General,27-Jan-20,"3,387.63",Foster Care Associates Limited
Bolton MBC,Childrens Services,Vol Assoc Grants - General,27-Jan-20,"3,372.18",Fostering People Limited
Bolton MBC,Childrens Services,Vol Assoc Grants - General,23-Jan-20,"3,372.18",Fostering People Limited
Bolton MBC,Childrens Services,ECDL Courseware Hosting,30-Jan-20,"3,360.00",Lead-IT
Bolton MBC,Childrens Services,Vol Assoc Grants - General,23-Jan-20,"3,353.10",Fostering Solutions Ltd#2
Bolton MBC,Childrens Services,Other Fees,16-Jan-20,"3,337.40",Turton School#Turton High School
Bolton MBC,Childrens Services,Other Fees,16-Jan-20,"3,310.50",Barnardo's
Bolton MBC,Childrens Services,Vol Assoc Grants - General,13-Jan-20,"3,308.01",Olive Branch Fostering Limited
Bolton MBC,Childrens Services,Vol Assoc Grants - General,23-Jan-20,"3,308.01",Perpetual Fostering Limited
Bolton MBC,Childrens Services,Vol Assoc Grants - General,16-Jan-20,"3,307.70",Barnardo's
Bolton MBC,Childrens Services,Other Clients Services,20-Jan-20,"3,300.41",Click Travel Limited
Bolton MBC,Childrens Services,Vol Assoc Grants - General,27-Jan-20,"3,282.59",Fostering People Limited
Bolton MBC,Childrens Services,Vol Assoc Grants - General,23-Jan-20,"3,282.59",Fostering People Limited
Bolton MBC,Childrens Services,Vol Assoc Grants - General,23-Jan-20,"3,277.01",Compass Fostering North Limited
Bolton MBC,Childrens Services,Vol Assoc Grants - General,16-Jan-20,"3,260.54",Lorimer Fostering
Bolton MBC,Childrens Services,Miscellaneous Expenses,16-Jan-20,"3,250.00",JBL Education Limited
Bolton MBC,Childrens Services,Contracted Services,16-Jan-20,"3,250.00",Hardial Hayer
Bolton MBC,Childrens Services,Vol Assoc Grants - General,13-Jan-20,"3,242.40",Olive Branch Fostering Limited
Bolton MBC,Childrens Services,Vol Assoc Grants - General,13-Jan-20,"3,242.40",Olive Branch Fostering Limited
Bolton MBC,Childrens Services,Vol Assoc Grants - General,09-Jan-20,"3,210.70",Leaving Care Services Limited T/A Pathway
Bolton MBC,Childrens Services,Agency Staff - Other,30-Jan-20,"3,210.00",Quickline Recruitment Limited
Bolton MBC,Childrens Services,Other Fees,20-Jan-20,"3,200.00",REDACTED - Personal Data
Bolton MBC,Childrens Services,Vol Assoc Grants - General,13-Jan-20,"3,122.14",By The Bridge North West
Bolton MBC,Childrens Services,Vol Assoc Grants - General,13-Jan-20,"3,122.14",By The Bridge North West
Bolton MBC,Childrens Services,Contracted Services,02-Jan-20,"3,119.99",REDACTED - Personal Data
Bolton MBC,Childrens Services,Legal Fees,23-Jan-20,"3,100.00",18 St John Street Chambers
Bolton MBC,Childrens Services,Vol Assoc Grants - General,16-Jan-20,"3,077.99",Fostering Solutions Ltd#2
Bolton MBC,Childrens Services,Vol Assoc Grants - General,09-Jan-20,"3,021.43",By The Bridge North West
Bolton MBC,Childrens Services,Vol Assoc Grants - General,09-Jan-20,"3,021.43",By The Bridge North West
Bolton MBC,Childrens Services,Other Recruitment Expenditure,16-Jan-20,"3,000.00",Hamptons Resourcing
Bolton MBC,Childrens Services,Vol Assoc Grants - General,16-Jan-20,"2,987.11",Fostering Solutions Ltd#2
Bolton MBC,Childrens Services,Vol Assoc Grants - General,23-Jan-20,"2,978.70",Fostering Solutions Ltd#2
Bolton MBC,Childrens Services,Security Cash Collection,09-Jan-20,"2,932.50",Security Plus Limited
Bolton MBC,Childrens Services,Agency Staff - Other,06-Jan-20,"2,929.40",IPeople Solutions Limited T/A Action First
Bolton MBC,Childrens Services,Vol Assoc Grants - General,16-Jan-20,"2,924.09",Fostering Solutions Ltd#2
Bolton MBC,Childrens Services,Vol Assoc Grants - General,16-Jan-20,"2,924.09",Fostering Solutions Ltd#2
Bolton MBC,Childrens Services,Operational Equipment Purchase,23-Jan-20,"2,892.13",Virgin Media Payments Limited#Virgin Media Business
Bolton MBC,Childrens Services,Vol Assoc Grants - General,23-Jan-20,"2,890.76",Fostering Solutions Ltd#2
Bolton MBC,Childrens Services,Clients - Bus Fares,30-Jan-20,"2,888.34",Click Travel Limited
Bolton MBC,Childrens Services,Agency Staff - Other,16-Jan-20,"2,879.45",IPeople Solutions Limited T/A Action First
Bolton MBC,Childrens Services,Other Fees,23-Jan-20,"2,850.00",REDACTED - Personal Data
Bolton MBC,Childrens Services,Vol Assoc Grants - General,23-Jan-20,"2,829.76",Fostering Solutions Ltd#2
Bolton MBC,Childrens Services,Vol Assoc Grants - General,23-Jan-20,"2,829.76",Fostering Solutions Ltd#2
Bolton MBC,Childrens Services,Private Contracted Services,16-Jan-20,"2,750.00",Alison Burrowes Limited
Bolton MBC,Childrens Services,Contracted Services,23-Jan-20,"2,747.95",Bolton at Home Limited#HB Refunds & Invoices
Bolton MBC,Childrens Services,Other Fees,06-Jan-20,"2,700.00",J S Educational Ltd
Bolton MBC,Childrens Services,Operational Equipment Purchase,13-Jan-20,"2,667.00",GV Multi-Media
Bolton MBC,Childrens Services,Vol Assoc Grants - General,13-Jan-20,"2,650.00",Birtenshaw
Bolton MBC,Childrens Services,Agency Staff - Other,30-Jan-20,"2,650.00",Quickline Recruitment Limited
Bolton MBC,Childrens Services,Client Support Costs,06-Jan-20,"2,628.57",Indie 16 Limited
Bolton MBC,Childrens Services,Vol Assoc Grants - General,09-Jan-20,"2,568.35",Inspire Community Services Limited
Bolton MBC,Childrens Services,Vol Assoc Grants - General,09-Jan-20,"2,568.35",Inspire Community Services Limited
Bolton MBC,Childrens Services,Vol Assoc Grants - General,09-Jan-20,"2,568.35",Inspire Community Services Limited
Bolton MBC,Childrens Services,Legal Fees,20-Jan-20,"2,500.00",9 St John St Chambers
Bolton MBC,Childrens Services,Other Fees,16-Jan-20,"2,500.00",Tiptoes Child Therapy Services ( Ltd)
Bolton MBC,Childrens Services,Agency Staff - Other,06-Jan-20,"2,500.00",Ackerman Pierce Limited
Bolton MBC,Childrens Services,Contracted Services,02-Jan-20,"2,475.76",BOBTEACHES
Bolton MBC,Childrens Services,Client Support Costs,23-Jan-20,"2,464.29",Indie 16 Limited
Bolton MBC,Childrens Services,Vol Assoc Grants - General,13-Jan-20,"2,445.03",Fostering Solutions Ltd#2
Bolton MBC,Childrens Services,Contracted Services,02-Jan-20,"2,268.00",REDACTED - Personal Data
Bolton MBC,Childrens Services,Contract Cleaning,20-Jan-20,"2,210.00",Associated Cleaning Contractors#Champion Cleaning Services Ltd
Bolton MBC,Childrens Services,Management Fees,16-Jan-20,"2,187.50",Baltimore Consulting Limited
Bolton MBC,Childrens Services,Other Fees,20-Jan-20,"2,178.42",Advanced Childcare Assessments Ltd
Bolton MBC,Childrens Services,Other Clients Services,13-Jan-20,"2,137.90",Click Travel Limited
Bolton MBC,Childrens Services,Operational Equipment Purchase,09-Jan-20,"2,040.00",Electrical & Plumbing Contractor
Bolton MBC,Childrens Services,Legal Fees,20-Jan-20,"2,000.00",Central Chambers
Bolton MBC,Childrens Services,Contracted Services,09-Jan-20,"1,956.00",Servelec Youth Services Limited
Bolton MBC,Childrens Services,Agency Staff - Other,06-Jan-20,"1,950.00",Ackerman Pierce Limited
Bolton MBC,Childrens Services,Agency Staff - Other,06-Jan-20,"1,950.00",Ackerman Pierce Limited
Bolton MBC,Childrens Services,Other Fees,13-Jan-20,"1,920.00",ELM Psychological Services Limited
Bolton MBC,Childrens Services,Vol Assoc Grants - General,13-Jan-20,"1,897.12",Fostering Solutions Ltd#2
Bolton MBC,Childrens Services,Contracted Services,16-Jan-20,"1,890.00",REDACTED - Personal Data
Bolton MBC,Childrens Services,Vol Assoc Grants - General,13-Jan-20,"1,840.16",Fostering Solutions Ltd#2
Bolton MBC,Childrens Services,Operational Equipment Purchase,20-Jan-20,"1,806.00",GV Multi-Media
Bolton MBC,Childrens Services,Contracted Services,02-Jan-20,"1,801.00",REDACTED - Personal Data
Bolton MBC,Childrens Services,Other Fees,13-Jan-20,"1,800.56",REDACTED - Personal Data
Bolton MBC,Childrens Services,Private Contracted Services,09-Jan-20,"1,800.00",Liam Trippier School Improvement Ltd
Bolton MBC,Childrens Services,Other Fees,16-Jan-20,"1,765.35",Advanced Childcare Assessments Ltd
Bolton MBC,Childrens Services,Agency Staff - Other,20-Jan-20,"1,752.80",IPeople Solutions Limited T/A Action First
Bolton MBC,Childrens Services,Private Contracted Services,02-Jan-20,"1,750.00",Westhoughton High School
Bolton MBC,Childrens Services,Contracted Services,02-Jan-20,"1,740.25",REDACTED - Personal Data
Bolton MBC,Childrens Services,Contracted Services,23-Jan-20,"1,723.00",REDACTED - Personal Data
Bolton MBC,Childrens Services,Other Fees,02-Jan-20,"1,700.00",Child Trauma Intervention Services
Bolton MBC,Childrens Services,Agency Staff - Other,16-Jan-20,"1,700.00",Reed Specialist Recruitment Limited
Bolton MBC,Childrens Services,Agency Staff - Other,20-Jan-20,"1,700.00",Reed Specialist Recruitment Limited
Bolton MBC,Childrens Services,Vol Assoc Grants - General,16-Jan-20,"1,694.24",Fostering People Limited
Bolton MBC,Childrens Services,Miscellaneous Expenses,30-Jan-20,"1,687.73",SafeNet
Bolton MBC,Childrens Services,Contracted Services,02-Jan-20,"1,660.00",REDACTED - Personal Data
Bolton MBC,Childrens Services,Contracted Services,02-Jan-20,"1,637.50",Clitheroe Guitar Studio
Bolton MBC,Childrens Services,Miscellaneous Expenses,16-Jan-20,"1,633.29",SafeNet
Bolton MBC,Childrens Services,Agency Staff - Other,20-Jan-20,"1,628.00",Paradigm Professional Consultancy Limited
Bolton MBC,Childrens Services,Agency Staff - Other,20-Jan-20,"1,628.00",Paradigm Professional Consultancy Limited
Bolton MBC,Childrens Services,Other Fees,02-Jan-20,"1,600.00",J S Educational Ltd
Bolton MBC,Childrens Services,Agency Staff - Other,30-Jan-20,"1,580.00",Quickline Recruitment Limited
Bolton MBC,Childrens Services,Other Fees,16-Jan-20,"1,560.00",IntraQuest Limited#Intraquest Community CIC
Bolton MBC,Childrens Services,Contracted Services,02-Jan-20,"1,545.00",REDACTED - Personal Data
Bolton MBC,Childrens Services,Other Fees,16-Jan-20,"1,540.00",Tiptoes Child Therapy Services ( Ltd)
Bolton MBC,Childrens Services,Vol Assoc Grants - General,06-Jan-20,"1,536.31",Seashell Trust
Bolton MBC,Childrens Services,Marketing,13-Jan-20,"1,526.99",Statuo Limited
Bolton MBC,Childrens Services,Other Fees,13-Jan-20,"1,514.45",Bolton NHS Foundation Trust#1
Bolton MBC,Childrens Services,Other Fees,13-Jan-20,"1,508.33",Bolton NHS Foundation Trust#1
Bolton MBC,Childrens Services,Contracted Services,02-Jan-20,"1,462.50",REDACTED - Personal Data
Bolton MBC,Childrens Services,Contracted Services,16-Jan-20,"1,462.50",REDACTED - Personal Data
Bolton MBC,Childrens Services,Agency Staff - Other,20-Jan-20,"1,452.00",Paradigm Professional Consultancy Limited
Bolton MBC,Childrens Services,Other Fees,23-Jan-20,"1,433.10",Forensic Testing Service Ltd
Bolton MBC,Childrens Services,Contracted Services,02-Jan-20,"1,412.50",Baxter Rhodes Music
Bolton MBC,Childrens Services,Buildings Service Charge,09-Jan-20,"1,400.80",Smithills School
Bolton MBC,Childrens Services,Other Fees,13-Jan-20,"1,400.00",REDACTED - Personal Data
Bolton MBC,Childrens Services,Fees/Expenses Schools,30-Jan-20,"1,400.00",Jane Jones MES Limited
Bolton MBC,Childrens Services,Contracted Services,16-Jan-20,"1,394.10",BOBTEACHES
Bolton MBC,Childrens Services,Other Fees,16-Jan-20,"1,360.00",IntraQuest Limited#Intraquest Community CIC
Bolton MBC,Childrens Services,Agency Staff - Other,06-Jan-20,"1,360.00",Reed Specialist Recruitment Limited
Bolton MBC,Childrens Services,Agency Staff - Other,09-Jan-20,"1,360.00",Reed Specialist Recruitment Limited
Bolton MBC,Childrens Services,Agency Staff - Other,23-Jan-20,"1,360.00",Reed Specialist Recruitment Limited
Bolton MBC,Childrens Services,Agency Staff - Other,30-Jan-20,"1,360.00",Reed Specialist Recruitment Limited
Bolton MBC,Childrens Services,Other Fees,09-Jan-20,"1,350.00",Shannon Educational Psychology Ltd
Bolton MBC,Childrens Services,Other Fees,23-Jan-20,"1,350.00",Shannon Educational Psychology Ltd
Bolton MBC,Childrens Services,Agency Staff - Other,27-Jan-20,"1,334.05",Paradigm Professional Consultancy Limited
Bolton MBC,Childrens Services,Computer Purchase,09-Jan-20,"1,322.40",Stone Computers Limited
Bolton MBC,Childrens Services,Agency Staff - Other,20-Jan-20,"1,320.00",Paradigm Professional Consultancy Limited
Bolton MBC,Childrens Services,Other Fees,13-Jan-20,"1,312.64",Child in Mind Ltd
Bolton MBC,Childrens Services,Agency Staff - Other,27-Jan-20,"1,308.40",Paradigm Professional Consultancy Limited
Bolton MBC,Childrens Services,Agency Staff - Other,27-Jan-20,"1,307.50",Paradigm Professional Consultancy Limited
Bolton MBC,Childrens Services,Agency Staff - Other,20-Jan-20,"1,307.50",Paradigm Professional Consultancy Limited
Bolton MBC,Childrens Services,Contracted Services,23-Jan-20,"1,306.75",Clitheroe Guitar Studio
Bolton MBC,Childrens Services,Agency Staff - Other,27-Jan-20,"1,301.20",Paradigm Professional Consultancy Limited
Bolton MBC,Childrens Services,Agency Staff - Other,06-Jan-20,"1,295.00",Retinue Solutions
Bolton MBC,Childrens Services,Agency Staff - Other,06-Jan-20,"1,295.00",Retinue Solutions
Bolton MBC,Childrens Services,Clients - Taxi Fares,30-Jan-20,"1,282.00",Hastings Cars NW Limited
Bolton MBC,Childrens Services,Private Contracted Services,30-Jan-20,"1,260.00",Northern Education
Bolton MBC,Childrens Services,Agency Staff - Other,20-Jan-20,"1,258.00",Paradigm Professional Consultancy Limited
Bolton MBC,Childrens Services,Agency Staff - Other,20-Jan-20,"1,258.00",Paradigm Professional Consultancy Limited
Bolton MBC,Childrens Services,Miscellaneous Expenses,16-Jan-20,"1,250.00",JBL Education Limited
Bolton MBC,Childrens Services,Contracted Services,30-Jan-20,"1,250.00",Bolton Toy Library
Bolton MBC,Childrens Services,Contracted Services,02-Jan-20,"1,250.00",J Linden Limited
Bolton MBC,Childrens Services,Clients - Rail Fares,13-Jan-20,"1,234.39",Click Travel Limited
Bolton MBC,Childrens Services,Text Books,20-Jan-20,"1,226.67",Blackburn Cathedral
Bolton MBC,Childrens Services,Agency Staff - Other,06-Jan-20,"1,221.00",Charles Hunter Associates Limited
Bolton MBC,Childrens Services,Agency Staff - Other,16-Jan-20,"1,221.00",Charles Hunter Associates Limited
Bolton MBC,Childrens Services,Family Placement (Daycare),13-Jan-20,"1,220.00",REDACTED - Personal Data
Bolton MBC,Childrens Services,Family Placement (Daycare),13-Jan-20,"1,220.00",REDACTED - Personal Data
Bolton MBC,Childrens Services,Family Placement (Daycare),13-Jan-20,"1,220.00",REDACTED - Personal Data
Bolton MBC,Childrens Services,Private Contracted Services,09-Jan-20,"1,200.00",REDACTED - Personal Data
Bolton MBC,Childrens Services,Vol Assoc Grants - General,13-Jan-20,"1,182.50",Quayside Childcare Limited
Bolton MBC,Childrens Services,Family Placement (Daycare),20-Jan-20,"1,180.00",REDACTED - Personal Data
Bolton MBC,Childrens Services,Contracted Services,16-Jan-20,"1,179.00",REDACTED - Personal Data
Bolton MBC,Childrens Services,Other Fees,13-Jan-20,"1,127.00",REDACTED - Personal Data
Bolton MBC,Childrens Services,Other Fees,20-Jan-20,"1,120.00",Tiptoes Child Therapy Services ( Ltd)
Bolton MBC,Childrens Services,Contracted Services,16-Jan-20,"1,102.00",REDACTED - Personal Data
Bolton MBC,Childrens Services,Contracted Services,02-Jan-20,"1,080.00",REDACTED - Personal Data
Bolton MBC,Childrens Services,Other Fees,30-Jan-20,"1,075.00",HMCTS#Her Majestys Courts And Tribunals Service
Bolton MBC,Childrens Services,Contracted Services,30-Jan-20,"1,048.47",Child Action Northwest
Bolton MBC,Childrens Services,Other Fees,09-Jan-20,"1,040.00",REDACTED - Personal Data
Bolton MBC,Childrens Services,Contracted Services,02-Jan-20,"1,014.00",REDACTED - Personal Data
Bolton MBC,Childrens Services,Other Fees,16-Jan-20,"1,000.00",Mr Barton Maths Limited
Bolton MBC,Childrens Services,Contracted Services,16-Jan-20,"1,000.00",REDACTED - Personal Data
Bolton MBC,Childrens Services,Operational Equipment Purchase,09-Jan-20,992.75,Pearson Education Limited
Bolton MBC,Childrens Services,Contracted Services,16-Jan-20,991.8,REDACTED - Personal Data
Bolton MBC,Childrens Services,Contracted Services,02-Jan-20,988,REDACTED - Personal Data
Bolton MBC,Childrens Services,Other Fees,16-Jan-20,980,Tiptoes Child Therapy Services ( Ltd)
Bolton MBC,Childrens Services,Other Fees,16-Jan-20,980,Tiptoes Child Therapy Services ( Ltd)
Bolton MBC,Childrens Services,Operational Equipment Purchase,06-Jan-20,957,Elklan#Elklan Training Limited
Bolton MBC,Childrens Services,Vol Assoc Grants - General,16-Jan-20,956.25,Quayside Childcare Limited
Bolton MBC,Childrens Services,Other Fees,30-Jan-20,948.8,D A Languages Limited
Bolton MBC,Childrens Services,Contracted Services,16-Jan-20,915,Town Sports
Bolton MBC,Childrens Services,Family Placement (Daycare),13-Jan-20,914.85,REDACTED - Personal Data
Bolton MBC,Childrens Services,Legal Fees,23-Jan-20,906.25,St Johns Buildings Barristers Chamber
Bolton MBC,Childrens Services,Legal Fees,30-Jan-20,906.25,St Johns Buildings Barristers Chamber
Bolton MBC,Childrens Services,Printing General,27-Jan-20,900.29,Blackburn with Darwen Borough Council
Bolton MBC,Childrens Services,Marketing,16-Jan-20,899,NB Colour Print Limited
Bolton MBC,Childrens Services,Other Fees,13-Jan-20,891,REDACTED - Personal Data
Bolton MBC,Childrens Services,Contracted Services,06-Jan-20,885.5,REDACTED - Personal Data
Bolton MBC,Childrens Services,Legal Fees,20-Jan-20,885.42,St Johns Buildings Barristers Chamber
Bolton MBC,Childrens Services,Vol Assoc Grants - General,13-Jan-20,885,Access to Care Limited
Bolton MBC,Childrens Services,Vol Assoc Grants - General,13-Jan-20,885,Access to Care Limited
Bolton MBC,Childrens Services,Vol Assoc Grants - General,13-Jan-20,885,Access to Care Limited
Bolton MBC,Childrens Services,Vol Assoc Grants - General,13-Jan-20,885,Access to Care Limited
Bolton MBC,Childrens Services,Vol Assoc Grants - General,13-Jan-20,885,Access to Care Limited
Bolton MBC,Childrens Services,Vol Assoc Grants - General,13-Jan-20,885,Access to Care Limited
Bolton MBC,Childrens Services,Vol Assoc Grants - General,13-Jan-20,885,Access to Care Limited
Bolton MBC,Childrens Services,Vol Assoc Grants - General,13-Jan-20,885,Access to Care Limited
Bolton MBC,Childrens Services,Vol Assoc Grants - General,13-Jan-20,885,Access to Care Limited
Bolton MBC,Childrens Services,Vol Assoc Grants - General,13-Jan-20,885,Access to Care Limited
Bolton MBC,Childrens Services,Vol Assoc Grants - General,13-Jan-20,885,Access to Care Limited
Bolton MBC,Childrens Services,Computer Purchase,16-Jan-20,858,Stone Computers Limited
Bolton MBC,Childrens Services,Training Exps Tuition Fees,27-Jan-20,850,Manchester Metropolitan University
Bolton MBC,Childrens Services,Contracted Services,16-Jan-20,850,REDACTED - Personal Data
Bolton MBC,Childrens Services,Room Hire,16-Jan-20,842.27,Royal Exchange Theatre Company Limited
Bolton MBC,Childrens Services,Other Fees,20-Jan-20,840,Tiptoes Child Therapy Services ( Ltd)
Bolton MBC,Childrens Services,Contracted Services,16-Jan-20,825,REDACTED - Personal Data
Bolton MBC,Childrens Services,Other Fees,09-Jan-20,813,REDACTED - Personal Data
Bolton MBC,Childrens Services,Clients - Bus Fares,02-Jan-20,807.5,Diamond Bus North West Limited
Bolton MBC,Childrens Services,Marketing,16-Jan-20,800,Maze Media (2000) Limited
Bolton MBC,Childrens Services,Legal Fees,30-Jan-20,800,18 St John Street Chambers
Bolton MBC,Childrens Services,Other Fees,30-Jan-20,800,FFT Education Limited#FFT Literacy
Bolton MBC,Childrens Services,Other Fees,23-Jan-20,800,REDACTED - Personal Data
Bolton MBC,Childrens Services,Vol Assoc Grants - General,23-Jan-20,799,Fostering Limited
Bolton MBC,Childrens Services,Vol Assoc Grants - General,23-Jan-20,799,Fostering Limited
Bolton MBC,Childrens Services,Vol Assoc Grants - General,23-Jan-20,799,Fostering Limited
Bolton MBC,Childrens Services,Vol Assoc Grants - General,23-Jan-20,799,Fostering Limited
Bolton MBC,Childrens Services,Vol Assoc Grants - General,23-Jan-20,799,Fostering Limited
Bolton MBC,Childrens Services,Vol Assoc Grants - General,23-Jan-20,799,Fostering Limited
Bolton MBC,Childrens Services,Vol Assoc Grants - General,23-Jan-20,799,Fostering Limited
Bolton MBC,Childrens Services,Vol Assoc Grants - General,23-Jan-20,799,Fostering Limited
Bolton MBC,Childrens Services,Vol Assoc Grants - General,23-Jan-20,790,Fusion Care Limited
Bolton MBC,Childrens Services,Contracted Services,09-Jan-20,790,REDACTED - Personal Data
Bolton MBC,Childrens Services,Other Fees,27-Jan-20,789.8,Target Psychology Limited
Bolton MBC,Childrens Services,Legal Fees,23-Jan-20,781.25,St Johns Buildings Barristers Chamber
Bolton MBC,Childrens Services,Records Storage,13-Jan-20,778.49,Dataspace
Bolton MBC,Childrens Services,Agency Staff - Other,06-Jan-20,759,Charles Hunter Associates Limited
Bolton MBC,Childrens Services,Other Fees,16-Jan-20,758,Forensic Testing Service Ltd
Bolton MBC,Childrens Services,Contracted Services,16-Jan-20,751,REDACTED - Personal Data
Bolton MBC,Childrens Services,Training Exps Tuition Fees,20-Jan-20,750,Lucas Training & Consultancy Limited
Bolton MBC,Childrens Services,Legal Fees,20-Jan-20,750,9 St John St Chambers
Bolton MBC,Childrens Services,Legal Fees,06-Jan-20,750,Deans Court Chamber
Bolton MBC,Childrens Services,Private Contracted Services,30-Jan-20,750,REDACTED - Personal Data
Bolton MBC,Childrens Services,Contracted Services,02-Jan-20,746,REDACTED - Personal Data
Bolton MBC,Childrens Services,Vol Assoc Grants - General,13-Jan-20,741.02,Swiis Foster Care Limited
Bolton MBC,Childrens Services,Vol Assoc Grants - General,13-Jan-20,741.02,Swiis Foster Care Limited
Bolton MBC,Childrens Services,Vol Assoc Grants - General,16-Jan-20,741.02,Swiis Foster Care Limited
Bolton MBC,Childrens Services,Vol Assoc Grants - General,23-Jan-20,741.02,Swiis Foster Care Limited
Bolton MBC,Childrens Services,Other Fees,20-Jan-20,738,Advanced Childcare Assessments Ltd
Bolton MBC,Childrens Services,Client Support Costs,20-Jan-20,732.1,REDACTED - Personal Data
Bolton MBC,Childrens Services,Other Fees,16-Jan-20,730.5,Adoption Matters
Bolton MBC,Childrens Services,Vol Assoc Grants - General,23-Jan-20,727.5,Fostering Limited
Bolton MBC,Childrens Services,Vol Assoc Grants - General,23-Jan-20,727.5,Fostering Limited
Bolton MBC,Childrens Services,Vol Assoc Grants - General,23-Jan-20,727.5,Fostering Limited
Bolton MBC,Childrens Services,Vol Assoc Grants - General,23-Jan-20,727.5,Fostering Limited
Bolton MBC,Childrens Services,Vol Assoc Grants - General,23-Jan-20,727.5,Fostering Limited
Bolton MBC,Childrens Services,Vol Assoc Grants - General,23-Jan-20,727.5,Fostering Limited
Bolton MBC,Childrens Services,Vol Assoc Grants - General,23-Jan-20,727.5,Fostering Limited
Bolton MBC,Childrens Services,Vol Assoc Grants - General,23-Jan-20,727.5,Fostering Limited
Bolton MBC,Childrens Services,Room Hire,30-Jan-20,720,Blackburn with Darwen Borough Council
Bolton MBC,Childrens Services,Contracted Services,09-Jan-20,720,SureCare Bolton#Sakinas Healthcare Limited
Bolton MBC,Childrens Services,Other Fees,30-Jan-20,713,REDACTED - Personal Data
Bolton MBC,Childrens Services,Other Fees,16-Jan-20,701.03,Woodcocks Haworth & Nuttall
Bolton MBC,Childrens Services,Legal Fees,20-Jan-20,700,St Johns Buildings Barristers Chamber
Bolton MBC,Childrens Services,Legal Fees,20-Jan-20,700,St Johns Buildings Barristers Chamber
Bolton MBC,Childrens Services,Legal Fees,30-Jan-20,700,St Johns Buildings Barristers Chamber
Bolton MBC,Childrens Services,Other Fees,13-Jan-20,700,Tiptoes Child Therapy Services ( Ltd)
Bolton MBC,Childrens Services,Other Fees,27-Jan-20,700,Tiptoes Child Therapy Services ( Ltd)
Bolton MBC,Childrens Services,Other Fees,16-Jan-20,700,Tiptoes Child Therapy Services ( Ltd)
Bolton MBC,Childrens Services,Contracted Services,30-Jan-20,700,Westhoughton High School
Bolton MBC,Childrens Services,Private Contracted Services,09-Jan-20,700,Gateway Outsource Solutions Limited
Bolton MBC,Childrens Services,Private Contracted Services,16-Jan-20,700,Gateway Outsource Solutions Limited
Bolton MBC,Childrens Services,Office Furniture Purchase,06-Jan-20,682.79,Bolton Blinds t/a Blindtex
Bolton MBC,Childrens Services,Agency Staff - Other,02-Jan-20,680,Reed Specialist Recruitment Limited
Bolton MBC,Childrens Services,Contracted Services,13-Jan-20,675,McNally Music Tuition
Bolton MBC,Childrens Services,Agency Staff - Full-time,27-Jan-20,675,Axcis Education Recruitment
Bolton MBC,Childrens Services,Agency Staff - Full-time,09-Jan-20,675,Axcis Education Recruitment
Bolton MBC,Childrens Services,Agency Staff - Full-time,09-Jan-20,675,Axcis Education Recruitment
Bolton MBC,Childrens Services,Agency Staff - Full-time,09-Jan-20,675,Axcis Education Recruitment
Bolton MBC,Childrens Services,Agency Staff - Full-time,09-Jan-20,675,Axcis Education Recruitment
Bolton MBC,Childrens Services,Agency Staff - Full-time,13-Jan-20,675,Axcis Education Recruitment
Bolton MBC,Childrens Services,Agency Staff - Full-time,13-Jan-20,675,Axcis Education Recruitment
Bolton MBC,Childrens Services,Agency Staff - Full-time,16-Jan-20,675,Axcis Education Recruitment
Bolton MBC,Childrens Services,Agency Staff - Full-time,16-Jan-20,675,Axcis Education Recruitment
Bolton MBC,Childrens Services,Agency Staff - Full-time,27-Jan-20,675,Axcis Education Recruitment
Bolton MBC,Childrens Services,Other Fees,30-Jan-20,660,Blackburn with Darwen Borough Council
Bolton MBC,Childrens Services,Other Fees,16-Jan-20,660,The Child Psychology Service Limited
Bolton MBC,Childrens Services,Text Books,30-Jan-20,650,REDACTED - Personal Data
Bolton MBC,Childrens Services,Legal Fees,16-Jan-20,650,18 St John Street Chambers
Bolton MBC,Childrens Services,Legal Fees,23-Jan-20,650,18 St John Street Chambers
Bolton MBC,Childrens Services,Legal Fees,23-Jan-20,650,Deans Court Chamber
Bolton MBC,Childrens Services,Legal Fees,30-Jan-20,650,Nine St John Street
Bolton MBC,Childrens Services,Operational Equipment Purchase,09-Jan-20,649.48,BT plc
Bolton MBC,Childrens Services,Staff Training Courses,16-Jan-20,641,Bolton Whites Hotel
Bolton MBC,Childrens Services,Garden Maintenance,06-Jan-20,640,Associated Cleaning Contractors#Champion Cleaning Services Ltd
Bolton MBC,Childrens Services,Other Fees,16-Jan-20,640,IntraQuest Limited#Intraquest Community CIC
Bolton MBC,Childrens Services,Contracted Services,02-Jan-20,625.5,REDACTED - Personal Data
Bolton MBC,Childrens Services,Computer Purchase,16-Jan-20,624,Stone Computers Limited
Bolton MBC,Childrens Services,Other Fees,13-Jan-20,620.25,Russell Dicks Independent Psychotherapy Services
Bolton MBC,Childrens Services,Training Exps Tuition Fees,09-Jan-20,620,Toyota Material Handling UK Ltd
Bolton MBC,Childrens Services,Family Placement (Daycare),13-Jan-20,620,REDACTED - Personal Data
Bolton MBC,Childrens Services,Family Placement (Daycare),13-Jan-20,620,REDACTED - Personal Data
Bolton MBC,Childrens Services,Family Placement (Daycare),13-Jan-20,620,REDACTED - Personal Data
Bolton MBC,Childrens Services,Family Placement (Daycare),13-Jan-20,620,REDACTED - Personal Data
Bolton MBC,Childrens Services,Family Placement (Daycare),13-Jan-20,620,REDACTED - Personal Data
Bolton MBC,Childrens Services,Contracted Services,16-Jan-20,615,REDACTED - Personal Data
Bolton MBC,Childrens Services,Vol Assoc Grants - General,23-Jan-20,612.9,Outbound Care Limited
Bolton MBC,Childrens Services,Other Fees,16-Jan-20,611.11,Barnardo's
Bolton MBC,Childrens Services,Security Cash Collection,09-Jan-20,609.5,Security Plus Limited
Bolton MBC,Childrens Services,Contracted Services,16-Jan-20,600.75,REDACTED - Personal Data
Bolton MBC,Childrens Services,Legal Fees,20-Jan-20,600,St Johns Buildings Barristers Chamber
Bolton MBC,Childrens Services,Other Fees,20-Jan-20,600,Winston's Wish
Bolton MBC,Childrens Services,Fees/Expenses Schools,16-Jan-20,600,REDACTED - Personal Data
Bolton MBC,Childrens Services,Contracted Services,09-Jan-20,600,Alston Associates
Bolton MBC,Childrens Services,Private Contracted Services,23-Jan-20,600,ECM Education Consultants Ltd
Bolton MBC,Childrens Services,Operational Equipment Purchase,27-Jan-20,592.08,Virgin Media Payments Limited#Virgin Media Business
Bolton MBC,Childrens Services,Gas - General,30-Jan-20,588.16,Gazprom Marketing & Retail Limited#Gazprom Energy
Bolton MBC,Childrens Services,Other Fees,16-Jan-20,577,Therapeutic Approaches NW Limited
Bolton MBC,Childrens Services,Legal Fees,23-Jan-20,572.92,St Johns Buildings Barristers Chamber
Bolton MBC,Childrens Services,Other Fees,13-Jan-20,570.5,Engaging Therapy UK
Bolton MBC,Childrens Services,Other Fees,13-Jan-20,570.5,Engaging Therapy UK
Bolton MBC,Childrens Services,Other Fees,13-Jan-20,570,REDACTED - Personal Data
Bolton MBC,Childrens Services,Other Fees,23-Jan-20,566.8,Medicolegal North West
Bolton MBC,Childrens Services,Other Fees,16-Jan-20,560,Tiptoes Child Therapy Services ( Ltd)
Bolton MBC,Childrens Services,Other Fees,20-Jan-20,560,Tiptoes Child Therapy Services ( Ltd)
Bolton MBC,Childrens Services,Private Contracted Services,23-Jan-20,560,Gateway Outsource Solutions Limited
Bolton MBC,Childrens Services,Private Contracted Services,27-Jan-20,560,Gateway Outsource Solutions Limited
Bolton MBC,Childrens Services,Contracted Services,16-Jan-20,555,bikewithemma
Bolton MBC,Childrens Services,Other Fees,13-Jan-20,553.75,REDACTED - Personal Data
Bolton MBC,Childrens Services,C.C.T.V.,16-Jan-20,551,Impression (Bolton) Limited#1
Bolton MBC,Childrens Services,Text Books,09-Jan-20,550,Bolton Mission Victoria Hall#Bolton Methodist Mission
Bolton MBC,Childrens Services,Text Books,09-Jan-20,550,Bolton Mission Victoria Hall#Bolton Methodist Mission
Bolton MBC,Childrens Services,Text Books,09-Jan-20,550,Bolton Mission Victoria Hall#Bolton Methodist Mission
Bolton MBC,Childrens Services,Legal Fees,27-Jan-20,550,Central Chambers
Bolton MBC,Childrens Services,Other Fees,16-Jan-20,543,IntraQuest Limited#Intraquest Community CIC
Bolton MBC,Childrens Services,Day To Day Maintenance,30-Jan-20,538,Direct Civils Limited
Bolton MBC,Childrens Services,Other Fees,27-Jan-20,531.25,REDACTED - Personal Data
Bolton MBC,Childrens Services,Contracted Services,16-Jan-20,531,REDACTED - Personal Data
Bolton MBC,Childrens Services,Other Fees,13-Jan-20,522.48,Child in Mind Ltd
Bolton MBC,Childrens Services,Contracted Services,16-Jan-20,519,REDACTED - Personal Data
Bolton MBC,Childrens Services,Other Fees,16-Jan-20,517.99,REDACTED - Personal Data
Bolton MBC,Childrens Services,Security Cash Collection,09-Jan-20,517.5,Security Plus Limited
Bolton MBC,Childrens Services,Contracted Services,16-Jan-20,511.6,REDACTED - Personal Data
Bolton MBC,Childrens Services,Other Fees,30-Jan-20,510,REDACTED - Personal Data
Bolton MBC,Childrens Services,Other Fees,30-Jan-20,510,REDACTED - Personal Data
Bolton MBC,Childrens Services,Marketing,02-Jan-20,500,City Pages Limited
Bolton MBC,Childrens Services,Other Fees,20-Jan-20,500,Advanced Childcare Assessments Ltd
Bolton MBC,Childrens Services,Contracted Services,02-Jan-20,500,Hilary D'Arcy Education Ltd
Bolton MBC,Childrens Services,Contracted Services,30-Jan-20,500,Hilary D'Arcy Education Ltd
Bolton MBC,Childrens Services,Private Contracted Services,16-Jan-20,500,REDACTED - Personal Data
Bolton MBC,Development & Regeneration,Work in Progress Additions,16-Jan-20,"610,398.30",Willmott Dixon Construction Limited
Bolton MBC,Development & Regeneration,Contracted Services,23-Jan-20,"163,862.00",Bolton College#Was Community College
Bolton MBC,Development & Regeneration,Contracted Services,29-Jan-20,"102,869.90",Bolton Community Leisure Limited
Bolton MBC,Development & Regeneration,AGMA Archaeological Unit,06-Jan-20,"76,562.00",Manchester City Council
Bolton MBC,Development & Regeneration,Work in Progress Additions,23-Jan-20,"59,457.00",KPMG LLP
Bolton MBC,Development & Regeneration,Marketing,23-Jan-20,"29,250.00",Ice Aid
Bolton MBC,Development & Regeneration,Work in Progress Additions,16-Jan-20,"25,100.00",Keppie Massie Limited
Bolton MBC,Development & Regeneration,Work in Progress Additions,09-Jan-20,"18,000.00",Colliers International Retail UK LLP
Bolton MBC,Development & Regeneration,Work in Progress Additions,09-Jan-20,"15,860.00",Jones Lang LaSalle Limited
Bolton MBC,Development & Regeneration,Work in Progress Additions,09-Jan-20,"11,280.00",Jones Lang LaSalle Limited
Bolton MBC,Development & Regeneration,Work in Progress Additions,27-Jan-20,"11,017.18",Hardscape Products Ltd
Bolton MBC,Development & Regeneration,Computer Software Licences,20-Jan-20,"10,439.83",Aligned Assets Limited
Bolton MBC,Development & Regeneration,Work in Progress Additions,09-Jan-20,"8,550.00",Jones Lang LaSalle Limited
Bolton MBC,Development & Regeneration,Telephones -Direct Rental,16-Jan-20,"7,682.24",BT Plc
Bolton MBC,Development & Regeneration,Work in Progress Additions,09-Jan-20,"7,140.00",Jones Lang LaSalle Limited
Bolton MBC,Development & Regeneration,Other Fees,23-Jan-20,"6,823.00",Aecom Limited
Bolton MBC,Development & Regeneration,Agency Staff - Other,16-Jan-20,"6,455.42",Urban Vision Partnership Limited#GMGU
Bolton MBC,Development & Regeneration,Other Fees,16-Jan-20,"6,146.67",Arcadis (UK) Limited
Bolton MBC,Development & Regeneration,Other Fees,16-Jan-20,"5,551.00",Ove Arup & Partners Ltd
Bolton MBC,Development & Regeneration,Work in Progress Additions,30-Jan-20,"5,430.00",Jones Lang LaSalle Limited
Bolton MBC,Development & Regeneration,Other Fees,13-Jan-20,"5,148.44",DPP Planning#DPP One Limted
Bolton MBC,Development & Regeneration,Book Fund Expenditure,23-Jan-20,"4,630.50",Bureau van Dijk Electronic Publishing Limited
Bolton MBC,Development & Regeneration,Work in Progress Additions,09-Jan-20,"4,500.00",Knights Professional Services Ltd T/A Knights LLP Limited
Bolton MBC,Development & Regeneration,Book Fund Expenditure,23-Jan-20,"4,417.13",Bertram Trading Ltd#Bertram Library Services
Bolton MBC,Development & Regeneration,Marketing,16-Jan-20,"4,408.00",Event Services NW Limited
Bolton MBC,Development & Regeneration,Other Fees,30-Jan-20,"4,170.40",Aecom Limited
Bolton MBC,Development & Regeneration,LDF Costs,06-Jan-20,"4,050.00",Transport For Greater Manchester
Bolton MBC,Development & Regeneration,Work in Progress Additions,06-Jan-20,"4,000.00",Gardiner & Theobald LLP
Bolton MBC,Development & Regeneration,Work in Progress Additions,02-Jan-20,"3,800.00",Colliers International Property Consultants Limited
Bolton MBC,Development & Regeneration,Book Fund Expenditure,09-Jan-20,"3,715.00",Bibliotheca Ltd
Bolton MBC,Development & Regeneration,Consultancy Fees,09-Jan-20,"3,659.70",EKOS Consulting (UK) Limited#Ekosgen
Bolton MBC,Development & Regeneration,Other Fees,13-Jan-20,"3,521.25",Salford City Council
Bolton MBC,Development & Regeneration,Other Fees,13-Jan-20,"3,296.25",Salford City Council
Bolton MBC,Development & Regeneration,Marketing,23-Jan-20,"3,237.00",Showmed
Bolton MBC,Development & Regeneration,Marketing,16-Jan-20,"3,048.75",Showmed
Bolton MBC,Development & Regeneration,Other Fees,16-Jan-20,"3,000.00",Ove Arup & Partners Ltd
Bolton MBC,Development & Regeneration,Other Fees,09-Jan-20,"3,000.00",REDACTED - Personal Data
Bolton MBC,Development & Regeneration,Work in Progress Additions,27-Jan-20,"3,000.00",Miller Metcalfe Commercial
Bolton MBC,Development & Regeneration,Agency Staff - Other,13-Jan-20,"2,972.51",Urban Vision Partnership Limited#GMGU
Bolton MBC,Development & Regeneration,Marketing,16-Jan-20,"2,707.50",Showmed
Bolton MBC,Development & Regeneration,General Subscriptions,20-Jan-20,"2,700.00",Manchester City Council
Bolton MBC,Development & Regeneration,Day To Day Maintenance,30-Jan-20,"2,653.66",REDACTED - Personal Data
Bolton MBC,Development & Regeneration,Other Fees,30-Jan-20,"2,520.00",Aecom Limited
Bolton MBC,Development & Regeneration,Agency Staff - Other,23-Jan-20,"2,259.10",Optimum Professional Solutions Limited
Bolton MBC,Development & Regeneration,Agency Staff - Other,16-Jan-20,"2,255.00",Sonovate Limited#Park Avenue Recruitment Limited
Bolton MBC,Development & Regeneration,General Subscriptions,23-Jan-20,"2,150.00",Haymarket Media Group Ltd
Bolton MBC,Development & Regeneration,Other Fees,23-Jan-20,"2,000.00",REDACTED - Personal Data
Bolton MBC,Development & Regeneration,Work in Progress Additions,09-Jan-20,"2,000.00",AA Projects Limited
Bolton MBC,Development & Regeneration,Work in Progress Additions,09-Jan-20,"2,000.00",AA Projects Limited
Bolton MBC,Development & Regeneration,Exhibits Purchase,23-Jan-20,"1,910.00",Impression (Bolton) Limited#1
Bolton MBC,Development & Regeneration,Work in Progress Additions,30-Jan-20,"1,800.00",Knights Professional Services Ltd T/A Knights LLP Limited
Bolton MBC,Development & Regeneration,Work in Progress Additions,09-Jan-20,"1,750.00",Environmental Engineering Partnership Limited T/A E3P
Bolton MBC,Development & Regeneration,Agency Staff - Other,23-Jan-20,"1,502.20",Optimum Professional Solutions Limited
Bolton MBC,Development & Regeneration,CR Bal Hold A/c Exp,20-Jan-20,"1,237.50",REDACTED - Personal Data
Bolton MBC,Development & Regeneration,Other Fees,09-Jan-20,"1,232.00",REDACTED - Personal Data
Bolton MBC,Development & Regeneration,General Publicity,09-Jan-20,"1,200.00",Newsquest Media Group
Bolton MBC,Development & Regeneration,Marketing,16-Jan-20,"1,169.00",Event Services NW Limited
Bolton MBC,Development & Regeneration,General Publicity,09-Jan-20,"1,122.00",Newsquest Media Group
Bolton MBC,Development & Regeneration,Work in Progress Additions,20-Jan-20,"1,100.00",Survey Operations Limited
Bolton MBC,Development & Regeneration,Work in Progress Additions,02-Jan-20,"1,080.00",IDS Land Survey
Bolton MBC,Development & Regeneration,Radios,16-Jan-20,"1,020.00",Littoralis Limited
Bolton MBC,Development & Regeneration,General Publicity,09-Jan-20,"1,020.00",Newsquest Media Group
Bolton MBC,Development & Regeneration,General Publicity,09-Jan-20,"1,020.00",Newsquest Media Group
Bolton MBC,Development & Regeneration,Work in Progress Additions,09-Jan-20,"1,000.00",Miller Metcalfe Commercial
Bolton MBC,Development & Regeneration,Marketing,23-Jan-20,885.71,Fenceline (UK) Ltd
Bolton MBC,Development & Regeneration,General Publicity,02-Jan-20,867,Newsquest Media Group
Bolton MBC,Development & Regeneration,Marketing,27-Jan-20,850,Elmes Joinery
Bolton MBC,Development & Regeneration,Marketing,16-Jan-20,800,Ian Savage Media Limited
Bolton MBC,Development & Regeneration,Marketing,16-Jan-20,800,Ian Savage Media Limited
Bolton MBC,Development & Regeneration,Other Fees,23-Jan-20,800,Kennedys Law LLP
Bolton MBC,Development & Regeneration,Other Fees,09-Jan-20,769.3,Biotope Ltd
Bolton MBC,Development & Regeneration,General Publicity,09-Jan-20,765,Newsquest Media Group
Bolton MBC,Development & Regeneration,Computer Software Licences,20-Jan-20,725.51,PPL PRS Limited
Bolton MBC,Development & Regeneration,Rent of Storage Facilities,09-Jan-20,720,J W Whittle Limited#Store-Away Archive Facilities
Bolton MBC,Development & Regeneration,Rent of Storage Facilities,23-Jan-20,720,J W Whittle Limited#Store-Away Archive Facilities
Bolton MBC,Development & Regeneration,Marketing,23-Jan-20,680,Elmes Joinery
Bolton MBC,Development & Regeneration,Legal Fees,16-Jan-20,675,Kings Chamber
Bolton MBC,Development & Regeneration,Book Fund Expenditure,30-Jan-20,671.66,Ulverscroft Large Print Books Limited#Ulverscroft Limited
Bolton MBC,Development & Regeneration,Rent of Storage Facilities,09-Jan-20,661.44,Adams Selfstore
Bolton MBC,Development & Regeneration,Rent of Storage Facilities,30-Jan-20,661.44,Adams Selfstore
Bolton MBC,Development & Regeneration,Other Fees,09-Jan-20,643,REDACTED - Personal Data
Bolton MBC,Development & Regeneration,Work in Progress Additions,06-Jan-20,622,Aegis Services Limited
Bolton MBC,Development & Regeneration,Work in Progress Additions,30-Jan-20,622,Aegis Services Limited
Bolton MBC,Development & Regeneration,Goods for Resale,20-Jan-20,600.35,Murron Textile Art and Surface Design
Bolton MBC,Development & Regeneration,Artistes Fees,09-Jan-20,600,Liz White Art
Bolton MBC,Development & Regeneration,Marketing,23-Jan-20,570,Showmed
Bolton MBC,Development & Regeneration,Book Fund Expenditure,06-Jan-20,551.74,Ulverscroft Large Print Books Limited#Ulverscroft Limited
Bolton MBC,Development & Regeneration,Marketing,23-Jan-20,550,Impression (Bolton) Limited#1
Bolton MBC,Development & Regeneration,Computer Software Licences,06-Jan-20,534.5,PPL PRS Limited
Bolton MBC,Development & Regeneration,General Publicity,09-Jan-20,526,Newsquest Media Group
Bolton MBC,Development & Regeneration,General Publicity,09-Jan-20,525,Newsquest Media Group
Bolton MBC,Development & Regeneration,Other Fees,09-Jan-20,511.75,Works Of Heart
Bolton MBC,Development & Regeneration,Other Fees,30-Jan-20,506.25,Salford City Council
Bolton MBC,Development & Regeneration,Book Fund Expenditure,30-Jan-20,503.51,The Book Centre
Bolton MBC,Environmental Services,Electricity - General,23-Jan-20,"153,643.15",Scottish & Southern Energy plc#SSE
Bolton MBC,Environmental Services,Agency Staff - Other,09-Jan-20,"92,700.42",Reed Specialist Recruitment Limited
Bolton MBC,Environmental Services,Artistes Fees,28-Jan-20,"81,041.53",Polka Dot Pantomines Limited
Bolton MBC,Environmental Services,Contract Unit-Non-LEA,23-Jan-20,"49,189.27",NSL Limited#NSL Services Group
Bolton MBC,Environmental Services,Engineering Work,13-Jan-20,"44,329.56",George Cox & Sons Limited
Bolton MBC,Environmental Services,Water Charges - Metered,23-Jan-20,"39,851.39",Water Plus
Bolton MBC,Environmental Services,Vehicle Fuel,23-Jan-20,"38,774.49",Allstar Business Solutions
Bolton MBC,Environmental Services,Vehicle Fuel,06-Jan-20,"37,056.02",Allstar Business Solutions
Bolton MBC,Environmental Services,Postage Charge,23-Jan-20,"36,000.00",Pitney Bowes Ltd
Bolton MBC,Environmental Services,Training Exps Tuition Fees,09-Jan-20,"30,000.00",Bolton St Catherine's Academy
Bolton MBC,Environmental Services,Grant Funded Expenditure,20-Jan-20,"15,000.00",Urban Outreach (Bolton)
Bolton MBC,Environmental Services,Refunds,16-Jan-20,"13,803.99",VIP-System Limited
Bolton MBC,Environmental Services,Grant Funded Expenditure,09-Jan-20,"11,333.33",Paws For Kids#Endeavour Project
Bolton MBC,Environmental Services,Traffic Enforcement Centre,30-Jan-20,"10,000.00",The Traffic Enforcement Centre
Bolton MBC,Environmental Services,Operational Equipment Purchase,09-Jan-20,"8,450.00",UK Container Maintenance Limited
Bolton MBC,Environmental Services,Catering Provisions-Food,27-Jan-20,"8,370.56",J W Young (Butchers) Limited
Bolton MBC,Environmental Services,Engineering Work,23-Jan-20,"7,560.00",J Hopkins (Contractors) Ltd
Bolton MBC,Environmental Services,Engineering Work,23-Jan-20,"7,560.00",J Hopkins (Contractors) Ltd
Bolton MBC,Environmental Services,Day To Day Maintenance,30-Jan-20,"7,250.00",P J Carney & Co Ltd
Bolton MBC,Environmental Services,Other Fees,09-Jan-20,"7,000.00",Local Government Association
Bolton MBC,Environmental Services,Refuse Collection,16-Jan-20,"6,894.60",Viridor Waste Management Limited
Bolton MBC,Environmental Services,Operational Equipment Rental,16-Jan-20,"6,420.14",F R Sharrock Ltd#Sharrocks
Bolton MBC,Environmental Services,Catering Provisions-Food,20-Jan-20,"6,171.44",J W Young (Butchers) Limited
Bolton MBC,Environmental Services,Training Exps Tuition Fees,13-Jan-20,"6,000.00",Personnel Checks Limited
Bolton MBC,Environmental Services,Contracted Services,20-Jan-20,"5,541.93",C P Davidson & Sons Limited
Bolton MBC,Environmental Services,Transport Hire,20-Jan-20,"5,500.00",Riverside Truck Rental Limited
Bolton MBC,Environmental Services,Transport Hire,20-Jan-20,"5,500.00",Riverside Truck Rental Limited
Bolton MBC,Environmental Services,Transport Hire,20-Jan-20,"5,500.00",Riverside Truck Rental Limited
Bolton MBC,Environmental Services,Transport Hire,20-Jan-20,"5,500.00",Riverside Truck Rental Limited
Bolton MBC,Environmental Services,Catering Provisions-Food,06-Jan-20,"5,447.21",J W Young (Butchers) Limited
Bolton MBC,Environmental Services,Catering Provisions-Food,20-Jan-20,"5,282.09",J W Young (Butchers) Limited
Bolton MBC,Environmental Services,Transport Hire,06-Jan-20,"5,250.00",Riverside Truck Rental Limited
Bolton MBC,Environmental Services,Transport Hire,06-Jan-20,"5,250.00",Riverside Truck Rental Limited
Bolton MBC,Environmental Services,Franking Machine,23-Jan-20,"5,236.63",Pitney Bowes Finance Limited
Bolton MBC,Environmental Services,Work in Progress Additions,06-Jan-20,"5,228.80",HAGS-SMP Ltd
Bolton MBC,Environmental Services,Vehicle Servicing,20-Jan-20,"5,101.40",Faun Zoeller (UK) Limited
Bolton MBC,Environmental Services,Other Security Expenses,23-Jan-20,"4,904.60",Duval FM Limited
Bolton MBC,Environmental Services,Vehicle Servicing,20-Jan-20,"4,750.00",Faun Zoeller (UK) Limited
Bolton MBC,Environmental Services,Miscellaneous Grants,20-Jan-20,"4,725.00",Bolton Toy Library
Bolton MBC,Environmental Services,Engineering Work,27-Jan-20,"4,661.95",J Hopkins (Contractors) Ltd
Bolton MBC,Environmental Services,Contracted Services,20-Jan-20,"4,620.00",Bulky Bob's 2015 Limited
Bolton MBC,Environmental Services,Training Exps Tuition Fees,30-Jan-20,"4,400.00",Myerscough College
Bolton MBC,Environmental Services,Advertising General,06-Jan-20,"4,250.00",Clear Channel UK Limited#3
Bolton MBC,Environmental Services,Agency Staff - Other,02-Jan-20,"4,136.40",Profile Security Services Ltd
Bolton MBC,Environmental Services,Vehicle Servicing,16-Jan-20,"4,094.00",Faun Zoeller (UK) Limited
Bolton MBC,Environmental Services,Vehicle Servicing,16-Jan-20,"4,094.00",Faun Zoeller (UK) Limited
Bolton MBC,Environmental Services,Transport Hire,30-Jan-20,"3,960.00",Riverside Truck Rental Limited
Bolton MBC,Environmental Services,Transport Hire,30-Jan-20,"3,938.00",Riverside Truck Rental Limited
Bolton MBC,Environmental Services,Transport Hire,30-Jan-20,"3,938.00",Riverside Truck Rental Limited
Bolton MBC,Environmental Services,General Materials,09-Jan-20,"3,930.00",Isaac Butterworth (Ironfounders) Limited
Bolton MBC,Environmental Services,Transport Hire,06-Jan-20,"3,780.00",Riverside Truck Rental Limited
Bolton MBC,Environmental Services,Transport Hire,06-Jan-20,"3,759.00",Riverside Truck Rental Limited
Bolton MBC,Environmental Services,Transport Hire,06-Jan-20,"3,759.00",Riverside Truck Rental Limited
Bolton MBC,Environmental Services,General Subscriptions,23-Jan-20,"3,717.18",Thomson Reuters (Professional) UK Limited#Practical Law Company Limited
Bolton MBC,Environmental Services,Other Fees,23-Jan-20,"3,543.89",Bolton at Home Limited#HB Refunds & Invoices
Bolton MBC,Environmental Services,CR Bal Hold A/c Exp,02-Jan-20,"3,500.00",Jeremy Benn Associates Limited T/A JBA Consulting
Bolton MBC,Environmental Services,Engineering Work,30-Jan-20,"3,475.00",Protek Fencing Ltd
Bolton MBC,Environmental Services,Plant Hire,06-Jan-20,"3,404.00",H & C (Plant Hire) Limited
Bolton MBC,Environmental Services,Contracted Services,13-Jan-20,"3,323.83",Terberg Matec UK
Bolton MBC,Environmental Services,Agency Staff - Full-time,09-Jan-20,"3,131.17",Wilde Consultants Limited
Bolton MBC,Environmental Services,CR Bal Hold A/c Exp,02-Jan-20,"3,000.00",Jeremy Benn Associates Limited T/A JBA Consulting
Bolton MBC,Environmental Services,Computer Software Licences,30-Jan-20,"2,999.77",Fretwell-Downing Hospitality Limited
Bolton MBC,Environmental Services,Plant Hire,06-Jan-20,"2,993.60",J C Davies Plant Hire
Bolton MBC,Environmental Services,Transport Hire,09-Jan-20,"2,940.00",Leeds Commercial Limited
Bolton MBC,Environmental Services,Engineering Work,06-Jan-20,"2,930.15",J Hopkins (Contractors) Ltd
Bolton MBC,Environmental Services,Contract Hire,20-Jan-20,"2,878.66",Econ Engineering Limited
Bolton MBC,Environmental Services,Contract Hire,20-Jan-20,"2,878.66",Econ Engineering Limited
Bolton MBC,Environmental Services,Contract Hire,20-Jan-20,"2,878.66",Econ Engineering Limited
Bolton MBC,Environmental Services,Contract Hire,20-Jan-20,"2,878.66",Econ Engineering Limited
Bolton MBC,Environmental Services,Contract Hire,20-Jan-20,"2,878.66",Econ Engineering Limited
Bolton MBC,Environmental Services,Contract Hire,20-Jan-20,"2,878.66",Econ Engineering Limited
Bolton MBC,Environmental Services,Contract Hire,20-Jan-20,"2,878.66",Econ Engineering Limited
Bolton MBC,Environmental Services,Contract Hire,20-Jan-20,"2,878.66",Econ Engineering Limited
Bolton MBC,Environmental Services,Plant Hire,06-Jan-20,"2,863.50",H & C (Plant Hire) Limited
Bolton MBC,Environmental Services,Transport Hire,20-Jan-20,"2,800.00",Leeds Commercial Limited
Bolton MBC,Environmental Services,Medical Referees Fees,09-Jan-20,"2,780.00",REDACTED - Personal Data
Bolton MBC,Environmental Services,Plant Hire,06-Jan-20,"2,770.50",H & C (Plant Hire) Limited
Bolton MBC,Environmental Services,Agency Staff - Other,02-Jan-20,"2,757.60",Profile Security Services Ltd
Bolton MBC,Environmental Services,Artistes Fees,27-Jan-20,"2,650.00",Barry Collings Entertainments
Bolton MBC,Environmental Services,Agency Staff - Other,30-Jan-20,"2,619.72",Profile Security Services Ltd
Bolton MBC,Environmental Services,C.C.T.V.,06-Jan-20,"2,585.00",Unique Integrated Systems Limited
Bolton MBC,Environmental Services,Miscellaneous Grants,30-Jan-20,"2,500.00",Deane and Derby Cricket Club
Bolton MBC,Environmental Services,Contracted Services,09-Jan-20,"2,500.00",GEM Arboricultural Services
Bolton MBC,Environmental Services,Transport Hire,20-Jan-20,"2,475.00",N D Brown Ltd
Bolton MBC,Environmental Services,Plant Hire,30-Jan-20,"2,473.20",J C Davies Plant Hire
Bolton MBC,Environmental Services,Tyres,23-Jan-20,"2,456.95",J A Tyre Service Ltd
Bolton MBC,Environmental Services,Miscellaneous Expenses,09-Jan-20,"2,450.00",Shorrock Trichem Limited - Washcraft#Powercare
Bolton MBC,Environmental Services,Agency Staff - Other,23-Jan-20,"2,439.00",Profile Security Services Ltd
Bolton MBC,Environmental Services,Work in Progress Additions,30-Jan-20,"2,421.05",HAGS-SMP Ltd
Bolton MBC,Environmental Services,Tyres,16-Jan-20,"2,406.45",J A Tyre Service Ltd
Bolton MBC,Environmental Services,Transport Hire,16-Jan-20,"2,392.00",Collett Transport Services Ltd#Specialist Fleet Services#CTS
Bolton MBC,Environmental Services,Operational Equipment Purchase,13-Jan-20,"2,384.20",Cromwell Polythene Limited
Bolton MBC,Environmental Services,Agency Staff - Other,02-Jan-20,"2,344.95",Profile Security Services Ltd
Bolton MBC,Environmental Services,Agency Staff - Other,27-Jan-20,"2,343.96",Profile Security Services Ltd
Bolton MBC,Environmental Services,Training - Exam Fees,06-Jan-20,"2,295.00",North Manchester Driver Training Limited
Bolton MBC,Environmental Services,Office Equipment Purchase,23-Jan-20,"2,276.00",Auto Time Systems Northern Ltd
Bolton MBC,Environmental Services,Contracted Services,06-Jan-20,"2,238.54",Kays Traffic Management Systems Limited
Bolton MBC,Environmental Services,Contracted Services,16-Jan-20,"2,227.00",Kays Traffic Management Systems Limited
Bolton MBC,Environmental Services,Clients - Swimming Fares,02-Jan-20,"2,160.00",R S Tyrer Ltd
Bolton MBC,Environmental Services,Plant Hire,06-Jan-20,"2,133.44",J C Davies Plant Hire
Bolton MBC,Environmental Services,Direct Transport - Repairs,27-Jan-20,"2,124.95",Econ Engineering Limited
Bolton MBC,Environmental Services,Plant Hire,06-Jan-20,"2,119.50",H & C (Plant Hire) Limited
Bolton MBC,Environmental Services,Contract Hire,20-Jan-20,"2,103.97",Econ Engineering Limited
Bolton MBC,Environmental Services,Contracted Services,16-Jan-20,"2,077.00",Kays Traffic Management Systems Limited
Bolton MBC,Environmental Services,Work in Progress Additions,06-Jan-20,"2,048.00",Indespension Ltd#2
Bolton MBC,Environmental Services,Agency Staff - Other,23-Jan-20,"2,032.50",Profile Security Services Ltd
Bolton MBC,Environmental Services,Operational Equipment Rental,02-Jan-20,"2,018.85",AVM Solutions UK Ltd#Audio Visual Media Solutions UK
Bolton MBC,Environmental Services,Uninsured Losses - Vehicles,20-Jan-20,"2,017.01",Motor Accident Protection Services Ltd#MAPS Ltd
Bolton MBC,Environmental Services,Agency Staff - Other,23-Jan-20,"1,953.30",Profile Security Services Ltd
Bolton MBC,Environmental Services,Transport Hire,06-Jan-20,"1,950.00",Nu-Phalt Limited
Bolton MBC,Environmental Services,Transport Hire,30-Jan-20,"1,950.00",Nu-Phalt Limited
Bolton MBC,Environmental Services,Agency Staff - Other,02-Jan-20,"1,930.32",Profile Security Services Ltd
Bolton MBC,Environmental Services,Agency Staff - Other,02-Jan-20,"1,913.63",Profile Security Services Ltd
Bolton MBC,Environmental Services,Agency Staff - Other,23-Jan-20,"1,838.40",Profile Security Services Ltd
Bolton MBC,Environmental Services,Health and Safety,09-Jan-20,"1,821.00",Bolton Stone Restoration Ltd
Bolton MBC,Environmental Services,Operational Equipment Purchase,06-Jan-20,"1,794.46",Dick Leigh Chainsaw Specialists
Bolton MBC,Environmental Services,Contracted Services,23-Jan-20,"1,715.44",Centurion Hydraulics Ltd
Bolton MBC,Environmental Services,Plant Hire,06-Jan-20,"1,702.00",H & C (Plant Hire) Limited
Bolton MBC,Environmental Services,Plant Hire,16-Jan-20,"1,702.00",H & C (Plant Hire) Limited
Bolton MBC,Environmental Services,Contracted Services,20-Jan-20,"1,688.00",Polar Car Air Conditioning Limited
Bolton MBC,Environmental Services,Direct Materials,13-Jan-20,"1,665.59",Aggregate Industries UK Limited
Bolton MBC,Environmental Services,Agency Staff - Other,23-Jan-20,"1,654.56",Profile Security Services Ltd
Bolton MBC,Environmental Services,R & M Cremators,13-Jan-20,"1,640.00",ECE Consultancy Ltd
Bolton MBC,Environmental Services,Marketing,30-Jan-20,"1,619.20",WV Howe Limited
Bolton MBC,Environmental Services,Contracted Services,23-Jan-20,"1,617.40",Centurion Hydraulics Ltd
Bolton MBC,Environmental Services,Goods for Resale,06-Jan-20,"1,615.03",Event Lights Ltd
Bolton MBC,Environmental Services,Engineering Work,13-Jan-20,"1,610.33",J Hopkins (Contractors) Ltd
Bolton MBC,Environmental Services,Tyres,16-Jan-20,"1,584.45",J A Tyre Service Ltd
Bolton MBC,Environmental Services,Work in Progress Additions,09-Jan-20,"1,563.00",Playdale Playgrounds Limited
Bolton MBC,Environmental Services,Day To Day Maintenance,20-Jan-20,"1,562.50",T Lowe & Son Limited
Bolton MBC,Environmental Services,Engineering Work,06-Jan-20,"1,560.00",Peak Fabrications (Bolton) Limited
Bolton MBC,Environmental Services,Contracted Services,23-Jan-20,"1,558.90",Centurion Hydraulics Ltd
Bolton MBC,Environmental Services,Contracted Services,30-Jan-20,"1,551.15",Terberg Matec UK
Bolton MBC,Environmental Services,Computer Software Licences,02-Jan-20,"1,550.00",Keysoft Solutions Limited
Bolton MBC,Environmental Services,Engineering Work,30-Jan-20,"1,545.00",North Manchester Driver Training Limited
Bolton MBC,Environmental Services,Operational Equipment Rental,23-Jan-20,"1,514.50",Mr Claus Limited T/A The Christmas Decorators
Bolton MBC,Environmental Services,Uniforms,06-Jan-20,"1,512.00",Evolve Corporate Ltd T/A PK Safety
Bolton MBC,Environmental Services,Operational Equipment Rental,23-Jan-20,"1,506.60",MK Illumination UK Ltd
Bolton MBC,Environmental Services,Computer Purchase,20-Jan-20,"1,500.00",Symology Ltd
Bolton MBC,Environmental Services,Other Fees,13-Jan-20,"1,500.00",Streetmellor
Bolton MBC,Environmental Services,Contracted Services,13-Jan-20,"1,480.51",W & S C Jobson
Bolton MBC,Environmental Services,General Materials,23-Jan-20,"1,474.60",Anthony Axford Ltd
Bolton MBC,Environmental Services,Operational Equipment Purchase,30-Jan-20,"1,450.00",Peak Fabrications (Bolton) Limited
Bolton MBC,Environmental Services,CR Bal Hold A/c Exp,23-Jan-20,"1,450.00",Jeremy Benn Associates Limited T/A JBA Consulting
Bolton MBC,Environmental Services,Tyres,16-Jan-20,"1,449.85",J A Tyre Service Ltd
Bolton MBC,Environmental Services,Vehicle Servicing,13-Jan-20,"1,437.96",Terberg Matec UK
Bolton MBC,Environmental Services,Clients - Taxi Fares,02-Jan-20,"1,367.10",Cumberland & Westmorland Schools Limited
Bolton MBC,Environmental Services,Vehicle Servicing,27-Jan-20,"1,360.00",Faun Zoeller (UK) Limited
Bolton MBC,Environmental Services,Plant Hire,16-Jan-20,"1,357.00",H & C (Plant Hire) Limited
Bolton MBC,Environmental Services,Op Equip Furniture Purchase,06-Jan-20,"1,346.00",Castle Stanton Limited#Thorns Limited
Bolton MBC,Environmental Services,Transport Hire,06-Jan-20,"1,344.00",Peter Douglass Platforms
Bolton MBC,Environmental Services,Agency Staff - Other,13-Jan-20,"1,335.60",Silverback Events Limited
Bolton MBC,Environmental Services,Marketing,23-Jan-20,"1,312.00",Tube UK Limited
Bolton MBC,Environmental Services,Plant Hire,20-Jan-20,"1,300.00",Richard Burton Haulage Limited
Bolton MBC,Environmental Services,Transport Hire,30-Jan-20,"1,280.00",Peter Douglass Platforms
Bolton MBC,Environmental Services,Contracted Services,13-Jan-20,"1,265.22",W & S C Jobson
Bolton MBC,Environmental Services,Direct Materials,09-Jan-20,"1,261.58",Aggregate Industries UK Limited
Bolton MBC,Environmental Services,Operational Equipment Maint,16-Jan-20,"1,259.82",Balmers GM Ltd
Bolton MBC,Environmental Services,Tyres,16-Jan-20,"1,253.40",J A Tyre Service Ltd
Bolton MBC,Environmental Services,Agency Staff - Other,23-Jan-20,"1,240.92",Profile Security Services Ltd
Bolton MBC,Environmental Services,Advertising General,09-Jan-20,"1,224.00",Newsquest Media Group
Bolton MBC,Environmental Services,Legal Fees,09-Jan-20,"1,224.00",Newsquest Media Group
Bolton MBC,Environmental Services,Vehicle Servicing,30-Jan-20,"1,223.40",Terberg Matec UK
Bolton MBC,Environmental Services,Contracted Services,16-Jan-20,"1,223.05",REDACTED - Personal Data
Bolton MBC,Environmental Services,Vehicle Servicing,30-Jan-20,"1,218.40",Fuchs Lubricants (UK) plc
Bolton MBC,Environmental Services,Agency Staff - Other,23-Jan-20,"1,213.17",Profile Security Services Ltd
Bolton MBC,Environmental Services,CR Bal Hold A/c Exp,30-Jan-20,"1,212.90",J Hopkins (Contractors) Ltd
Bolton MBC,Environmental Services,Direct Materials,06-Jan-20,"1,207.07",Aggregate Industries UK Limited
Bolton MBC,Environmental Services,Agency Staff - Other,02-Jan-20,"1,206.45",Profile Security Services Ltd
Bolton MBC,Environmental Services,Clients - Taxi Fares,30-Jan-20,"1,200.00",Rossendale School#Charity Account
Bolton MBC,Environmental Services,Operational Equipment Purchase,30-Jan-20,"1,200.00",CDL Vehicle Information Services Ltd
Bolton MBC,Environmental Services,Contracted Services,09-Jan-20,"1,200.00",GEM Arboricultural Services
Bolton MBC,Environmental Services,Contracted Services,16-Jan-20,"1,200.00",Kays Traffic Management Systems Limited
Bolton MBC,Environmental Services,Vehicle Servicing,30-Jan-20,"1,193.49",C P Davidson & Sons Limited
Bolton MBC,Environmental Services,General Materials,09-Jan-20,"1,168.10",Ashdown Supplies
Bolton MBC,Environmental Services,General Materials,30-Jan-20,"1,159.84",East Riding Horticulture Ltd
Bolton MBC,Environmental Services,Direct Materials,30-Jan-20,"1,152.75",Nu-Phalt Limited
Bolton MBC,Environmental Services,Direct Materials,06-Jan-20,"1,147.51",Aggregate Industries UK Limited
Bolton MBC,Environmental Services,Operational Equipment Maint,13-Jan-20,"1,139.38",F R Sharrock Ltd#Sharrocks
Bolton MBC,Environmental Services,Direct Materials,20-Jan-20,"1,135.36",Calligraphy UK Ltd
Bolton MBC,Environmental Services,Direct Materials,13-Jan-20,"1,132.38",Aggregate Industries UK Limited
Bolton MBC,Environmental Services,Uniforms,23-Jan-20,"1,122.87",Yeshili Reflectives T/A Vizwear
Bolton MBC,Environmental Services,Electricity - General,02-Jan-20,"1,118.72",Scottish & Southern Energy plc#SSE
Bolton MBC,Environmental Services,Electricity - General,23-Jan-20,"1,106.02",Scottish & Southern Energy plc#SSE
Bolton MBC,Environmental Services,Agency Staff - Other,23-Jan-20,"1,103.04",Profile Security Services Ltd
Bolton MBC,Environmental Services,Information and Communication Technology,09-Jan-20,"1,096.50",Advanced Communication Projects Limited
Bolton MBC,Environmental Services,Engineering Work,30-Jan-20,"1,095.74",J Dickinson & Sons (Horwich) Limited#2
Bolton MBC,Environmental Services,Direct Materials,27-Jan-20,"1,063.80",Aggregate Industries UK Limited
Bolton MBC,Environmental Services,Operational Equipment Maint,30-Jan-20,"1,063.75",Balmers GM Ltd
Bolton MBC,Environmental Services,Direct Materials,09-Jan-20,"1,062.73",Aggregate Industries UK Limited
Bolton MBC,Environmental Services,Direct Materials,30-Jan-20,"1,061.67",Aggregate Industries UK Limited
Bolton MBC,Environmental Services,Direct Materials,30-Jan-20,"1,056.33",Aggregate Industries UK Limited
Bolton MBC,Environmental Services,Transport Hire,09-Jan-20,"1,050.00",Leeds Commercial Limited
Bolton MBC,Environmental Services,Plant Hire,06-Jan-20,"1,050.00",H & C (Plant Hire) Limited
Bolton MBC,Environmental Services,Direct Materials,09-Jan-20,"1,049.93",Aggregate Industries UK Limited
Bolton MBC,Environmental Services,Marketing,16-Jan-20,"1,041.00",Norseman Direct Limited
Bolton MBC,Environmental Services,Plant Hire,06-Jan-20,"1,040.00",Richard Burton Haulage Limited
Bolton MBC,Environmental Services,Plant Hire,06-Jan-20,"1,040.00",Richard Burton Haulage Limited
Bolton MBC,Environmental Services,Plant Hire,13-Jan-20,"1,040.00",Richard Burton Haulage Limited
Bolton MBC,Environmental Services,Contracted Services,20-Jan-20,"1,040.00",Polar Car Air Conditioning Limited
Bolton MBC,Environmental Services,Agency Staff - Other,23-Jan-20,"1,034.10",Profile Security Services Ltd
Bolton MBC,Environmental Services,Contracted Services,13-Jan-20,"1,029.00",The ExcluSec Group Limited T/As ExcluSec Security
Bolton MBC,Environmental Services,Day To Day Maintenance,20-Jan-20,"1,028.45",T Lowe & Son Limited
Bolton MBC,Environmental Services,Direct Materials,30-Jan-20,"1,022.15",Signpost Solutions Limited T/A Signfix
Bolton MBC,Environmental Services,Grant Funded Expenditure,23-Jan-20,"1,020.80",Bolton Community Leisure Limited
Bolton MBC,Environmental Services,Vehicle Servicing,23-Jan-20,"1,020.00",LPW (Europe) Ltd
Bolton MBC,Environmental Services,Tyres,23-Jan-20,"1,011.00",J A Tyre Service Ltd
Bolton MBC,Environmental Services,Operational Equipment Maint,30-Jan-20,"1,010.39",F R Sharrock Ltd#Sharrocks
Bolton MBC,Environmental Services,Plant Hire,06-Jan-20,"1,008.00",H & C (Plant Hire) Limited
Bolton MBC,Environmental Services,Direct Materials,16-Jan-20,"1,006.36",Aggregate Industries UK Limited
Bolton MBC,Environmental Services,Artistes Fees,23-Jan-20,"1,001.25",REDACTED - Personal Data
Bolton MBC,Environmental Services,Transport Hire,20-Jan-20,"1,000.00",Leeds Commercial Limited
Bolton MBC,Environmental Services,Horticultural Materials,23-Jan-20,"1,000.00",Bolton Green Umbrella
Bolton MBC,Environmental Services,Contracted Services,16-Jan-20,"1,000.00",Bolton Tree Services
Bolton MBC,Environmental Services,Plant Hire,23-Jan-20,996,H & C (Plant Hire) Limited
Bolton MBC,Environmental Services,Direct Materials,16-Jan-20,996,Aggregate Industries UK Limited
Bolton MBC,Environmental Services,Clients - Taxi Fares,20-Jan-20,976.5,Cumberland & Westmorland Schools Limited
Bolton MBC,Environmental Services,Plant Hire,16-Jan-20,967,H & C (Plant Hire) Limited
Bolton MBC,Environmental Services,Agency Staff - Other,02-Jan-20,965.16,Profile Security Services Ltd
Bolton MBC,Environmental Services,Operational Equipment Maint,02-Jan-20,963.1,Shorrock Trichem Limited#Powercare#Coffee
Bolton MBC,Environmental Services,General Materials,13-Jan-20,960,Rigby Taylor Ltd
Bolton MBC,Environmental Services,Contracted Services,02-Jan-20,960,Animal Wardens
Bolton MBC,Environmental Services,Operational Equipment Purchase,16-Jan-20,943,MRB Workshop Services Limited
Bolton MBC,Environmental Services,Engineering Work,23-Jan-20,925.98,HBMS Limited
Bolton MBC,Environmental Services,Contracted Services,23-Jan-20,923.89,Centurion Hydraulics Ltd
Bolton MBC,Environmental Services,Medical Referees Fees,09-Jan-20,920,REDACTED - Personal Data
Bolton MBC,Environmental Services,Health and Safety,16-Jan-20,919.96,C Horrocks & Sons Limited
Bolton MBC,Environmental Services,Telephones -Direct Rental,23-Jan-20,916.58,Babble Cloud Limited
Bolton MBC,Environmental Services,Telephones -Direct Rental,13-Jan-20,915.28,Babble Cloud Limited
Bolton MBC,Environmental Services,Operational Equipment Maint,27-Jan-20,908.08,Balmers GM Ltd
Bolton MBC,Environmental Services,Room Hire,16-Jan-20,900,Bolton Middlebrook Leisure Trust#Bolton Arena
Bolton MBC,Environmental Services,Agency Staff - Other,30-Jan-20,900,REDACTED - Personal Data
Bolton MBC,Environmental Services,Tyres,23-Jan-20,886.3,J A Tyre Service Ltd
Bolton MBC,Environmental Services,Training - Exam Fees,06-Jan-20,876,North Manchester Driver Training Limited
Bolton MBC,Environmental Services,Operational Equipment Purchase,16-Jan-20,869.3,MRB Workshop Services Limited
Bolton MBC,Environmental Services,Vehicle Servicing,02-Jan-20,867,LPW (Europe) Ltd
Bolton MBC,Environmental Services,Plant Hire,06-Jan-20,851,H & C (Plant Hire) Limited
Bolton MBC,Environmental Services,Plant Hire,16-Jan-20,851,H & C (Plant Hire) Limited
Bolton MBC,Environmental Services,Plant Hire,16-Jan-20,851,H & C (Plant Hire) Limited
Bolton MBC,Environmental Services,Plant Hire,16-Jan-20,851,H & C (Plant Hire) Limited
Bolton MBC,Environmental Services,Plant Hire,16-Jan-20,851,H & C (Plant Hire) Limited
Bolton MBC,Environmental Services,Direct Materials,06-Jan-20,850,Aggregate Industries UK Limited
Bolton MBC,Environmental Services,Direct Materials,06-Jan-20,843.2,Aggregate Industries UK Limited
Bolton MBC,Environmental Services,Vehicle Servicing,27-Jan-20,838,Faun Zoeller (UK) Limited
Bolton MBC,Environmental Services,Operational Equipment Purchase,09-Jan-20,831.12,Shorrock Trichem Limited - Washcraft#Powercare
Bolton MBC,Environmental Services,Agency Staff - Other,02-Jan-20,827.28,Profile Security Services Ltd
Bolton MBC,Environmental Services,Agency Staff - Other,02-Jan-20,827.28,Profile Security Services Ltd
Bolton MBC,Environmental Services,Agency Staff - Other,02-Jan-20,827.28,Profile Security Services Ltd
Bolton MBC,Environmental Services,Horticultural Materials,13-Jan-20,825,Rigby Taylor Ltd
Bolton MBC,Environmental Services,Vehicle Servicing,13-Jan-20,821.4,Terberg Matec UK
Bolton MBC,Environmental Services,Vehicle Servicing,30-Jan-20,820.12,Terberg Matec UK
Bolton MBC,Environmental Services,Day To Day Maintenance,30-Jan-20,817.79,REDACTED - Personal Data
Bolton MBC,Environmental Services,Direct Materials,23-Jan-20,812,Signpost Solutions Limited T/A Signfix
Bolton MBC,Environmental Services,Clients - Swimming Fares,09-Jan-20,800,R S Tyrer Ltd
Bolton MBC,Environmental Services,Legal Fees,16-Jan-20,800,Deans Court Chamber
Bolton MBC,Environmental Services,Contracted Services,30-Jan-20,800,Greenwood Tree Services Limited
Bolton MBC,Environmental Services,Franking Machine,06-Jan-20,793.05,Nationwide Franking Sense Ltd#1
Bolton MBC,Environmental Services,Vehicle Servicing,27-Jan-20,788.8,Faun Zoeller (UK) Limited
Bolton MBC,Environmental Services,Advertising General,16-Jan-20,783.89,Newsquest Media Group
Bolton MBC,Environmental Services,Work in Progress Additions,16-Jan-20,780,Easy-Gate Limited
Bolton MBC,Environmental Services,Vehicle Servicing,30-Jan-20,779.68,WasteParts UK Ltd
Bolton MBC,Environmental Services,Contracted Services,16-Jan-20,775.5,Vanliners Limited
Bolton MBC,Environmental Services,Agency Staff - Other,09-Jan-20,762.84,REDACTED - Personal Data
Bolton MBC,Environmental Services,Direct Materials,06-Jan-20,760,Aggregate Industries UK Limited
Bolton MBC,Environmental Services,Direct Materials,09-Jan-20,760,Aggregate Industries UK Limited
Bolton MBC,Environmental Services,Direct Materials,13-Jan-20,760,Aggregate Industries UK Limited
Bolton MBC,Environmental Services,Direct Materials,30-Jan-20,760,Aggregate Industries UK Limited
Bolton MBC,Environmental Services,Plant Hire,06-Jan-20,756,H & C (Plant Hire) Limited
Bolton MBC,Environmental Services,General Materials,09-Jan-20,755,Isaac Butterworth (Ironfounders) Limited
Bolton MBC,Environmental Services,Plant Hire,30-Jan-20,750,H & C (Plant Hire) Limited
Bolton MBC,Environmental Services,Legal Fees,30-Jan-20,750,Deans Court Chamber
Bolton MBC,Environmental Services,Legal Fees,30-Jan-20,750,Deans Court Chamber
Bolton MBC,Environmental Services,Contracted Services,20-Jan-20,750,A1 Vehicle Dismantlers
Bolton MBC,Environmental Services,Contracted Services,13-Jan-20,743.63,W & S C Jobson
Bolton MBC,Environmental Services,Transport Hire,20-Jan-20,739.94,Enterprise Flex-E-Rent
Bolton MBC,Environmental Services,Direct Materials,06-Jan-20,732,The Columbaria Company
Bolton MBC,Environmental Services,Direct Materials,09-Jan-20,728.9,Marwood Electrical Company Limited
Bolton MBC,Environmental Services,Plant Hire,30-Jan-20,720,H & C (Plant Hire) Limited
Bolton MBC,Environmental Services,Uninsured Losses - Vehicles,30-Jan-20,711.83,Universal Body Repairs Ltd
Bolton MBC,Environmental Services,Direct Materials,20-Jan-20,711.08,Aggregate Industries UK Limited
Bolton MBC,Environmental Services,Training - Exam Fees,30-Jan-20,708,North Manchester Driver Training Limited
Bolton MBC,Environmental Services,Transport Hire,06-Jan-20,706.31,Enterprise Flex-E-Rent
Bolton MBC,Environmental Services,Vehicle Servicing,16-Jan-20,704.1,Faun Zoeller (UK) Limited
Bolton MBC,Environmental Services,Day To Day Maintenance,30-Jan-20,703.1,T Lowe & Son Limited
Bolton MBC,Environmental Services,Transport Hire,20-Jan-20,692.36,Enterprise Flex-E-Rent
Bolton MBC,Environmental Services,Training Exp - Ext Seminars,16-Jan-20,690,APSE
Bolton MBC,Environmental Services,Plant Hire,16-Jan-20,690,H & C (Plant Hire) Limited
Bolton MBC,Environmental Services,Uninsured Losses - Vehicles,23-Jan-20,684.61,Malcolm Nicholson and Son Ltd
Bolton MBC,Environmental Services,General Materials,23-Jan-20,678.35,Amberol Limited
Bolton MBC,Environmental Services,Vehicle Servicing,16-Jan-20,670,Faun Zoeller (UK) Limited
Bolton MBC,Environmental Services,Artistes Fees,09-Jan-20,670,REDACTED - Personal Data
Bolton MBC,Environmental Services,Tyres,16-Jan-20,669.9,J A Tyre Service Ltd
Bolton MBC,Environmental Services,Transport Hire,06-Jan-20,669.28,Enterprise Flex-E-Rent
Bolton MBC,Environmental Services,Agency Staff - Other,16-Jan-20,669.24,REDACTED - Personal Data
Bolton MBC,Environmental Services,Agency Staff - Other,02-Jan-20,667.8,Profile Security Services Ltd
Bolton MBC,Environmental Services,Non-Scheduled Work,23-Jan-20,662,Adlington Dry Stone Walling
Bolton MBC,Environmental Services,Contracted Services,30-Jan-20,655.85,W & S C Jobson
Bolton MBC,Environmental Services,Vehicle Servicing,30-Jan-20,654.14,Terberg Matec UK
Bolton MBC,Environmental Services,Transport Hire,23-Jan-20,650,R S Tyrer Ltd
Bolton MBC,Environmental Services,Information and Communication Technology,30-Jan-20,650,Bartec Auto ID Ltd
Bolton MBC,Environmental Services,Contracted Services,16-Jan-20,650,Kays Traffic Management Systems Limited
Bolton MBC,Environmental Services,Horticultural Materials,23-Jan-20,644,Park Lane Plants Ltd
Bolton MBC,Environmental Services,Engineering Work,09-Jan-20,642.34,Jones Lighting Limited
Bolton MBC,Environmental Services,Contracted Services,16-Jan-20,641.62,Versalift Distributors (UK) Limited
Bolton MBC,Environmental Services,Training Exp - Ext Seminars,06-Jan-20,640,Institute of Licensing Ltd
Bolton MBC,Environmental Services,Vehicle Servicing,16-Jan-20,639.1,Faun Zoeller (UK) Limited
Bolton MBC,Environmental Services,Direct Materials,20-Jan-20,635,Vivedia Limited
Bolton MBC,Environmental Services,Uninsured Losses - Vehicles,30-Jan-20,632.84,Universal Body Repairs Ltd
Bolton MBC,Environmental Services,Programmed Maint. Work,06-Jan-20,630,H & C (Plant Hire) Limited
Bolton MBC,Environmental Services,Vehicle Servicing,30-Jan-20,629.36,Terberg Matec UK
Bolton MBC,Environmental Services,Vehicle Servicing,16-Jan-20,625.6,Faun Zoeller (UK) Limited
Bolton MBC,Environmental Services,Vehicle Servicing,27-Jan-20,621.7,Faun Zoeller (UK) Limited
Bolton MBC,Environmental Services,Horticultural Materials,23-Jan-20,617.8,Suttons Nurseries
Bolton MBC,Environmental Services,Direct Materials,30-Jan-20,617.5,The Columbaria Company
Bolton MBC,Environmental Services,Engineering Work,30-Jan-20,610.7,Electricity North West Limited#United Utilities Electricity Services Ltd
Bolton MBC,Environmental Services,Engineering Work,30-Jan-20,610.7,Electricity North West Limited#United Utilities Electricity Services Ltd
Bolton MBC,Environmental Services,Operational Equipment Maint,09-Jan-20,610.47,F R Sharrock Ltd#Sharrocks
Bolton MBC,Environmental Services,Contracted Services,13-Jan-20,606.9,W & S C Jobson
Bolton MBC,Environmental Services,Promoting Events,09-Jan-20,600,Wigan Pier Promotions
Bolton MBC,Environmental Services,Direct Materials,06-Jan-20,595,Aggregate Industries UK Limited
Bolton MBC,Environmental Services,Direct Materials,06-Jan-20,595,Aggregate Industries UK Limited
Bolton MBC,Environmental Services,Direct Materials,09-Jan-20,593.29,Aggregate Industries UK Limited
Bolton MBC,Environmental Services,Health and Safety,23-Jan-20,590,Premier Pest Services
Bolton MBC,Environmental Services,Health and Safety,09-Jan-20,590,Premier Pest Services
Bolton MBC,Environmental Services,Direct Materials,06-Jan-20,588.76,Aggregate Industries UK Limited
Bolton MBC,Environmental Services,Tyres,16-Jan-20,587.25,J A Tyre Service Ltd
Bolton MBC,Environmental Services,Vehicle Servicing,27-Jan-20,585,ETS (UK) Ltd
Bolton MBC,Environmental Services,Contracted Services,13-Jan-20,583.33,REDACTED - Personal Data
Bolton MBC,Environmental Services,Vehicle Servicing,30-Jan-20,578.33,Terberg Matec UK
Bolton MBC,Environmental Services,Security Maintenance,23-Jan-20,575,Spectra Security Ltd
Bolton MBC,Environmental Services,Plant Hire,23-Jan-20,572,Sibcas Limited
Bolton MBC,Environmental Services,Agency Staff - Other,09-Jan-20,570.96,REDACTED - Personal Data
Bolton MBC,Environmental Services,Op Equip Health and Safety,09-Jan-20,567.5,Crelling Harnesses Limited
Bolton MBC,Environmental Services,Contracted Services,16-Jan-20,559.2,Faun Zoeller (UK) Limited
Bolton MBC,Environmental Services,Refunds,30-Jan-20,558.5,REDACTED - Personal Data
Bolton MBC,Environmental Services,Agency Staff - Other,02-Jan-20,551.52,Profile Security Services Ltd
Bolton MBC,Environmental Services,Training Exps Tuition Fees,30-Jan-20,550,Red Rose Training
Bolton MBC,Environmental Services,Direct Materials,23-Jan-20,550,Vivedia Limited
Bolton MBC,Environmental Services,Operational Equipment Maint,16-Jan-20,548.99,Safety Kleen UK  Limited
Bolton MBC,Environmental Services,Operational Equipment Maint,30-Jan-20,548.99,Safety Kleen UK  Limited
Bolton MBC,Environmental Services,Contracted Services,23-Jan-20,548.08,Centurion Hydraulics Ltd
Bolton MBC,Environmental Services,Other Fees,06-Jan-20,546.21,Cobalt Telephone Technologies Ltd
Bolton MBC,Environmental Services,Promoting Events,23-Jan-20,545.7,S & S Marquees Limited
Bolton MBC,Environmental Services,Advertising General,02-Jan-20,544,Newsquest Media Group
Bolton MBC,Environmental Services,Vehicle Servicing,23-Jan-20,543.4,Faun Zoeller (UK) Limited
Bolton MBC,Environmental Services,Agency Staff - Other,02-Jan-20,541.85,Optimum Professional Solutions Limited
Bolton MBC,Environmental Services,Caretaking/Cleaning Equipment,20-Jan-20,540.48,System Hygiene Limited
Bolton MBC,Environmental Services,Plant Hire,30-Jan-20,540,H & C (Plant Hire) Limited
Bolton MBC,Environmental Services,Operational Equipment Rental,06-Jan-20,539.63,Kennet Equipment Leasing Ltd
Bolton MBC,Environmental Services,Vehicle Servicing,16-Jan-20,533.4,Castle Truck Supplies Ltd
Bolton MBC,Environmental Services,Plant Hire,09-Jan-20,529.25,Robinson Plant Hire
Bolton MBC,Environmental Services,Plant Hire,16-Jan-20,529.25,Robinson Plant Hire
Bolton MBC,Environmental Services,Plant Hire,30-Jan-20,529.25,Robinson Plant Hire
Bolton MBC,Environmental Services,Horticultural Materials,02-Jan-20,528,Dick Leigh Chainsaw Specialists
Bolton MBC,Environmental Services,Contracted Services,30-Jan-20,527.22,AEBI Schmidt UK Limited
Bolton MBC,Environmental Services,Private Contracted Services,23-Jan-20,525,J Dickinson & Sons (Horwich) Limited#2
Bolton MBC,Environmental Services,Operational Equipment Maint,16-Jan-20,518.45,Balmers GM Ltd
Bolton MBC,Environmental Services,Vehicle Servicing,30-Jan-20,514.99,Greenchem Solutions Ltd
Bolton MBC,Environmental Services,Other Fees,23-Jan-20,513.77,Cobalt Telephone Technologies Ltd
Bolton MBC,Environmental Services,Computer Software Licences,06-Jan-20,512.82,Unique IQ Limited
Bolton MBC,Environmental Services,Vehicle Servicing,16-Jan-20,510,LPW (Europe) Ltd
Bolton MBC,Environmental Services,Vehicle Servicing,30-Jan-20,510,LPW (Europe) Ltd
Bolton MBC,Environmental Services,Advertising General,06-Jan-20,510,McGrath Media
Bolton MBC,Environmental Services,Tyres,16-Jan-20,508.4,J A Tyre Service Ltd
Bolton MBC,Environmental Services,General Materials,13-Jan-20,507.6,Rigby Taylor Ltd
Bolton MBC,Environmental Services,Operational Equipment Maint,23-Jan-20,507.01,F R Sharrock Ltd#Sharrocks
Bolton MBC,Environmental Services,Plant Hire,06-Jan-20,504,H & C (Plant Hire) Limited
Bolton MBC,Environmental Services,Promoting Events,23-Jan-20,500,Cooking Studio
Bolton MBC,Environmental Services,Legal Fees,30-Jan-20,500,Deans Court Chamber
Bolton MBC,Financial Services,Apprenticeship Levy,24-Jan-20,"78,771.00",HM Revenue & Customs Only#Was Inland Revenue#2
Bolton MBC,Financial Services,Miscellaneous Expenses,20-Jan-20,"3,432.36",Logotech Systems
Bolton MBC,Financial Services,Other Authority Interest,23-Jan-20,607.98,Manchester City Council
Bolton MBC,Highways,Work in Progress Additions,13-Jan-20,"118,034.29",Bethell Construction Ltd
Bolton MBC,Highways,Work in Progress Additions,13-Jan-20,"69,470.12",Bethell Construction Ltd
Bolton MBC,Highways,Work in Progress Additions,13-Jan-20,"61,371.47",Bethell Construction Ltd
Bolton MBC,Highways,Work in Progress Additions,30-Jan-20,"45,883.70",J Hopkins (Contractors) Ltd
Bolton MBC,Highways,Work in Progress Additions,16-Jan-20,"37,713.34",Electricity North West Limited#United Utilities Electricity Services Ltd
Bolton MBC,Highways,Work in Progress Additions,30-Jan-20,"33,584.32",A E Yates Limited#1
Bolton MBC,Highways,Work in Progress Additions,30-Jan-20,"22,057.00",Marwood Electrical Company Limited
Bolton MBC,Highways,Work in Progress Additions,30-Jan-20,"16,921.28",Aggregate Industries UK Limited
Bolton MBC,Highways,Work in Progress Additions,30-Jan-20,"16,920.22",J Hopkins (Contractors) Ltd
Bolton MBC,Highways,Work in Progress Additions,23-Jan-20,"12,480.37",Vodafone Limited#1
Bolton MBC,Highways,Work in Progress Additions,30-Jan-20,"9,043.37",Marwood Electrical Company Limited
Bolton MBC,Highways,Inventory AP Accrual,09-Jan-20,"4,244.00",Mallatite Limited
Bolton MBC,Highways,Work in Progress Additions,27-Jan-20,"4,116.34",J Hopkins (Contractors) Ltd
Bolton MBC,Highways,Work in Progress Additions,09-Jan-20,"4,000.00",Aecom Limited
Bolton MBC,Highways,Inventory AP Accrual,27-Jan-20,"3,407.25",Ribble Fuel Oils
Bolton MBC,Highways,Inventory AP Accrual,06-Jan-20,"3,252.42",Alpha Rail Limited
Bolton MBC,Highways,Work in Progress Additions,23-Jan-20,"3,094.00",Jones Lighting Limited
Bolton MBC,Highways,Work in Progress Additions,27-Jan-20,"2,670.00",Bolton Stone Restoration Ltd
Bolton MBC,Highways,Inventory AP Accrual,02-Jan-20,"2,380.00",Alto Bollards (Newcastle) Limited
Bolton MBC,Highways,Work in Progress Additions,13-Jan-20,"2,220.31",Aggregate Industries UK Limited
Bolton MBC,Highways,Inventory AP Accrual,20-Jan-20,"2,187.60",Emo Oil Ltd#Was Shell Oil
Bolton MBC,Highways,Work in Progress Additions,02-Jan-20,"2,063.26",Marwood Electrical Company Limited
Bolton MBC,Highways,Inventory AP Accrual,16-Jan-20,"2,037.60",Smith Bros Ltd
Bolton MBC,Highways,Work in Progress Additions,06-Jan-20,"1,830.91",Jones Lighting Limited
Bolton MBC,Highways,Work in Progress Additions,30-Jan-20,"1,620.54",Bethell Construction Ltd
Bolton MBC,Highways,Inventory AP Accrual,20-Jan-20,"1,604.88",Emo Oil Ltd#Was Shell Oil
Bolton MBC,Highways,Work in Progress Additions,20-Jan-20,"1,222.50",J Hopkins (Contractors) Ltd
Bolton MBC,Highways,Work in Progress Additions,13-Jan-20,"1,058.75",Bethell Construction Ltd
Bolton MBC,Highways,Inventory AP Accrual,20-Jan-20,"1,057.60",NAL Limited
Bolton MBC,Highways,Work in Progress Additions,20-Jan-20,850,Traffic Direct Limited
Bolton MBC,Highways,Inventory AP Accrual,30-Jan-20,836.57,William Smith Group 1832 Limited
Bolton MBC,Highways,Work in Progress Additions,16-Jan-20,820,IDS Land Survey
Bolton MBC,Highways,Inventory AP Accrual,09-Jan-20,750.49,Aggregate Industries UK Limited
Bolton MBC,Highways,Inventory AP Accrual,16-Jan-20,727.31,Aggregate Industries UK Limited
Bolton MBC,Highways,Inventory AP Accrual,27-Jan-20,657.75,Aggregate Industries UK Limited
Bolton MBC,Highways,Work in Progress Additions,27-Jan-20,594,Traffic Management Products Limited#TMP Limited
Bolton MBC,Highways,Inventory AP Accrual,09-Jan-20,569.66,Aggregate Industries UK Limited
Bolton MBC,Highways,Inventory AP Accrual,09-Jan-20,556.26,Aggregate Industries UK Limited
Bolton MBC,Highways,Inventory AP Accrual,30-Jan-20,547.63,Aggregate Industries UK Limited
Bolton MBC,Highways,Inv Val Materials,30-Jan-20,546.47,Aggregate Industries UK Limited
Bolton MBC,Highways,Inventory AP Accrual,16-Jan-20,526.76,Aggregate Industries UK Limited
Bolton MBC,Highways,Inventory AP Accrual,30-Jan-20,514.01,Aggregate Industries UK Limited
Bolton MBC,Housing GRF,Rent Of Buildings,30-Jan-20,"160,175.25",Irwell Valley Housing Association
Bolton MBC,Housing GRF,Rent of Storage Facilities,30-Jan-20,"7,415.04",Adams Selfstore
Bolton MBC,Housing GRF,Clients Temporary Accommodation,09-Jan-20,"6,160.00",Grosvenor Guest House
Bolton MBC,Housing GRF,Rent Of Buildings,23-Jan-20,"4,735.03",Newville LLP
Bolton MBC,Housing GRF,Legal Fees,27-Jan-20,"4,383.00",DAC Beachcroft LLP
Bolton MBC,Housing GRF,Rent Of Buildings,09-Jan-20,"2,875.00",Birtenshaw
Bolton MBC,Housing GRF,Rent Of Buildings,13-Jan-20,"2,400.00",REDACTED - Personal Data
Bolton MBC,Housing GRF,Kitchen Equipment,06-Jan-20,"2,379.00",Furniture Resource Centre
Bolton MBC,Housing GRF,Rent Of Buildings,09-Jan-20,"2,296.00",Burns Animal Foods Ltd
Bolton MBC,Housing GRF,Rent Of Buildings,09-Jan-20,"2,296.00",Burns Animal Foods Ltd
Bolton MBC,Housing GRF,Rent Of Buildings,27-Jan-20,"2,097.86",REDACTED - Personal Data
Bolton MBC,Housing GRF,Operational Equipment Purchase,23-Jan-20,"2,089.28",Furniture Resource Centre
Bolton MBC,Housing GRF,Other Fees,27-Jan-20,"1,943.11",Bolton Council Petty Cash
Bolton MBC,Housing GRF,Other Security Expenses,23-Jan-20,"1,899.80",Alsecure Group Ltd
Bolton MBC,Housing GRF,Other Security Expenses,30-Jan-20,"1,864.40",Alsecure Group Ltd
Bolton MBC,Housing GRF,Other Fees,23-Jan-20,"1,855.00",Knox Ellis Solicitors
Bolton MBC,Housing GRF,Other Fees,23-Jan-20,"1,838.70",Bolton Council Petty Cash
Bolton MBC,Housing GRF,Water Charges - Metered,23-Jan-20,"1,758.41",United Utilities Water Limited#2
Bolton MBC,Housing GRF,Other Fees,16-Jan-20,"1,659.00",Bolton Council Petty Cash
Bolton MBC,Housing GRF,Other Fees,30-Jan-20,"1,646.24",Bolton Council Petty Cash
Bolton MBC,Housing GRF,Other Fees,13-Jan-20,"1,636.09",Bolton Council Petty Cash
Bolton MBC,Housing GRF,Other Fees,23-Jan-20,"1,607.94",Bolton Council Petty Cash
Bolton MBC,Housing GRF,Rent Of Buildings,23-Jan-20,"1,437.52",REDACTED - Personal Data
Bolton MBC,Housing GRF,Rent Of Buildings,30-Jan-20,"1,427.33",REDACTED - Personal Data
Bolton MBC,Housing GRF,Rent Of Buildings,30-Jan-20,"1,421.37",REDACTED - Personal Data
Bolton MBC,Housing GRF,Other Fees,31-Jan-20,"1,417.42",Hoot Credit Union Limited
Bolton MBC,Housing GRF,Operational Equipment Purchase,23-Jan-20,"1,403.01",Furniture Resource Centre
Bolton MBC,Housing GRF,Rent Of Buildings,09-Jan-20,"1,350.79",REDACTED - Personal Data
Bolton MBC,Housing GRF,Rent Of Buildings,30-Jan-20,"1,328.51",I Y Patel Properties
Bolton MBC,Housing GRF,Rent Of Buildings,09-Jan-20,"1,328.51",I Y Patel Properties
Bolton MBC,Housing GRF,Rent Of Buildings,20-Jan-20,"1,313.25",REDACTED - Personal Data
Bolton MBC,Housing GRF,Rent Of Buildings,16-Jan-20,"1,267.02",REDACTED - Personal Data
Bolton MBC,Housing GRF,Rent Of Buildings,20-Jan-20,"1,257.00",REDACTED - Personal Data
Bolton MBC,Housing GRF,Other Fees,02-Jan-20,"1,250.00",Valid Consultancy Limited
Bolton MBC,Housing GRF,Rent Of Buildings,09-Jan-20,"1,249.04",Lang Estates Limited
Bolton MBC,Housing GRF,Rent Of Buildings,09-Jan-20,"1,245.30",Lang Estates Limited
Bolton MBC,Housing GRF,Security Systems - Rental,09-Jan-20,"1,235.71",Acorn Environment Services Ltd
Bolton MBC,Housing GRF,Rent Of Buildings,20-Jan-20,"1,162.31",REDACTED - Personal Data
Bolton MBC,Housing GRF,Agency Staff - Other,16-Jan-20,"1,149.50",Vivid Resourcing
Bolton MBC,Housing GRF,Agency Staff - Other,09-Jan-20,"1,146.21",Vivid Resourcing
Bolton MBC,Housing GRF,Other Fees,13-Jan-20,"1,142.40",Alsecure Group Ltd
Bolton MBC,Housing GRF,Agency Staff - Sickness Cover,09-Jan-20,"1,128.50",James Andrews Recruitment Solutions Limited
Bolton MBC,Housing GRF,Agency Staff - Sickness Cover,16-Jan-20,"1,128.50",James Andrews Recruitment Solutions Limited
Bolton MBC,Housing GRF,Agency Staff - Sickness Cover,23-Jan-20,"1,128.50",James Andrews Recruitment Solutions Limited
Bolton MBC,Housing GRF,Rent Of Buildings,09-Jan-20,"1,102.19",REDACTED - Personal Data
Bolton MBC,Housing GRF,Rent Of Buildings,09-Jan-20,"1,102.19",REDACTED - Personal Data
Bolton MBC,Housing GRF,Rent Of Buildings,20-Jan-20,"1,102.19",REDACTED - Personal Data
Bolton MBC,Housing GRF,Rent Of Buildings,16-Jan-20,"1,102.19",REDACTED - Personal Data
Bolton MBC,Housing GRF,Agency Staff - Other,16-Jan-20,"1,099.42",Vivid Resourcing
Bolton MBC,Housing GRF,Rent Of Buildings,16-Jan-20,"1,098.00",REDACTED - Personal Data
Bolton MBC,Housing GRF,Agency Staff - Sickness Cover,09-Jan-20,"1,098.00",James Andrews Recruitment Solutions Limited
Bolton MBC,Housing GRF,Rent Of Buildings,20-Jan-20,"1,089.00",DKR Properties#2
Bolton MBC,Housing GRF,Operational Equipment Purchase,13-Jan-20,"1,083.32",Furniture Resource Centre
Bolton MBC,Housing GRF,Operational Equipment Purchase,20-Jan-20,"1,083.32",Furniture Resource Centre
Bolton MBC,Housing GRF,Agency Staff - Other,30-Jan-20,"1,054.47",Vivid Resourcing
Bolton MBC,Housing GRF,Clients Temporary Accommodation,30-Jan-20,"1,050.00",MK Hotels
Bolton MBC,Housing GRF,Clients Temporary Accommodation,23-Jan-20,"1,050.00",MK Hotels
Bolton MBC,Housing GRF,Clients Temporary Accommodation,23-Jan-20,"1,050.00",MK Hotels
Bolton MBC,Housing GRF,Clients Temporary Accommodation,23-Jan-20,"1,050.00",MK Hotels
Bolton MBC,Housing GRF,Clients Temporary Accommodation,23-Jan-20,"1,050.00",MK Hotels
Bolton MBC,Housing GRF,Rent Of Buildings,09-Jan-20,"1,046.02",REDACTED - Personal Data
Bolton MBC,Housing GRF,Rent Of Buildings,16-Jan-20,"1,041.82",REDACTED - Personal Data
Bolton MBC,Housing GRF,Rent Of Buildings,09-Jan-20,"1,040.00",REDACTED - Personal Data
Bolton MBC,Housing GRF,Rent Of Buildings,16-Jan-20,"1,040.00",REDACTED - Personal Data
Bolton MBC,Housing GRF,Other Security Expenses,16-Jan-20,"1,038.40",Alsecure Group Ltd
Bolton MBC,Housing GRF,Interpretation and Translation Services,30-Jan-20,"1,029.38",James Andrews Recruitment Solutions Limited
Bolton MBC,Housing GRF,Other Fees,13-Jan-20,999.6,Alsecure Group Ltd
Bolton MBC,Housing GRF,Other Fees,13-Jan-20,999.6,Alsecure Group Ltd
Bolton MBC,Housing GRF,Other Fees,16-Jan-20,999.6,Alsecure Group Ltd
Bolton MBC,Housing GRF,Other Fees,16-Jan-20,999.6,Alsecure Group Ltd
Bolton MBC,Housing GRF,Other Security Expenses,06-Jan-20,991.2,Alsecure Group Ltd
Bolton MBC,Housing GRF,Other Security Expenses,06-Jan-20,991.2,Alsecure Group Ltd
Bolton MBC,Housing GRF,Other Security Expenses,06-Jan-20,991.2,Alsecure Group Ltd
Bolton MBC,Housing GRF,Other Security Expenses,06-Jan-20,991.2,Alsecure Group Ltd
Bolton MBC,Housing GRF,Other Security Expenses,16-Jan-20,991.2,Alsecure Group Ltd
Bolton MBC,Housing GRF,Other Security Expenses,16-Jan-20,991.2,Alsecure Group Ltd
Bolton MBC,Housing GRF,Other Security Expenses,16-Jan-20,991.2,Alsecure Group Ltd
Bolton MBC,Housing GRF,Other Security Expenses,02-Jan-20,991.2,Alsecure Group Ltd
Bolton MBC,Housing GRF,Other Security Expenses,09-Jan-20,991.2,Alsecure Group Ltd
Bolton MBC,Housing GRF,Rent Of Buildings,09-Jan-20,975,REDACTED - Personal Data
Bolton MBC,Housing GRF,Agency Staff - Other,27-Jan-20,966.38,Vivid Resourcing
Bolton MBC,Housing GRF,Operational Equipment Purchase,09-Jan-20,953.81,Bolton Carpet Warehouse
Bolton MBC,Housing GRF,Operational Equipment Purchase,16-Jan-20,944.81,Bolton Carpet Warehouse
Bolton MBC,Housing GRF,Operational Equipment Purchase,30-Jan-20,944.81,Bolton Carpet Warehouse
Bolton MBC,Housing GRF,Operational Equipment Purchase,09-Jan-20,925.09,Bolton Carpet Warehouse
Bolton MBC,Housing GRF,Other Fees,09-Jan-20,920.32,Bolton Council Petty Cash
Bolton MBC,Housing GRF,Clients Temporary Accommodation,09-Jan-20,900,Glendale Guest House
Bolton MBC,Housing GRF,Agency Staff - Sickness Cover,16-Jan-20,892.13,James Andrews Recruitment Solutions Limited
Bolton MBC,Housing GRF,Op Equip Furniture Purchase,20-Jan-20,865,Sofa-UK Limited
Bolton MBC,Housing GRF,Day To Day Maintenance,20-Jan-20,845.78,Bolton Carpet Warehouse
Bolton MBC,Housing GRF,Operational Equipment Purchase,09-Jan-20,833.94,Bolton Carpet Warehouse
Bolton MBC,Housing GRF,Clients Temporary Accommodation,30-Jan-20,800,MK Hotels
Bolton MBC,Housing GRF,Operational Equipment Purchase,16-Jan-20,789.17,Bolton Carpet Warehouse
Bolton MBC,Housing GRF,Clients Temporary Accommodation,30-Jan-20,750,MK Hotels
Bolton MBC,Housing GRF,Op Equip Furniture Purchase,30-Jan-20,745,The Cosy Bedding Company Limited
Bolton MBC,Housing GRF,Other Fees,02-Jan-20,700,Social Work Academy
Bolton MBC,Housing GRF,Other Fees,02-Jan-20,700,Social Work Academy
Bolton MBC,Housing GRF,Op Equip Furniture Purchase,13-Jan-20,685,Birkdale Design Ltd
Bolton MBC,Housing GRF,Op Equip Furniture Purchase,16-Jan-20,665,The Cosy Bedding Company Limited
Bolton MBC,Housing GRF,Operational Equipment Purchase,09-Jan-20,656.78,Bolton Carpet Warehouse
Bolton MBC,Housing GRF,Operational Equipment Purchase,30-Jan-20,656.78,Bolton Carpet Warehouse
Bolton MBC,Housing GRF,Op Equip Furniture Purchase,16-Jan-20,645.14,Furniture Resource Centre
Bolton MBC,Housing GRF,Operational Equipment Purchase,20-Jan-20,640,The Cosy Bedding Company Limited
Bolton MBC,Housing GRF,Operational Equipment Purchase,09-Jan-20,634.65,Bolton Carpet Warehouse
Bolton MBC,Housing GRF,Operational Equipment Purchase,09-Jan-20,625.5,Bolton Carpet Warehouse
Bolton MBC,Housing GRF,Operational Equipment Purchase,16-Jan-20,625.5,Bolton Carpet Warehouse
Bolton MBC,Housing GRF,Kitchen Equipment,23-Jan-20,616.96,Paul Davies Kitchen Appliance Centre T/A P&S Domestics
Bolton MBC,Housing GRF,Operational Equipment Purchase,13-Jan-20,610,The Cosy Bedding Company Limited
Bolton MBC,Housing GRF,Clients Temporary Accommodation,09-Jan-20,600,Glendale Guest House
Bolton MBC,Housing GRF,Clients Temporary Accommodation,09-Jan-20,600,Glendale Guest House
Bolton MBC,Housing GRF,Clients Temporary Accommodation,09-Jan-20,600,Glendale Guest House
Bolton MBC,Housing GRF,Clients Temporary Accommodation,09-Jan-20,600,Glendale Guest House
Bolton MBC,Housing GRF,Clients Temporary Accommodation,23-Jan-20,600,MK Hotels
Bolton MBC,Housing GRF,Operational Equipment Purchase,09-Jan-20,587.07,Bolton Carpet Warehouse
Bolton MBC,Housing GRF,Operational Equipment Purchase,06-Jan-20,580,The Cosy Bedding Company Limited
Bolton MBC,Housing GRF,Operational Equipment Purchase,06-Jan-20,576.96,Paul Davies Kitchen Appliance Centre T/A P&S Domestics
Bolton MBC,Housing GRF,Operational Equipment Purchase,06-Jan-20,576.96,Paul Davies Kitchen Appliance Centre T/A P&S Domestics
Bolton MBC,Housing GRF,Operational Equipment Purchase,06-Jan-20,576.96,Paul Davies Kitchen Appliance Centre T/A P&S Domestics
Bolton MBC,Housing GRF,Operational Equipment Purchase,16-Jan-20,576.96,Paul Davies Kitchen Appliance Centre T/A P&S Domestics
Bolton MBC,Housing GRF,Room Hire,16-Jan-20,562,Bolton Quaker Meeting#Society of Friends (Quakers)
Bolton MBC,Housing GRF,Management Fee,09-Jan-20,550,REDACTED - Personal Data
Bolton MBC,Housing GRF,Op Equip Furniture Purchase,09-Jan-20,539.52,Furniture Resource Centre
Bolton MBC,Housing GRF,Operational Equipment Purchase,09-Jan-20,534.33,Bolton Carpet Warehouse
Bolton MBC,Housing GRF,Operational Equipment Purchase,30-Jan-20,534.33,Bolton Carpet Warehouse
Bolton MBC,Housing GRF,Operational Equipment Purchase,30-Jan-20,534.33,Bolton Carpet Warehouse
Bolton MBC,Housing GRF,Op Equip Furniture Purchase,20-Jan-20,505,Sofa-UK Limited
Bolton MBC,Housing GRF,Op Equip Furniture Purchase,20-Jan-20,505,Sofa-UK Limited
Bolton MBC,Housing GRF,Clients Temporary Accommodation,09-Jan-20,500,Glendale Guest House
Bolton MBC,Property Services,Miscellaneous Expenses,09-Jan-20,"4,410.45",Contour Homes#Onward
Bolton MBC,Public Health,Contracted Services,16-Jan-20,"180,000.00",NHS Bolton CCG
Bolton MBC,Public Health,Vol Assoc Grants - General,30-Jan-20,"127,291.86",Bolton NHS Foundation Trust#1
Bolton MBC,Public Health,Contracted Services,16-Jan-20,"15,242.75",Bolton CVS#Bolton Community & Voluntary Services
Bolton MBC,Public Health,Vol Assoc Grants - General,30-Jan-20,"9,191.25",Bolton NHS Foundation Trust#1
Bolton MBC,Public Health,Contracted Services,23-Jan-20,"6,750.00",Bury Council
Bolton MBC,Public Health,Clients Medical Requisites,23-Jan-20,"5,100.00",Oasis Recovery Communities Limited#Treatment Direct Ltd
Bolton MBC,Public Health,Other Fees,16-Jan-20,"5,065.11",Manchester City Council
Bolton MBC,Public Health,Clients Medical Requisites,23-Jan-20,"4,200.00",Oasis Recovery Communities Limited#Treatment Direct Ltd
Bolton MBC,Public Health,Clients Medical Requisites,30-Jan-20,"3,300.00",Oasis Recovery Communities Limited#Treatment Direct Ltd
Bolton MBC,Public Health,Clients Medical Requisites,23-Jan-20,"3,000.00",Oasis Recovery Communities Limited#Treatment Direct Ltd
Bolton MBC,Public Health,Clients Medical Requisites,23-Jan-20,"3,000.00",Oasis Recovery Communities Limited#Treatment Direct Ltd
Bolton MBC,Public Health,Clients Medical Requisites,23-Jan-20,"2,400.00",Oasis Recovery Communities Limited#Treatment Direct Ltd
Bolton MBC,Public Health,Contracted Services,30-Jan-20,"2,340.00",Salford City Council
Bolton MBC,Public Health,Residential Provision,09-Jan-20,"1,986.30",Holgate House Limited
Bolton MBC,Public Health,Contracted Services,27-Jan-20,"1,746.62",Heaton Medical Centre#P82031
Bolton MBC,Public Health,Contracted Services,13-Jan-20,"1,451.98",Asda Pharmacy
Bolton MBC,Public Health,Contracted Services,30-Jan-20,"1,316.62",Stonehill Medical Centre
Bolton MBC,Public Health,Clients Medical Requisites,09-Jan-20,"1,200.00",Oasis Recovery Communities Limited#Treatment Direct Ltd
Bolton MBC,Public Health,Contracted Services,23-Jan-20,"1,056.25",Dalefield Surgery
Bolton MBC,Public Health,Contracted Services,23-Jan-20,"1,003.00",Tonge Fold Health Centre
Bolton MBC,Public Health,Other Fees,20-Jan-20,"1,000.00",Manor Pharmacy#Various Chemists
Bolton MBC,Public Health,Other Fees,16-Jan-20,"1,000.00",Shanti Medi-Care Limited
Bolton MBC,Public Health,Other Fees,09-Jan-20,"1,000.00",Tesco Instore Pharmacy
Bolton MBC,Public Health,Residential Provision,09-Jan-20,860.73,Holgate House Limited
Bolton MBC,Public Health,Residential Provision,27-Jan-20,728.31,Holgate House Limited
Bolton MBC,Public Health,Contracted Services,13-Jan-20,640.06,Boots The Chemist
Bolton MBC,Public Health,Contracted Services,20-Jan-20,629.55,Cornerstone Surgery
Bolton MBC,Public Health,Contracted Services,13-Jan-20,607.69,Waremoss Ltd
Bolton MBC,Public Health,Clients Medical Requisites,09-Jan-20,600,Oasis Recovery Communities Limited#Treatment Direct Ltd
